Beneficiary,Category/Purpose,Department,     Net value,VAT Value,Gross,Date incurred -Payment Date
11KBW Limited,Consultants Fees,Corporate Finance,"1,147.50",229.5,"1,377.00",10/11/2016
15 Dovedale Avenue,Supptd Accommodation for Social Care Clients,Long Term Team - LD,"6,111.43",0,"6,111.43",26/10/2016
15 Dovedale Avenue,Supptd Accommodation for Social Care Clients,Long Term Team - LD,"5,914.29",0,"5,914.29",24/11/2016
15 Dovedale Avenue,Supptd Accommodation for Social Care Clients,Long Term Team - LD,"6,111.43",0,"6,111.43",23/12/2016
16 to 21 Project Ltd,Residential Placements,Childrens Placements,"17,884.50",0,"17,884.50",06/10/2016
16 to 21 Project Ltd,Residential Placements,Childrens Placements,"18,480.65",0,"18,480.65",08/11/2016
1st Car Magazine - First Car Ltd,Legal Fees/Advocacy,TFL funded revenue schemes,850,170,"1,020.00",28/11/2016
1st Car Magazine - First Car Ltd,Grants and Subscriptions,TFL funded revenue schemes,850,170,"1,020.00",05/12/2016
24 Seven Fostering Services Ltd,Foster Payments,Asylum Client Expenditure,"5,142.86",0,"5,142.86",23/12/2016
24 Seven Fostering Services Ltd,Foster Payments,Childrens Placements,750,0,750,08/11/2016
24 Seven Fostering Services Ltd,Foster Payments,Childrens Placements,"2,142.86",0,"2,142.86",08/11/2016
24 Seven Fostering Services Ltd,Foster Payments,Childrens Placements,"1,607.14",0,"1,607.14",06/12/2016
24 Seven Fostering Services Ltd,Foster Payments,Childrens Placements,"1,607.14",0,"1,607.14",06/12/2016
24 Seven Fostering Services Ltd,Foster Payments,Childrens Placements,"2,357.14",0,"2,357.14",06/12/2016
24 Seven Fostering Services Ltd,Foster Payments,Leaving Care Placements,"1,928.57",0,"1,928.57",06/12/2016
24 Seven Fostering Services Ltd,Foster Payments,Leaving Care Placements,"3,214.29",0,"3,214.29",06/12/2016
24 Seven Fostering Services Ltd,Foster Payments,Leaving Care Placements,"3,321.43",0,"3,321.43",06/12/2016
24 Seven Fostering Services Ltd,Foster Payments,Leaving Care Placements,"3,321.43",0,"3,321.43",06/12/2016
24 Seven Fostering Services Ltd,Foster Payments,Leaving Care Placements,"3,321.43",0,"3,321.43",06/12/2016
4OC Ltd,Advertising,Harrow Helpline,"7,989.40","1,597.88","9,587.28",26/10/2016
4OC Ltd,Advertising,Harrow Helpline,"7,989.40","1,597.88","9,587.28",22/11/2016
4OC Ltd,Advertising,Harrow Helpline,"7,989.40","1,597.88","9,587.28",16/12/2016
7 Palmer Crescent,Residential Placements,Long Term Team - LD,"6,642.86",0,"6,642.86",26/10/2016
7 Palmer Crescent,Residential Placements,Long Term Team - LD,"6,428.57",0,"6,428.57",24/11/2016
7 Palmer Crescent,Residential Placements,Long Term Team - LD,"6,642.85",0,"6,642.85",21/12/2016
A T Bone & Sons Ltd,Grounds Maintenance/Landscaping,Parks/Open Spaces & Playing Fields,"18,500.00","3,700.00","22,200.00",05/10/2016
A T Bone & Sons Ltd,Grounds Maintenance/Landscaping,Parks/Open Spaces & Playing Fields,"-11,760.00","-2,352.00","-14,112.00",14/12/2016
A T Bone & Sons Ltd,Grounds Maintenance/Landscaping,Parks/Open Spaces & Playing Fields,"11,760.00","2,352.00","14,112.00",14/12/2016
A T Bone & Sons Ltd,Grounds Maintenance/Landscaping,Section 106,"7,347.50","1,469.50","8,817.00",17/10/2016
A.R.C.S Environmental Ltd,"Private Contractors, Third Party Payments",Aids & Adaptions,450,90,540,28/10/2016
AA DriveTech,Consultants Fees,Development Control,-660,-132,-792,08/12/2016
AA DriveTech,Consultants Fees,Development Control,660,132,792,08/12/2016
AA DriveTech,Staff training (General),Divisional Director Environment & Cultur,"1,390.00",278,"1,668.00",25/10/2016
Abbey Law Costs Consultants Ltd,Legal Fees/Advocacy,Barnet Council Legal Services,950,190,"1,140.00",04/10/2016
ABC Housing,Foster Payments,Asylum Client Expenditure,"1,285.50",0,"1,285.50",12/10/2016
ABC Housing,Foster Payments,Asylum Client Expenditure,"1,328.35",0,"1,328.35",15/11/2016
ABC Housing,Foster Payments,Asylum Client Expenditure,"1,285.50",0,"1,285.50",09/12/2016
ABC Housing,Semi Independent,Childrens Placements,"1,129.30",0,"1,129.30",06/10/2016
ABC Housing,Semi Independent,Childrens Placements,"2,785.50",0,"2,785.50",06/10/2016
ABC Housing,Semi Independent,Childrens Placements,"2,785.50",0,"2,785.50",06/10/2016
ABC Housing,Semi Independent,Childrens Placements,"2,878.35",0,"2,878.35",08/11/2016
ABC Housing,Semi Independent,Leaving Care Placements,"1,028.40",0,"1,028.40",06/10/2016
ABC Housing,Semi Independent,Leaving Care Placements,"1,285.50",0,"1,285.50",06/10/2016
ABC Housing,Semi Independent,Leaving Care Placements,"1,328.35",0,"1,328.35",06/10/2016
ABC Housing,Semi Independent,Leaving Care Placements,"1,328.35",0,"1,328.35",06/10/2016
ABC Housing,Semi Independent,Leaving Care Placements,"1,328.35",0,"1,328.35",08/11/2016
Abfallbehalter & Container Weber UK,Refuse Collection,Wheeled Bins Replacement,"2,025.00",405,"2,430.00",10/10/2016
ABI Support Services Ltd,Residential Placements,Long Term Team - LD,"6,585.20",0,"6,585.20",25/10/2016
ABI Support Services Ltd,Residential Placements,Long Term Team - LD,"2,037.14",0,"2,037.14",25/10/2016
ABI Support Services Ltd,Residential Placements,Long Term Team - LD,"6,372.77",0,"6,372.77",25/11/2016
ABI Support Services Ltd,Residential Placements,Long Term Team - LD,"1,971.43",0,"1,971.43",25/11/2016
ABI Support Services Ltd,Residential Placements,Long Term Team - LD,"6,585.19",0,"6,585.19",20/12/2016
ABI Support Services Ltd,Residential Placements,Long Term Team - LD,"2,037.15",0,"2,037.15",20/12/2016
Abilities Development,Day Care Payments,Personalisation - LD,932.4,0,932.4,26/10/2016
Abilities Development,Day Care Payments,Personalisation - LD,"1,010.10",0,"1,010.10",30/11/2016
Abilities Development,Day Care Payments,Personalisation - LD,"1,087.80",0,"1,087.80",23/12/2016
Above Beyond Care,Foster Payments,Asylum Client Expenditure,"4,010.15",0,"4,010.15",12/10/2016
Above Beyond Care,Foster Payments,Asylum Client Expenditure,"3,123.73",0,"3,123.73",15/11/2016
Above Beyond Care,Foster Payments,Asylum Client Expenditure,"1,467.14",0,"1,467.14",09/12/2016
Above Beyond Care,Semi Independent,Childrens Placements,"3,462.43",0,"3,462.43",06/10/2016
Above Beyond Care,Semi Independent,Childrens Placements,"3,891.00",0,"3,891.00",06/10/2016
Above Beyond Care,Semi Independent,Childrens Placements,"3,577.84",0,"3,577.84",08/11/2016
Above Beyond Care,Semi Independent,Childrens Placements,"4,020.70",0,"4,020.70",08/11/2016
Above Beyond Care,Semi Independent,Childrens Placements,"3,462.43",0,"3,462.43",06/12/2016
Above Beyond Care,Semi Independent,Childrens Placements,"4,041.00",0,"4,041.00",06/12/2016
AC Education,Staff training (General),CLA Pupil Premium Grant,750,150,900,23/12/2016
Academy Consulting,Consultants Fees,"Whitchurch First, Nursery & Junior Sch","4,500.00",900,"5,400.00",26/10/2016
Academy Consulting,Consultants Fees,Whitchurch School,"1,200.00",240,"1,440.00",28/11/2016
Academy Consulting,Consultants Fees,Priestmead Bulge Class,"1,500.00",300,"1,800.00",14/12/2016
Acc General of the Senior Courts,Legal Fees/Advocacy,Liability Insurance,"2,015.00",0,"2,015.00",07/12/2016
Access Independent,Consultants Fees,Freedom Pass & Taxicards,"5,954.50","1,190.90","7,145.40",26/10/2016
Access Independent,Consultants Fees,Freedom Pass & Taxicards,"6,510.50","1,302.10","7,812.60",28/11/2016
Access Independent,Consultants Fees,Freedom Pass & Taxicards,"6,541.50","1,308.30","7,849.80",23/12/2016
ACH of London LLP,Residential Placements,Long Term Team - LD,"7,085.71",0,"7,085.71",25/10/2016
ACH of London LLP,Adults & Social - Client Charges,Long Term Team - LD,-443.52,0,-443.52,25/10/2016
ACH of London LLP,Adults & Social - Client Charges,Long Term Team - LD,-429.21,0,-429.21,25/11/2016
ACH of London LLP,Residential Placements,Long Term Team - LD,"6,857.14",0,"6,857.14",25/11/2016
ACH of London LLP,Adults & Social - Client Charges,Long Term Team - LD,-443.52,0,-443.52,20/12/2016
ACH of London LLP,Residential Placements,Long Term Team - LD,"7,085.72",0,"7,085.72",20/12/2016
ACORN MONTESSORI SCHOOL,Voluntary Organisations TPP,2 year old offer,"1,001.00",0,"1,001.00",26/10/2016
ACORN MONTESSORI SCHOOL,Voluntary Organisations TPP,2 year old offer,"1,897.50",0,"1,897.50",26/10/2016
ACORN MONTESSORI SCHOOL,Voluntary Organisations TPP,Dsg Nursery Educ Grant 3yrs & 4yrs,"11,672.70",0,"11,672.70",26/10/2016
ACS BPS Ltd,"Equipment Lease, Purchase, Maintenance and Repair",Car Parking,"4,218.75",843.75,"5,062.50",05/10/2016
Active8 Care Ltd (Keys Group),Residential Placements,Childrens Placements,"14,571.30",0,"14,571.30",06/10/2016
Active8 Care Ltd (Keys Group),Residential Placements,Childrens Placements,"15,057.01",0,"15,057.01",08/11/2016
Active8 Care Ltd (Keys Group),Residential Placements,Childrens Placements,"14,571.30",0,"14,571.30",06/12/2016
Addington Medical Centre,Miscellaneous Supplies & Services Cost,Barnet: Sexual Health Services,"1,987.60",0,"1,987.60",14/11/2016
Admiiral Insurance,Other Agencies/Local Authorities 3rd Party Payment,Motor Insurance,"-2,528.00",0,"-2,528.00",15/12/2016
Admiiral Insurance,Other Agencies/Local Authorities 3rd Party Payment,Motor Insurance,"2,528.00",0,"2,528.00",15/12/2016
Admiral Insurance,Other Agencies/Local Authorities 3rd Party Payment,Motor Insurance,"2,528.00",0,"2,528.00",23/12/2016
Adolphus Care,Supptd Accommodation for Social Care Clients,Long Term Team - LD,"4,069.86",0,"4,069.86",26/10/2016
Adolphus Care,Supptd Accommodation for Social Care Clients,Long Term Team - LD,"4,717.31",0,"4,717.31",26/10/2016
Adolphus Care,Supptd Accommodation for Social Care Clients,Long Term Team - LD,"5,057.43",0,"5,057.43",26/10/2016
Adolphus Care,Supptd Accommodation for Social Care Clients,Long Term Team - LD,"8,564.86",0,"8,564.86",26/10/2016
Adolphus Care,Supptd Accommodation for Social Care Clients,Long Term Team - LD,"3,938.57",0,"3,938.57",24/11/2016
Adolphus Care,Supptd Accommodation for Social Care Clients,Long Term Team - LD,"4,565.14",0,"4,565.14",24/11/2016
Adolphus Care,Supptd Accommodation for Social Care Clients,Long Term Team - LD,"4,894.29",0,"4,894.29",24/11/2016
Adolphus Care,Supptd Accommodation for Social Care Clients,Long Term Team - LD,"8,288.57",0,"8,288.57",24/11/2016
Adolphus Care,Supptd Accommodation for Social Care Clients,Long Term Team - LD,707.42,0,707.42,23/12/2016
Adolphus Care,Supptd Accommodation for Social Care Clients,Long Term Team - LD,"4,069.85",0,"4,069.85",23/12/2016
Adolphus Care,Supptd Accommodation for Social Care Clients,Long Term Team - LD,"4,717.32",0,"4,717.32",23/12/2016
Adolphus Care,Supptd Accommodation for Social Care Clients,Long Term Team - LD,"5,057.43",0,"5,057.43",23/12/2016
Adolphus Care,Supptd Accommodation for Social Care Clients,Long Term Team - LD,"8,564.85",0,"8,564.85",23/12/2016
Adolphus Care,Supptd Accommodation for Social Care Clients,Long Term Team - OP,"6,448.00",0,"6,448.00",26/10/2016
Adolphus Care,Supptd Accommodation for Social Care Clients,Long Term Team - OP,"8,848.29",0,"8,848.29",26/10/2016
Adolphus Care,Supptd Accommodation for Social Care Clients,Long Term Team - OP,"8,562.86",0,"8,562.86",24/11/2016
Adolphus Care,Supptd Accommodation for Social Care Clients,Long Term Team - OP,"8,848.28",0,"8,848.28",23/12/2016
Adolphus Care,Adults & Social - Client Charges,Long Term Team - PD,-295.65,0,-295.65,26/10/2016
Adolphus Care,Supptd Accommodation for Social Care Clients,Long Term Team - PD,"2,897.66",0,"2,897.66",26/10/2016
Adolphus Care,Supptd Accommodation for Social Care Clients,Long Term Team - PD,"7,271.71",0,"7,271.71",26/10/2016
Adolphus Care,Supptd Accommodation for Social Care Clients,Long Term Team - PD,"2,804.19",0,"2,804.19",24/11/2016
Adolphus Care,Adults & Social - Client Charges,Long Term Team - PD,-286.11,0,-286.11,24/11/2016
Adolphus Care,Supptd Accommodation for Social Care Clients,Long Term Team - PD,"7,037.14",0,"7,037.14",24/11/2016
Adolphus Care,Supptd Accommodation for Social Care Clients,Long Term Team - PD,"2,897.66",0,"2,897.66",23/12/2016
Adolphus Care,Adults & Social - Client Charges,Long Term Team - PD,-295.65,0,-295.65,23/12/2016
Adolphus Care,Supptd Accommodation for Social Care Clients,Long Term Team - PD,"7,271.72",0,"7,271.72",23/12/2016
Adolphus Care,Supptd Accommodation for Social Care Clients,Personalisation - LD,"2,237.31",0,"2,237.31",26/10/2016
Adolphus Care,Supptd Accommodation for Social Care Clients,Personalisation - LD,"2,165.14",0,"2,165.14",24/11/2016
Adolphus Care,Supptd Accommodation for Social Care Clients,Personalisation - LD,"2,237.32",0,"2,237.32",23/12/2016
Adrian Davis,Legal Fees/Advocacy,Barnet Council Legal Services,625,125,750,19/12/2016
Adrian Davis,Legal Fees/Advocacy,Barnet Council Legal Services,840,168,"1,008.00",20/12/2016
Adrian Davis,Legal Fees/Advocacy,Homelessness,800,160,960,19/10/2016
Adrian Davis,Legal Fees/Advocacy,Homelessness,840,168,"1,008.00",30/11/2016
Advent Care Solutions,Adults & Social - Client Charges,Long Term Team - OP,-572.29,0,-572.29,25/10/2016
Advent Care Solutions,Respite Costs,Long Term Team - OP,"13,891.43",0,"13,891.43",25/10/2016
Advent Care Solutions,Respite Costs,Long Term Team - OP,"2,431.00",0,"2,431.00",25/11/2016
Advent Care Solutions,Adults & Social - Client Charges,Long Term Team - OP,-100.15,0,-100.15,25/11/2016
Affinity Water,Water Rates/Charges (including sewage),Cedars Childrens Centre,"1,621.26",0,"1,621.26",16/12/2016
Affinity Water,Water Rates/Charges (including sewage),Civic Centre Accommodation,552.47,0,552.47,18/10/2016
Affinity Water,Water Rates/Charges (including sewage),Civic Centre Accommodation,522.47,0,522.47,03/11/2016
Affinity Water,Water Rates/Charges (including sewage),Civic Centre Accommodation,"5,829.36",0,"5,829.36",13/12/2016
Affinity Water,Water Rates/Charges (including sewage),Depot,"1,163.46",0,"1,163.46",07/11/2016
Affinity Water,Water Rates/Charges (including sewage),Depot,"1,070.65",0,"1,070.65",08/11/2016
Affinity Water,Water Rates/Charges (including sewage),Depot,"1,323.95",0,"1,323.95",08/11/2016
Affinity Water,Water Rates/Charges (including sewage),Estates & Community Halls,656.13,0,656.13,25/11/2016
Affinity Water,Water Rates/Charges (including sewage),Estates & Community Halls,"2,671.20",0,"2,671.20",16/12/2016
Affinity Water,Water Rates/Charges (including sewage),Harrow Arts Centre,"1,669.67",0,"1,669.67",11/11/2016
Affinity Water,Water Rates/Charges (including sewage),Harrow Arts Centre,"2,186.53",0,"2,186.53",14/11/2016
Affinity Water,Water Rates/Charges (including sewage),Harrow Arts Centre,"1,089.59",0,"1,089.59",01/12/2016
Affinity Water,Miscellaneous Income,Miscellaneous Expenses,"-1,040.83",0,"-1,040.83",16/12/2016
Affinity Water,Water Rates/Charges (including sewage),Parks/Open Spaces & Playing Fields,"3,675.00",735,"4,410.00",23/12/2016
Affinity Water,Water Rates/Charges (including sewage),Parks/Open Spaces & Playing Fields,"6,677.00","1,335.40","8,012.40",23/12/2016
Affinity Water,Water Rates/Charges (including sewage),Public Con's,"2,813.22",0,"2,813.22",02/12/2016
Affinity Water,Water Rates/Charges (including sewage),Public Con's,"3,865.97",0,"3,865.97",02/12/2016
Affinity Water,Water Rates/Charges (including sewage),Vaughan NRC,831.36,166.27,997.63,13/12/2016
Affinity Water,Grounds Maintenance/Landscaping,Bernays Gardens�,"1,944.15",388.83,"2,332.98",18/10/2016
Affinity Water,Water Rates/Charges (including sewage),Highways Programme,"4,117.67",823.53,"4,941.20",06/12/2016
Affinity Water,Water Rates/Charges (including sewage),Parks Infrastructure,"24,610.50","4,922.10","29,532.60",23/12/2016
Afghan Association Paiwand,Foster Payments,Asylum Client Expenditure,"1,220.00",0,"1,220.00",12/10/2016
Afghan Association Paiwand,Foster Payments,Asylum Client Expenditure,"1,220.00",0,"1,220.00",12/10/2016
Afghan Association Paiwand,Foster Payments,Asylum Client Expenditure,"1,220.00",0,"1,220.00",12/10/2016
Afghan Association Paiwand,Foster Payments,Asylum Client Expenditure,"1,300.00",0,"1,300.00",12/10/2016
Afghan Association Paiwand,Foster Payments,Asylum Client Expenditure,"1,700.00",0,"1,700.00",12/10/2016
Afghan Association Paiwand,Foster Payments,Asylum Client Expenditure,"2,135.71",0,"2,135.71",12/10/2016
Afghan Association Paiwand,Foster Payments,Asylum Client Expenditure,"2,440.00",0,"2,440.00",12/10/2016
Afghan Association Paiwand,Foster Payments,Asylum Client Expenditure,"1,220.00",0,"1,220.00",09/12/2016
Afghan Association Paiwand,Foster Payments,Asylum Client Expenditure,"1,220.00",0,"1,220.00",09/12/2016
Afghan Association Paiwand,Foster Payments,Asylum Client Expenditure,"1,220.00",0,"1,220.00",09/12/2016
Afghan Association Paiwand,Foster Payments,Asylum Client Expenditure,"1,220.00",0,"1,220.00",09/12/2016
Afghan Association Paiwand,Foster Payments,Asylum Client Expenditure,"1,220.00",0,"1,220.00",09/12/2016
Afghan Association Paiwand,Foster Payments,Asylum Client Expenditure,"1,220.00",0,"1,220.00",09/12/2016
Afghan Association Paiwand,Foster Payments,Asylum Client Expenditure,"1,220.00",0,"1,220.00",09/12/2016
Afghan Association Paiwand,Foster Payments,Asylum Client Expenditure,"1,220.00",0,"1,220.00",09/12/2016
Afghan Association Paiwand,Foster Payments,Asylum Client Expenditure,"1,220.00",0,"1,220.00",09/12/2016
Afghan Association Paiwand,Foster Payments,Asylum Client Expenditure,"1,220.00",0,"1,220.00",09/12/2016
Afghan Association Paiwand,Foster Payments,Asylum Client Expenditure,"1,220.00",0,"1,220.00",09/12/2016
Afghan Association Paiwand,Foster Payments,Asylum Client Expenditure,"1,300.00",0,"1,300.00",09/12/2016
Afghan Association Paiwand,Foster Payments,Asylum Client Expenditure,"1,300.00",0,"1,300.00",09/12/2016
Afghan Association Paiwand,Foster Payments,Asylum Client Expenditure,"1,300.00",0,"1,300.00",09/12/2016
Afghan Association Paiwand,Foster Payments,Asylum Client Expenditure,"1,300.00",0,"1,300.00",09/12/2016
Afghan Association Paiwand,Foster Payments,Asylum Client Expenditure,"1,700.00",0,"1,700.00",09/12/2016
Afghan Association Paiwand,Foster Payments,Asylum Client Expenditure,"1,700.00",0,"1,700.00",09/12/2016
African Cultural Association,Other Professional Fees,Community Learning Trust,"2,832.00",0,"2,832.00",05/12/2016
Age UK Harrow,"Counselling, Therapy",Service Level Agreement,"20,865.00",0,"20,865.00",18/10/2016
Age UK Harrow,Miscellaneous Supplies & Services Cost,Transformation,"17,962.54",0,"17,962.54",10/10/2016
Age UK Harrow,Miscellaneous Supplies & Services Cost,Transformation,"17,962.54",0,"17,962.54",31/10/2016
Age UK Harrow,Other Agencies/Local Authorities 3rd Party Payment,Voluntary Org Grants,"2,320.47",0,"2,320.47",23/12/2016
Age UK Harrow,Miscellaneous Supplies & Services Cost,Watkins House-Expenditure,"5,000.00",0,"5,000.00",01/11/2016
Aisa Medical Ltd,Consultants Fees,Mental Health - Non Pooled/ DoLS,930.96,0,930.96,18/11/2016
AJS Training,Other Professional Fees,New Home Bonus Grant (NHB),"1,000.00",0,"1,000.00",09/12/2016
AKDesign Consultants Limited,Building Maintenance Exit Costs,Housing Repairs,"2,010.00",402,"2,412.00",07/12/2016
ALD Legal Limited,Other Agencies/Local Authorities 3rd Party Payment,Liability Insurance,"5,000.00",0,"5,000.00",01/12/2016
ALDWYCH (HARROW) LTD,Accommodation,Housing Needs,"2,790.00",0,"2,790.00",21/12/2016
ALDWYCH (HARROW) LTD,Accommodation,Housing Needs,"3,000.00",0,"3,000.00",21/12/2016
ALDWYCH (HARROW) LTD,Accommodation,Housing Needs,"3,000.00",0,"3,000.00",21/12/2016
ALDWYCH (HARROW) LTD,Accommodation,Housing Needs,"3,000.00",0,"3,000.00",21/12/2016
ALDWYCH (HARROW) LTD,Accommodation,Housing Needs,"3,000.00",0,"3,000.00",21/12/2016
ALDWYCH (HARROW) LTD,Accommodation,Housing Needs,"3,000.00",0,"3,000.00",21/12/2016
ALDWYCH LEISURE,Accommodation,Housing Needs,"4,437.00",0,"4,437.00",21/12/2016
Aldwyck Housing Association,Residential Placements,Long Term Team - OP,"1,997.15",0,"1,997.15",24/10/2016
Aldwyck Housing Association,Adults & Social - Client Charges,Long Term Team - OP,"-1,119.52",0,"-1,119.52",24/10/2016
Aldwyck Housing Association,Adults & Social - Client Charges,Long Term Team - OP,"-1,156.83",0,"-1,156.83",17/11/2016
Aldwyck Housing Association,Residential Placements,Long Term Team - OP,"2,063.71",0,"2,063.71",17/11/2016
Aldwyck Housing Association,Residential Placements,Long Term Team - OP,"1,997.14",0,"1,997.14",21/12/2016
Aldwyck Housing Association,Adults & Social - Client Charges,Long Term Team - OP,"-1,119.51",0,"-1,119.51",21/12/2016
Alere Toxicology,Social Services Clients - Other Payments,Cin Team 1,480.42,96.08,576.5,05/10/2016
Alere Toxicology,Social Services Clients - Other Payments,Cin Team 1,770,154,924,07/10/2016
Alere Toxicology,Social Services Clients - Other Payments,Cin Team 1,795,159,954,07/10/2016
Alere Toxicology,Social Services Clients - Other Payments,Cin Team 1,"1,510.00",302,"1,812.00",26/10/2016
Alere Toxicology,Social Services Clients - Other Payments,Cin Team 1,"1,855.00",371,"2,226.00",28/10/2016
Alere Toxicology,Social Services Clients - Other Payments,CIN Team 3,870,174,"1,044.00",05/10/2016
Alere Toxicology,Social Services Clients - Other Payments,CIN Team 3,"2,141.00",428.2,"2,569.20",14/10/2016
Alexander Shaw Solicitors LLP,Building Maintenance Exit Costs,Housing Repairs,"-22,200.00",0,"-22,200.00",06/12/2016
Alexander Shaw Solicitors LLP,Building Maintenance Exit Costs,Housing Repairs,"22,200.00",0,"22,200.00",06/12/2016
Alexander Shaw Solicitors LLP,Building Maintenance Exit Costs,Housing Repairs,"22,200.00",0,"22,200.00",21/12/2016
Ali McClure Education and Parenting,Consultants Fees,Early Years Project,"1,050.00",0,"1,050.00",09/11/2016
Aligned Assets Limited,Private Contractors for Back Office Services,WEB Team,"4,675.00",935,"5,610.00",09/11/2016
Aligned Assets Limited,"Computer Software, Purchase and Maintenance",WEB Team,"12,610.74","2,522.15","15,132.89",23/12/2016
All Media Works,Activity Leaders (Public Events),TFL funded revenue schemes,"3,257.00",651.4,"3,908.40",23/11/2016
All Saints Pre-school,Voluntary Organisations TPP,2 year old offer,"3,580.50",0,"3,580.50",26/10/2016
All Saints Pre-school,Voluntary Organisations TPP,Dsg Nursery Educ Grant 3yrs & 4yrs,"4,489.80",0,"4,489.80",26/10/2016
All Saints Pre-school,Client Activities,Early Years SEN Provision,"4,776.60",0,"4,776.60",24/10/2016
All Saints' Trust,Other Agencies/Local Authorities 3rd Party Payment,Inclusion Funding,600,0,600,01/12/2016
All Saints' Trust,Grants and Subscriptions,Schools Finance Team Trading A/C,"9,992.74",0,"9,992.74",21/10/2016
Allen Groundcare Ltd,Other Professional Fees,Arboriculture,500,100,600,03/11/2016
Allfor Care Alpha Care Recruitment,Domiciliary Care,Children With Disabilities Client Costs,506.52,0,506.52,05/10/2016
Allfor Care Alpha Care Recruitment,Domiciliary Care,Children With Disabilities Client Costs,542.7,0,542.7,05/10/2016
Allfor Care Alpha Care Recruitment,Domiciliary Care,Children With Disabilities Client Costs,"1,233.38",0,"1,233.38",05/10/2016
Allfor Care Alpha Care Recruitment,Domiciliary Care,Children With Disabilities Client Costs,751.44,0,751.44,05/10/2016
Allfor Care Alpha Care Recruitment,Domiciliary Care,Children With Disabilities Client Costs,"1,274.64",0,"1,274.64",05/10/2016
Allfor Care Alpha Care Recruitment,Domiciliary Care,Children With Disabilities Client Costs,723.6,0,723.6,02/11/2016
Allfor Care Alpha Care Recruitment,Domiciliary Care,Children With Disabilities Client Costs,"1,423.32",0,"1,423.32",02/11/2016
Allfor Care Alpha Care Recruitment,Domiciliary Care,Children With Disabilities Client Costs,"1,031.88",0,"1,031.88",02/11/2016
Allfor Care Alpha Care Recruitment,Domiciliary Care,Children With Disabilities Client Costs,777.12,0,777.12,02/11/2016
Allfor Care Alpha Care Recruitment,Domiciliary Care,Children With Disabilities Client Costs,506.52,0,506.52,09/11/2016
Allfor Care Alpha Care Recruitment,Domiciliary Care,Long Term Team - LD,"1,222.84",0,"1,222.84",17/10/2016
Allfor Care Alpha Care Recruitment,Domiciliary Care,Long Term Team - LD,"1,158.48",0,"1,158.48",25/10/2016
Allfor Care Alpha Care Recruitment,Domiciliary Care,Long Term Team - LD,"1,158.48",0,"1,158.48",25/10/2016
Allfor Care Alpha Care Recruitment,Domiciliary Care,Long Term Team - LD,"1,222.84",0,"1,222.84",21/11/2016
Allfor Care Alpha Care Recruitment,Domiciliary Care,Personalisation - OP,"1,029.76",0,"1,029.76",17/10/2016
Allfor Care Alpha Care Recruitment,Domiciliary Care,Personalisation - OP,"1,357.03",0,"1,357.03",17/10/2016
Allfor Care Alpha Care Recruitment,Domiciliary Care,Personalisation - OP,"2,477.88",0,"2,477.88",17/10/2016
Allfor Care Alpha Care Recruitment,Domiciliary Care,Personalisation - OP,"1,029.76",0,"1,029.76",25/10/2016
Allfor Care Alpha Care Recruitment,Domiciliary Care,Personalisation - OP,"1,652.12",0,"1,652.12",25/10/2016
Allfor Care Alpha Care Recruitment,Domiciliary Care,Personalisation - OP,"1,520.51",0,"1,520.51",25/10/2016
Allfor Care Alpha Care Recruitment,Domiciliary Care,Personalisation - OP,"1,753.81",0,"1,753.81",25/10/2016
Allfor Care Alpha Care Recruitment,Domiciliary Care,Personalisation - OP,"1,029.76",0,"1,029.76",21/11/2016
Allfor Care Alpha Care Recruitment,Domiciliary Care,Personalisation - OP,"1,946.91",0,"1,946.91",23/12/2016
Allfor Care Alpha Care Recruitment,Domiciliary Care,Personalisation - OP,"2,477.86",0,"2,477.86",23/12/2016
Allfor Care Alpha Care Recruitment,Domiciliary Care,Personalisation - PD,514.88,0,514.88,17/10/2016
Allfor Care Alpha Care Recruitment,Domiciliary Care,Personalisation - PD,751.08,0,751.08,17/10/2016
Allfor Care Alpha Care Recruitment,Domiciliary Care,Personalisation - PD,772.32,0,772.32,17/10/2016
Allfor Care Alpha Care Recruitment,Domiciliary Care,Personalisation - PD,"1,072.88",0,"1,072.88",17/10/2016
Allfor Care Alpha Care Recruitment,Domiciliary Care,Personalisation - PD,"1,169.44",0,"1,169.44",17/10/2016
Allfor Care Alpha Care Recruitment,Domiciliary Care,Personalisation - PD,"1,587.76",0,"1,587.76",17/10/2016
Allfor Care Alpha Care Recruitment,Domiciliary Care,Personalisation - PD,"1,767.32",0,"1,767.32",17/10/2016
Allfor Care Alpha Care Recruitment,Domiciliary Care,Personalisation - PD,751.08,0,751.08,25/10/2016
Allfor Care Alpha Care Recruitment,Domiciliary Care,Personalisation - PD,"1,072.88",0,"1,072.88",25/10/2016
Allfor Care Alpha Care Recruitment,Domiciliary Care,Personalisation - PD,"1,133.10",0,"1,133.10",25/10/2016
Allfor Care Alpha Care Recruitment,Domiciliary Care,Personalisation - PD,"1,158.48",0,"1,158.48",25/10/2016
Allfor Care Alpha Care Recruitment,Domiciliary Care,Personalisation - PD,"1,652.12",0,"1,652.12",25/10/2016
Allfor Care Alpha Care Recruitment,Domiciliary Care,Personalisation - PD,514.88,0,514.88,21/11/2016
Allfor Care Alpha Care Recruitment,Domiciliary Care,Personalisation - PD,751.08,0,751.08,21/11/2016
Allfor Care Alpha Care Recruitment,Domiciliary Care,Personalisation - PD,751.08,0,751.08,21/11/2016
Allfor Care Alpha Care Recruitment,Domiciliary Care,Personalisation - PD,"1,072.88",0,"1,072.88",21/11/2016
Allfor Care Alpha Care Recruitment,Domiciliary Care,Personalisation - PD,"1,673.36",0,"1,673.36",21/11/2016
Allfor Care Alpha Care Recruitment,Domiciliary Care,Personalisation - PD,"1,802.08",0,"1,802.08",21/11/2016
Allfor Care Alpha Care Recruitment,Domiciliary Care,Personalisation - PD,"1,072.88",0,"1,072.88",23/12/2016
Allfor Care Alpha Care Recruitment,Domiciliary Care,Personalisation - PD,"1,169.44",0,"1,169.44",23/12/2016
Allfor Care Alpha Care Recruitment,Domiciliary Care,Personalisation - PD,"2,252.60",0,"2,252.60",23/12/2016
Allfor Care Alpha Care Recruitment,Domiciliary Care,Personalisation - PD,"3,049.06",0,"3,049.06",23/12/2016
Allfor Care ISF,Social Care Personal Budgets,Personalisation - LD,"1,068.00",0,"1,068.00",18/10/2016
Allfor Care ISF,Social Care Personal Budgets,Personalisation - LD,"1,068.00",0,"1,068.00",18/11/2016
Allfor Care ISF,Social Care Personal Budgets,Personalisation - LD,"1,068.00",0,"1,068.00",19/12/2016
Allfor Care ISF,Adults & Social - Net P.B.'s,Personalisation - OP,-144.44,0,-144.44,18/10/2016
Allfor Care ISF,Social Care Personal Budgets,Personalisation - OP,"1,064.80",0,"1,064.80",18/10/2016
ALLPAY LTD,Social Services Clients - Other Payments,Children Looked After Team 1,"4,500.00",0,"4,500.00",10/11/2016
Allpay Ltd,Section 17,Children Looked After Team 1,500,0,500,11/11/2016
Allpay Ltd,Section 17,Children Looked After Team 1,"-5,000.00",0,"-5,000.00",16/11/2016
Allpay Ltd,Section 17,Children Looked After Team 1,"5,000.00",0,"5,000.00",16/11/2016
Allpay Ltd,Section 17,Children Looked After Team 1,"-10,000.00",0,"-10,000.00",22/11/2016
Allpay Ltd,Section 17,Children Looked After Team 1,"10,000.00",0,"10,000.00",22/11/2016
Allpay Ltd,Section 17,Children Looked After Team 1,"5,000.00",0,"5,000.00",23/11/2016
Allpay Ltd,Section 17,Children Looked After Team 1,"10,000.00",0,"10,000.00",01/12/2016
ALLPAY LTD,Section 17,Children Looked After Team 1,"-7,000.00",0,"-7,000.00",14/12/2016
ALLPAY LTD,Section 17,Children Looked After Team 1,"7,000.00",0,"7,000.00",14/12/2016
ALLPAY LTD,Section 17,Children Looked After Team 1,"7,000.00",0,"7,000.00",21/12/2016
ALLPAY LTD,Section 17,Cin Team 1,"4,500.00",0,"4,500.00",10/11/2016
Allpay Ltd,Section 17,CIN Team 3,"1,400.00",0,"1,400.00",30/11/2016
ALLPAY LTD,Section 17,CIN Team 3,"3,000.00",0,"3,000.00",15/12/2016
ALLPAY LTD,Section 17,Section 47 Team,"4,500.00",0,"4,500.00",10/11/2016
Allpay.net,Miscellaneous Income,Miscellaneous Expenses,"-1,334.19",0,"-1,334.19",25/11/2016
Allpay.net,Miscellaneous Income,Miscellaneous Expenses,-128.21,0,-128.21,25/11/2016
Allpay.net,Miscellaneous Supplies & Services Cost,Tenant Services,115.29,23.06,138.35,03/10/2016
Allpay.net,Miscellaneous Supplies & Services Cost,Tenant Services,"1,196.75",0,"1,196.75",03/10/2016
Allpay.net,Miscellaneous Supplies & Services Cost,Tenant Services,111.16,22.23,133.39,03/10/2016
Allpay.net,Miscellaneous Supplies & Services Cost,Tenant Services,"1,264.05",0,"1,264.05",03/10/2016
Allpay.net,Miscellaneous Supplies & Services Cost,Tenant Services,"-1,323.62",-264.72,"-1,588.34",19/10/2016
Allpay.net,Miscellaneous Supplies & Services Cost,Tenant Services,"1,189.97",237.99,"1,427.96",19/10/2016
Allpay.net,Miscellaneous Supplies & Services Cost,Tenant Services,"1,198.54",239.71,"1,438.25",19/10/2016
Allpay.net,Miscellaneous Supplies & Services Cost,Tenant Services,"1,200.81",240.16,"1,440.97",19/10/2016
Allpay.net,Miscellaneous Supplies & Services Cost,Tenant Services,"1,238.35",247.67,"1,486.02",19/10/2016
Allpay.net,Miscellaneous Supplies & Services Cost,Tenant Services,"1,241.52",248.3,"1,489.82",19/10/2016
Allpay.net,Miscellaneous Supplies & Services Cost,Tenant Services,"1,247.74",249.55,"1,497.29",19/10/2016
Allpay.net,Miscellaneous Supplies & Services Cost,Tenant Services,"1,265.91",253.18,"1,519.09",19/10/2016
Allpay.net,Miscellaneous Supplies & Services Cost,Tenant Services,"1,314.56",262.91,"1,577.47",19/10/2016
Allpay.net,Miscellaneous Supplies & Services Cost,Tenant Services,"1,323.62",264.72,"1,588.34",19/10/2016
Allpay.net,Miscellaneous Supplies & Services Cost,Tenant Services,"1,323.62",264.72,"1,588.34",19/10/2016
Allpay.net,Miscellaneous Supplies & Services Cost,Tenant Services,"1,324.61",264.92,"1,589.53",19/10/2016
Allpay.net,Miscellaneous Supplies & Services Cost,Tenant Services,96.02,19.2,115.22,25/11/2016
Allpay.net,Miscellaneous Supplies & Services Cost,Tenant Services,"1,223.29",0,"1,223.29",25/11/2016
Allpay.net,Miscellaneous Supplies & Services Cost,Tenant Services,105.65,21.13,126.78,25/11/2016
Allpay.net,Miscellaneous Supplies & Services Cost,Tenant Services,"1,215.03",0,"1,215.03",25/11/2016
Allpay.net,Miscellaneous Supplies & Services Cost,Tenant Services,"1,178.34",235.67,"1,414.01",25/11/2016
Allpay.net,Miscellaneous Supplies & Services Cost,Tenant Services,"1,171.37",234.27,"1,405.64",28/11/2016
Allpay.net,Miscellaneous Supplies & Services Cost,Tenant Services,"1,226.62",245.32,"1,471.94",23/12/2016
Alpha Laundry Systems,Building Maintenance Exit Costs,Cyclical Maintenance,973.54,194.71,"1,168.25",07/10/2016
Alpha Laundry Systems,Building Maintenance Exit Costs,Cyclical Maintenance,849.39,169.88,"1,019.27",26/10/2016
Alpha Laundry Systems,Building Maintenance Exit Costs,Cyclical Maintenance,"1,101.02",220.2,"1,321.22",28/11/2016
Alpha Laundry Systems,Building Maintenance Exit Costs,Cyclical Maintenance,"1,955.57",391.11,"2,346.68",23/12/2016
Alpha Plus Group t/a Abingdon House,Residential Schools,Ind Residential Day School Placement,"9,950.00",0,"9,950.00",15/11/2016
Alpha Plus Group t/a Abingdon House,Residential Schools,Ind Residential Day School Placement,"9,950.00",0,"9,950.00",15/11/2016
Alpha Plus Group t/a Abingdon House,Residential Schools,Ind Residential Day School Placement,"9,950.00",0,"9,950.00",15/11/2016
Alpha Plus Group t/a Abingdon House,Residential Schools,Ind Residential Day School Placement,"9,950.00",0,"9,950.00",15/11/2016
Alpha Preparatory School,Voluntary Organisations TPP,Dsg Nursery Educ Grant 3yrs & 4yrs,"16,948.65",0,"16,948.65",26/10/2016
Alzheimer'S Disease Society,Day Care Payments,Personalisation - OP,633.06,0,633.06,23/12/2016
Amac Express Services,Secure Placement  for Children,Brent SNT Childrens,"23,902.20","4,780.44","28,682.64",12/12/2016
Amac Express Services,Secure Placement  for Children,Brent SNT Childrens,"95,608.82",0,"95,608.82",12/12/2016
Amac Express Services,Transport (Private Hire),P-DSG Transport Educ - Ops,"10,110.96","2,022.19","12,133.15",12/10/2016
Amac Express Services,Transport (Private Hire),P-DSG Transport Educ - Ops,"40,443.84",0,"40,443.84",12/10/2016
Amac Express Services,Secure Placement  for Children,P-DSG Transport Educ - Ops,"11,524.74","2,304.95","13,829.69",12/12/2016
Amac Express Services,Secure Placement  for Children,P-DSG Transport Educ - Ops,"46,098.95",0,"46,098.95",12/12/2016
Amac Express Services,Transport (Private Hire),Shared Taxi Service,"19,583.87","3,916.77","23,500.64",12/10/2016
Amac Express Services,Transport (Private Hire),Shared Taxi Service,"78,335.51",0,"78,335.51",12/10/2016
Amac Express Services,Secure Placement  for Children,Shared Taxi Service,"8,155.20","1,631.04","9,786.24",10/11/2016
Amac Express Services,Secure Placement  for Children,Shared Taxi Service,"32,620.80",0,"32,620.80",10/11/2016
Amac Express Services,Secure Placement  for Children,Shared Taxi Service,"17,202.18","3,440.44","20,642.62",16/11/2016
Amac Express Services,Secure Placement  for Children,Shared Taxi Service,"68,808.72",0,"68,808.72",16/11/2016
Ambient Landscapes Ltd,Consultants Fees,Queensbury Recreation Ground�,"3,331.75",666.35,"3,998.10",02/11/2016
Ambient Landscapes Ltd,Grounds Maintenance/Landscaping,Flood Defence,442.5,88.5,531,04/11/2016
Ambient Landscapes Ltd,Grounds Maintenance/Landscaping,Stanmore Marsh,"2,360.43",472.09,"2,832.52",20/12/2016
Ambient Landscapes Ltd,Grounds Maintenance/Landscaping,Stanmore Marsh,"3,206.50",641.3,"3,847.80",20/12/2016
Ambitious about Autism,Professional Services - Curriculum,Ind Residential Day School Placement,"-23,505.67",0,"-23,505.67",02/12/2016
Ambitious about Autism,Professional Services - Curriculum,Ind Residential Day School Placement,"23,505.67",0,"23,505.67",02/12/2016
Ambitious about Autism,Professional Services - Curriculum,TU-ISP Provision,"25,929.08",0,"25,929.08",21/11/2016
Ambitious about Autism,Professional Services - Curriculum,TU-ISP Provision,"30,580.83",0,"30,580.83",21/11/2016
Ambitious about Autism,Professional Services - Curriculum,TU-ISP Provision,"25,929.08",0,"25,929.08",21/12/2016
Ambitious about Autism,Professional Services - Curriculum,TU-ISP Provision,"30,580.83",0,"30,580.83",21/12/2016
Amersham & Wycombe College,Other Professional Fees,CLA Pupil Premium Grant,811,0,811,23/12/2016
Amy Turner Design,Stationery & In House Printing,Business & Commercial Team,"2,175.00",0,"2,175.00",26/10/2016
Amy Turner Design,Stationery & In House Printing,Business & Commercial Team,"1,020.00",0,"1,020.00",23/12/2016
Andrew Chidwick Ltd,Consultants Fees,Mental Health - Non Pooled/ DoLS,563.98,112.8,676.78,23/12/2016
Andrew Leong,Legal Fees/Advocacy,Bucks County Council Legal Services,675,135,810,03/10/2016
Andrew Leong,Legal Fees/Advocacy,Bucks County Council Legal Services,675,135,810,12/12/2016
Andrew Pote,Legal Fees/Advocacy,Barnet Council Legal Services,600,120,720,26/10/2016
Andrew Pote,Legal Fees/Advocacy,Barnet Council Legal Services,600,120,720,14/11/2016
Anglia DNA,Social Services Clients - Other Payments,Cin Team 1,560,112,672,21/12/2016
Anna Hefford,Legal Fees/Advocacy,Bucks County Council Legal Services,64,0,64,07/12/2016
Anna Hefford,Legal Fees/Advocacy,Bucks County Council Legal Services,951,190.2,"1,141.20",07/12/2016
Anna Yarde,Legal Fees/Advocacy,Bucks County Council Legal Services,520,104,624,05/12/2016
Anna Yarde,Legal Fees/Advocacy,Bucks County Council Legal Services,750,150,900,05/12/2016
Anna Yarde,Legal Fees/Advocacy,Bucks County Council Legal Services,"1,600.00",320,"1,920.00",23/12/2016
Annie Sayers,Legal Fees/Advocacy,Bucks County Council Legal Services,450,90,540,06/12/2016
Annie Sayers,Legal Fees/Advocacy,Bucks County Council Legal Services,550,110,660,06/12/2016
Annie Sayers,Legal Fees/Advocacy,Bucks County Council Legal Services,550,110,660,06/12/2016
Annie Sayers,Legal Fees/Advocacy,Bucks County Council Legal Services,550,110,660,06/12/2016
Annie Sayers,Legal Fees/Advocacy,Bucks County Council Legal Services,550,110,660,06/12/2016
Annie Sayers,Legal Fees/Advocacy,Bucks County Council Legal Services,625,125,750,06/12/2016
Annie Sayers,Legal Fees/Advocacy,Bucks County Council Legal Services,750,150,900,06/12/2016
Annie Sayers,Legal Fees/Advocacy,Bucks County Council Legal Services,"1,250.00",250,"1,500.00",06/12/2016
Annie Sayers,Legal Fees/Advocacy,Bucks County Council Legal Services,550,110,660,16/12/2016
Aon Uk Ltd,Insurance Premiums,Insurance Services,-416.39,0,-416.39,21/10/2016
Aon Uk Ltd,Insurance Premiums,Insurance Services,-417.58,0,-417.58,21/10/2016
Aon Uk Ltd,Insurance Premiums,Insurance Services,-519.42,0,-519.42,21/10/2016
Aon Uk Ltd,Insurance Premiums,Insurance Services,-417.92,0,-417.92,11/11/2016
Aon Uk Ltd,Insurance Premiums,Insurance Services,-538.14,0,-538.14,11/11/2016
Aon Uk Ltd,Insurance Premiums,Insurance Services,-523.27,0,-523.27,11/11/2016
Aon Uk Ltd,Insurance Premiums,Insurance Services,-424.56,0,-424.56,01/12/2016
Aon Uk Ltd,Miscellaneous Income,Tenant Services,-224.21,0,-224.21,21/10/2016
Aon Uk Ltd,Insurance Premiums,Tenant Services,"2,805.80",0,"2,805.80",21/10/2016
Aon Uk Ltd,Miscellaneous Income,Tenant Services,-224.85,0,-224.85,21/10/2016
Aon Uk Ltd,Insurance Premiums,Tenant Services,"2,813.84",0,"2,813.84",21/10/2016
Aon Uk Ltd,Insurance Premiums,Tenant Services,"3,500.12",0,"3,500.12",21/10/2016
Aon Uk Ltd,Miscellaneous Income,Tenant Services,-279.69,0,-279.69,21/10/2016
Aon Uk Ltd,Miscellaneous Income,Tenant Services,-225.03,0,-225.03,11/11/2016
Aon Uk Ltd,Insurance Premiums,Tenant Services,"2,816.11",0,"2,816.11",11/11/2016
Aon Uk Ltd,Miscellaneous Income,Tenant Services,-289.77,0,-289.77,11/11/2016
Aon Uk Ltd,Insurance Premiums,Tenant Services,"3,510.35",0,"3,510.35",11/11/2016
Aon Uk Ltd,Miscellaneous Income,Tenant Services,-281.76,0,-281.76,11/11/2016
Aon Uk Ltd,Insurance Premiums,Tenant Services,"3,526.04",0,"3,526.04",11/11/2016
Aon Uk Ltd,Miscellaneous Income,Tenant Services,-228.61,0,-228.61,01/12/2016
Aon Uk Ltd,Insurance Premiums,Tenant Services,"2,873.94",0,"2,873.94",01/12/2016
Apple Tree Day Nursery,Voluntary Organisations TPP,2 year old offer,"1,155.00",0,"1,155.00",26/10/2016
Apple Tree Day Nursery,Voluntary Organisations TPP,2 year old offer,"3,465.00",0,"3,465.00",26/10/2016
Apple Tree Day Nursery,Voluntary Organisations TPP,2 year old offer,"11,550.00",0,"11,550.00",26/10/2016
Apple Tree Day Nursery,Voluntary Organisations TPP,Dsg Nursery Educ Grant 3yrs & 4yrs,"2,444.40",0,"2,444.40",26/10/2016
Apple Tree Day Nursery,Voluntary Organisations TPP,Dsg Nursery Educ Grant 3yrs & 4yrs,"8,238.30",0,"8,238.30",26/10/2016
Apple Tree Day Nursery,Voluntary Organisations TPP,Dsg Nursery Educ Grant 3yrs & 4yrs,"9,752.40",0,"9,752.40",26/10/2016
APSE South and South West,"Private Contractors, Third Party Payments",Parks/Open Spaces & Playing Fields,"-2,212.00",-442.4,"-2,654.40",07/12/2016
APSE South and South West,"Private Contractors, Third Party Payments",Parks/Open Spaces & Playing Fields,"2,212.00",442.4,"2,654.40",07/12/2016
APSE South and South West,"Private Contractors, Third Party Payments",Parks/Open Spaces & Playing Fields,"2,212.00",442.4,"2,654.40",07/12/2016
Aratrust,Other Professional Fees,Community Learning Trust,958,0,958,12/10/2016
Arbor Master,Consultants Fees,Bernays Gardens�,"2,050.00",410,"2,460.00",07/10/2016
Arbor Master,Consultants Fees,Lakegrove Park,"2,800.00",560,"3,360.00",07/10/2016
Arbory Residential Home,Residential Placements,Long Term Team - OP,"1,943.57",0,"1,943.57",24/10/2016
Arbory Residential Home,Residential Placements,Long Term Team - OP,"2,008.36",0,"2,008.36",17/11/2016
Arbory Residential Home,Residential Placements,Long Term Team - OP,"1,943.57",0,"1,943.57",21/12/2016
Ardent,Building Maintenance Exit Costs,Corporate Accomodation,"1,985.00",397,"2,382.00",15/11/2016
Ardent,Building Maintenance Exit Costs,Corporate Accomodation,"7,685.00","1,537.00","9,222.00",15/11/2016
Ardent,Building Maintenance Exit Costs,Corporate Accomodation,"7,460.00","1,492.00","8,952.00",12/12/2016
Ardent,Building Maintenance Exit Costs,Parks Infrastructure,"16,274.21","3,254.84","19,529.05",20/12/2016
Ardent,Building Maintenance Exit Costs,Corporate Accomodation,"1,950.00",390,"2,340.00",23/12/2016
Area Camden Ltd,Residential Placements,Childrens Placements,"14,500.00",0,"14,500.00",06/10/2016
Area Camden Ltd,Residential Placements,Childrens Placements,"15,500.00",0,"15,500.00",08/11/2016
Area Camden Ltd,Residential Placements,Childrens Placements,"17,500.00",0,"17,500.00",08/11/2016
Area Camden Ltd,Residential Placements,Childrens Placements,"8,500.00",0,"8,500.00",06/12/2016
Area Camden Ltd,Residential Placements,Childrens Placements,"15,000.00",0,"15,000.00",06/12/2016
Argos Business Solutions,Social Services Clients - Other Payments,Leaving Care Placements,719.93,143.99,863.92,23/11/2016
ArjoHuntleigh Healthcare Ltd,"Equipment Lease, Purchase, Maintenance and Repair",Vaughan NRC,441.45,88.29,529.74,13/10/2016
Arqiva Services Limited,"Equipment Lease, Purchase, Maintenance and Repair",Parking A/C-On Street Enfrcmnt,"5,514.00","1,102.80","6,616.80",25/10/2016
Artelia UK,Other Professional Fees,Poets Corner,"10,000.00","2,000.00","12,000.00",03/11/2016
Artelia UK,Other Professional Fees,Poets Corner,"11,500.00","2,300.00","13,800.00",03/11/2016
Artelia UK,Other Professional Fees,Poets Corner,"5,000.00","1,000.00","6,000.00",01/12/2016
Artelia UK,Other Professional Fees,Waxwell Lane,"3,217.00",643.4,"3,860.40",14/12/2016
Ascensio Ltd,Staff training (General),Learning and Development,"1,000.00",200,"1,200.00",09/11/2016
Ashgale House (Allied Care),Adults & Social - Client Charges,Long Term Team - PD,-399.24,0,-399.24,25/10/2016
Ashgale House (Allied Care),Residential Placements,Long Term Team - PD,"3,877.70",0,"3,877.70",25/10/2016
Ashgale House (Allied Care),Residential Placements,Long Term Team - PD,"3,752.61",0,"3,752.61",25/11/2016
Ashgale House (Allied Care),Adults & Social - Client Charges,Long Term Team - PD,-386.36,0,-386.36,25/11/2016
Ashgale House (Allied Care),Residential Placements,Long Term Team - PD,"3,877.70",0,"3,877.70",20/12/2016
Ashgale House (Allied Care),Adults & Social - Client Charges,Long Term Team - PD,-399.23,0,-399.23,20/12/2016
Asian People's Disability Alliance,Section 17,Children With Disabilities Client Costs,500,0,500,01/11/2016
Asian People's Disability Alliance,Section 17,Children With Disabilities Client Costs,600,0,600,01/11/2016
Asian People's Disability Alliance,Section 17,Children With Disabilities Client Costs,600,0,600,01/11/2016
Asian People's Disability Alliance,Day Care Payments,Personalisation - LD,567.45,0,567.45,31/10/2016
Asian People's Disability Alliance,Day Care Payments,Personalisation - LD,"1,071.68",0,"1,071.68",31/10/2016
Asian People's Disability Alliance,Day Care Payments,Personalisation - LD,"1,071.85",0,"1,071.85",31/10/2016
Asian People's Disability Alliance,Day Care Payments,Personalisation - LD,504.4,0,504.4,30/11/2016
Asian People's Disability Alliance,Day Care Payments,Personalisation - LD,"1,071.68",0,"1,071.68",30/11/2016
Asian People's Disability Alliance,Day Care Payments,Personalisation - LD,"1,071.85",0,"1,071.85",30/11/2016
Asian People's Disability Alliance,Day Care Payments,Personalisation - LD,567.45,0,567.45,23/12/2016
Asian People's Disability Alliance,Day Care Payments,Personalisation - LD,"1,134.72",0,"1,134.72",23/12/2016
Asian People's Disability Alliance,Day Care Payments,Personalisation - LD,"1,134.90",0,"1,134.90",23/12/2016
Aspen Village Ltd,Nursing Care,Long Term Team - OP,"2,267.65",0,"2,267.65",25/10/2016
Aspen Village Ltd,Adults & Social - Client Charges,Long Term Team - OP,-623.71,0,-623.71,25/11/2016
Aspen Village Ltd,Nursing Care,Long Term Team - OP,"2,194.50",0,"2,194.50",25/11/2016
Aspen Village Ltd,Nursing Care,Long Term Team - OP,"2,267.65",0,"2,267.65",20/12/2016
Aspen Village Ltd,Recovery of Costs (External - Non Vatable),Long Term Team - PD,-691.96,0,-691.96,25/10/2016
Aspen Village Ltd,Nursing Care,Long Term Team - PD,"2,939.95",0,"2,939.95",25/10/2016
Aspen Village Ltd,Residential Placements,Long Term Team - PD,"1,344.07",0,"1,344.07",25/10/2016
Aspen Village Ltd,Residential Placements,Long Term Team - PD,"3,381.21",0,"3,381.21",25/10/2016
Aspen Village Ltd,Recovery of Costs (External - Non Vatable),Long Term Team - PD,-669.64,0,-669.64,25/11/2016
Aspen Village Ltd,Nursing Care,Long Term Team - PD,"2,845.11",0,"2,845.11",25/11/2016
Aspen Village Ltd,Residential Placements,Long Term Team - PD,"3,272.14",0,"3,272.14",25/11/2016
Aspen Village Ltd,Residential Placements,Long Term Team - PD,"1,300.71",0,"1,300.71",25/11/2016
Aspen Village Ltd,Recovery of Costs (External - Non Vatable),Long Term Team - PD,-691.97,0,-691.97,20/12/2016
Aspen Village Ltd,Nursing Care,Long Term Team - PD,"2,939.95",0,"2,939.95",20/12/2016
Aspen Village Ltd,Residential Placements,Long Term Team - PD,"1,344.07",0,"1,344.07",20/12/2016
Aspen Village Ltd,Residential Placements,Long Term Team - PD,"3,381.22",0,"3,381.22",20/12/2016
Association of Adult Education,Other Professional Fees,Community Learning Trust,470,94,564,19/10/2016
ASW Ecology,Consultants Fees,Byron Quarter,"1,819.00",363.8,"2,182.80",10/11/2016
ASW Ecology,Consultants Fees,Byron Quarter,"1,829.00",365.8,"2,194.80",11/11/2016
ASW Ecology,Consultants Fees,Byron Quarter,449,89.8,538.8,30/11/2016
Atkins Limited,Consultants Fees,Wealdstone Site,"8,000.00","1,600.00","9,600.00",12/10/2016
Atkins Limited,Consultants Fees,Station Road feasibility study,"1,500.00",300,"1,800.00",19/10/2016
Atkins Limited,Consultants Fees,Cycling schemes,"1,500.00",300,"1,800.00",19/10/2016
Atkins Limited,Consultants Fees,20mph zones,"2,000.00",400,"2,400.00",19/10/2016
Atkins Limited,Consultants Fees,Walking Schemes,"2,000.00",400,"2,400.00",19/10/2016
Atkins Limited,Consultants Fees,Freight management schemes,"2,000.00",400,"2,400.00",19/10/2016
Atkins Limited,Consultants Fees,Congestion relief schemes,"2,500.00",500,"3,000.00",19/10/2016
Atkins Limited,Consultants Fees,Bus Priority Schemes,"3,000.00",600,"3,600.00",19/10/2016
Atkins Limited,Consultants Fees,Local Transport Fund schemes,"3,500.00",700,"4,200.00",19/10/2016
Atkins Limited,Consultants Fees,Station Road feasibility study,"1,000.00",200,"1,200.00",16/11/2016
Atkins Limited,Consultants Fees,Bus Studies / Forward Programme,"1,500.00",300,"1,800.00",16/11/2016
Atkins Limited,Consultants Fees,Accident remedial schemes,"2,000.00",400,"2,400.00",16/11/2016
Atkins Limited,Consultants Fees,Cycling schemes,"2,000.00",400,"2,400.00",16/11/2016
Atkins Limited,Consultants Fees,20mph zones,"3,000.00",600,"3,600.00",16/11/2016
Atkins Limited,Consultants Fees,Bus Priority Schemes,"4,500.00",900,"5,400.00",16/11/2016
Atkins Limited,Consultants Fees,Local Transport Fund schemes,"5,500.00","1,100.00","6,600.00",16/11/2016
Atkins Limited,Consultants Fees,Legible London signing,"5,650.00","1,130.00","6,780.00",17/11/2016
Atkins Limited,Consultants Fees,Parking Management Schemes,"6,330.32","1,266.06","7,596.38",29/11/2016
Atkins Limited,Consultants Fees,Parking Management Schemes,"9,227.71","1,845.54","11,073.25",29/11/2016
Atkins Limited,Consultants Fees,Parking Management Schemes,"10,262.38","2,052.48","12,314.86",29/11/2016
Atkins Limited,Consultants Fees,Accident remedial schemes,"-5,650.00","-1,130.00","-6,780.00",20/12/2016
Atkins Limited,Consultants Fees,Accident remedial schemes,"5,650.00","1,130.00","6,780.00",20/12/2016
ATS Carpets & Furnishings,Social Services Clients - Other Payments,Asylum Client Expenditure,"1,200.00",0,"1,200.00",14/10/2016
ATS Carpets & Furniture,Social Services Clients - Other Payments,Leaving Care Placements,748,149.6,897.6,12/12/2016
Autism Consultants Ltd,Day Care Payments,Personalisation - LD,"3,828.00",0,"3,828.00",31/10/2016
Autism Consultants Ltd,Day Care Payments,Personalisation - LD,"2,784.00",0,"2,784.00",30/11/2016
Autism Consultants Ltd,Day Care Payments,Personalisation - LD,"3,828.00",0,"3,828.00",23/12/2016
Autism Wessex,Residential Placements,Long Term Team - LD,"4,242.79",0,"4,242.79",25/10/2016
Autism Wessex,Adults & Social - Client Charges,Long Term Team - LD,-443.52,0,-443.52,25/10/2016
Autism Wessex,Residential Placements,Long Term Team - LD,"2,037.14",0,"2,037.14",25/10/2016
Autism Wessex,Residential Placements,Long Term Team - LD,"1,971.43",0,"1,971.43",25/11/2016
Autism Wessex,Adults & Social - Client Charges,Long Term Team - LD,-429.21,0,-429.21,25/11/2016
Autism Wessex,Residential Placements,Long Term Team - LD,"4,105.93",0,"4,105.93",25/11/2016
Autism Wessex,Residential Placements,Long Term Team - LD,"2,037.15",0,"2,037.15",20/12/2016
Autism Wessex,Adults & Social - Client Charges,Long Term Team - LD,-443.52,0,-443.52,20/12/2016
Autism Wessex,Residential Placements,Long Term Team - LD,"4,242.80",0,"4,242.80",20/12/2016
AVCO Systems Ltd,"Computer Software, Purchase and Maintenance",Other Strategic School Support,"3,250.00",650,"3,900.00",07/12/2016
Avery Healthcare,Adults & Social - Client Charges,Long Term Team - OP,-578.81,0,-578.81,28/10/2016
Avery Healthcare,Recovery of Costs (External - Non Vatable),Long Term Team - OP,"-7,176.78",0,"-7,176.78",28/10/2016
Avery Healthcare,Nursing Care,Long Term Team - OP,"3,100.00",0,"3,100.00",28/10/2016
Avery Healthcare,Adults & Social - Client Charges,Long Term Team - OP,-816.5,0,-816.5,28/10/2016
Avery Healthcare,Nursing Care,Long Term Team - OP,"1,390.79",0,"1,390.79",28/10/2016
Avery Healthcare,Adults & Social - Client Charges,Long Term Team - OP,-562.43,0,-562.43,28/10/2016
Avery Healthcare,Nursing Care,Long Term Team - OP,"2,933.75",0,"2,933.75",28/10/2016
Avery Healthcare,Recovery of Costs (External - Non Vatable),Long Term Team - OP,-691.96,0,-691.96,28/10/2016
Avery Healthcare,Adults & Social - Client Charges,Long Term Team - OP,"-1,120.16",0,"-1,120.16",28/10/2016
Avery Healthcare,Recovery of Costs (External - Non Vatable),Long Term Team - OP,-691.96,0,-691.96,28/10/2016
Avery Healthcare,Nursing Care,Long Term Team - OP,"2,933.75",0,"2,933.75",28/10/2016
Avery Healthcare,Adults & Social - Client Charges,Long Term Team - OP,-923.93,0,-923.93,28/10/2016
Avery Healthcare,Nursing Care,Long Term Team - OP,"1,364.00",0,"1,364.00",28/10/2016
Avery Healthcare,Residential Placements,Long Term Team - OP,"1,996.40",0,"1,996.40",28/10/2016
Avery Healthcare,Adults & Social - Client Charges,Long Term Team - OP,-578.81,0,-578.81,28/10/2016
Avery Healthcare,Adults & Social - Client Charges,Long Term Team - OP,-578.81,0,-578.81,28/10/2016
Avery Healthcare,Residential Placements,Long Term Team - OP,"2,037.14",0,"2,037.14",28/10/2016
Avery Healthcare,Adults & Social - Client Charges,Long Term Team - OP,-578.81,0,-578.81,28/10/2016
Avery Healthcare,Residential Placements,Long Term Team - OP,"2,063.71",0,"2,063.71",28/10/2016
Avery Healthcare,Adults & Social - Client Charges,Long Term Team - OP,-578.81,0,-578.81,28/10/2016
Avery Healthcare,Residential Placements,Long Term Team - OP,"2,063.71",0,"2,063.71",28/10/2016
Avery Healthcare,Adults & Social - Client Charges,Long Term Team - OP,-578.81,0,-578.81,28/10/2016
Avery Healthcare,Residential Placements,Long Term Team - OP,"2,063.71",0,"2,063.71",28/10/2016
Avery Healthcare,Adults & Social - Client Charges,Long Term Team - OP,-716.9,0,-716.9,28/10/2016
Avery Healthcare,Recovery of Costs (External - Non Vatable),Long Term Team - OP,-691.96,0,-691.96,28/10/2016
Avery Healthcare,Nursing Care,Long Term Team - OP,"2,933.75",0,"2,933.75",28/10/2016
Avery Healthcare,Adults & Social - Client Charges,Long Term Team - OP,-759.99,0,-759.99,28/10/2016
Avery Healthcare,Nursing Care,Long Term Team - OP,"2,982.47",0,"2,982.47",28/10/2016
Avery Healthcare,Recovery of Costs (External - Non Vatable),Long Term Team - OP,-691.96,0,-691.96,28/10/2016
Avery Healthcare,Nursing Care,Long Term Team - OP,"2,907.18",0,"2,907.18",28/10/2016
Avery Healthcare,Recovery of Costs (External - Non Vatable),Long Term Team - OP,-691.96,0,-691.96,28/10/2016
Avery Healthcare,Adults & Social - Client Charges,Long Term Team - OP,-679.92,0,-679.92,28/10/2016
Avery Healthcare,Nursing Care,Long Term Team - OP,"2,939.95",0,"2,939.95",28/10/2016
Avery Healthcare,Recovery of Costs (External - Non Vatable),Long Term Team - OP,-691.96,0,-691.96,28/10/2016
Avery Healthcare,Adults & Social - Client Charges,Long Term Team - OP,-682.66,0,-682.66,28/10/2016
Avery Healthcare,Adults & Social - Client Charges,Long Term Team - OP,-658.71,0,-658.71,28/10/2016
Avery Healthcare,Nursing Care,Long Term Team - OP,"2,933.75",0,"2,933.75",28/10/2016
Avery Healthcare,Recovery of Costs (External - Non Vatable),Long Term Team - OP,-691.96,0,-691.96,28/10/2016
Avery Healthcare,Nursing Care,Long Term Team - OP,"3,295.96",0,"3,295.96",28/10/2016
Avery Healthcare,Recovery of Costs (External - Non Vatable),Long Term Team - OP,-691.96,0,-691.96,28/10/2016
Avery Healthcare,Nursing Care,Long Term Team - OP,-367.13,0,-367.13,28/10/2016
Avery Healthcare,Adults & Social - Client Charges,Long Term Team - OP,-578.81,0,-578.81,28/10/2016
Avery Healthcare,Recovery of Costs (External - Non Vatable),Long Term Team - OP,-691.96,0,-691.96,28/10/2016
Avery Healthcare,Nursing Care,Long Term Team - OP,"2,933.75",0,"2,933.75",28/10/2016
Avery Healthcare,Adults & Social - Client Charges,Long Term Team - OP,-578.81,0,-578.81,28/10/2016
Avery Healthcare,Nursing Care,Long Term Team - OP,"2,933.75",0,"2,933.75",28/10/2016
Avery Healthcare,Recovery of Costs (External - Non Vatable),Long Term Team - OP,-691.96,0,-691.96,28/10/2016
Avery Healthcare,Adults & Social - Client Charges,Long Term Team - OP,-578.81,0,-578.81,28/10/2016
Avery Healthcare,Adults & Social - Client Charges,Long Term Team - OP,-578.81,0,-578.81,28/10/2016
Avery Healthcare,Nursing Care,Long Term Team - OP,"2,933.75",0,"2,933.75",28/10/2016
Avery Healthcare,Recovery of Costs (External - Non Vatable),Long Term Team - OP,-691.96,0,-691.96,28/10/2016
Avery Healthcare,Adults & Social - Client Charges,Long Term Team - OP,-562.65,0,-562.65,28/10/2016
Avery Healthcare,Nursing Care,Long Term Team - OP,"2,933.75",0,"2,933.75",28/10/2016
Avery Healthcare,Recovery of Costs (External - Non Vatable),Long Term Team - OP,-691.96,0,-691.96,28/10/2016
Avery Healthcare,Nursing Care,Long Term Team - OP,"2,982.47",0,"2,982.47",28/10/2016
Avery Healthcare,Adults & Social - Client Charges,Long Term Team - OP,-578.81,0,-578.81,28/10/2016
Avery Healthcare,Recovery of Costs (External - Non Vatable),Long Term Team - OP,-691.96,0,-691.96,28/10/2016
Avery Healthcare,Recovery of Costs (External - Non Vatable),Long Term Team - OP,-691.96,0,-691.96,28/10/2016
Avery Healthcare,Nursing Care,Long Term Team - OP,"3,022.32",0,"3,022.32",28/10/2016
Avery Healthcare,Adults & Social - Client Charges,Long Term Team - OP,-617.3,0,-617.3,28/10/2016
Avery Healthcare,Residential Placements,Long Term Team - OP,"2,391.43",0,"2,391.43",28/10/2016
Avery Healthcare,Adults & Social - Client Charges,Long Term Team - OP,-630.14,0,-630.14,28/10/2016
Avery Healthcare,Residential Placements,Long Term Team - OP,"2,391.43",0,"2,391.43",28/10/2016
Avery Healthcare,Adults & Social - Client Charges,Long Term Team - OP,-578.81,0,-578.81,28/10/2016
Avery Healthcare,Adults & Social - Client Charges,Long Term Team - OP,-578.81,0,-578.81,28/10/2016
Avery Healthcare,Residential Placements,Long Term Team - OP,"2,391.43",0,"2,391.43",28/10/2016
Avery Healthcare,Adults & Social - Client Charges,Long Term Team - OP,-563.36,0,-563.36,28/10/2016
Avery Healthcare,Recovery of Costs (External - Non Vatable),Long Term Team - OP,-691.96,0,-691.96,28/10/2016
Avery Healthcare,Nursing Care,Long Term Team - OP,"3,074.54",0,"3,074.54",28/10/2016
Avery Healthcare,Residential Placements,Long Term Team - OP,"2,391.43",0,"2,391.43",28/10/2016
Avery Healthcare,Adults & Social - Client Charges,Long Term Team - OP,-569.96,0,-569.96,28/10/2016
Avery Healthcare,Nursing Care,Long Term Team - OP,"3,295.96",0,"3,295.96",28/10/2016
Avery Healthcare,Recovery of Costs (External - Non Vatable),Long Term Team - OP,-691.96,0,-691.96,28/10/2016
Avery Healthcare,Adults & Social - Client Charges,Long Term Team - OP,-578.81,0,-578.81,28/10/2016
Avery Healthcare,Respite Costs,Long Term Team - OP,"4,607.15",0,"4,607.15",28/10/2016
Avery Healthcare,Adults & Social - Client Charges,Long Term Team - OP,-513.72,0,-513.72,28/10/2016
Avery Healthcare,Recovery of Costs (External - Non Vatable),Long Term Team - OP,-625,0,-625,28/10/2016
Avery Healthcare,Nursing Care,Long Term Team - OP,"-1,607.14",0,"-1,607.14",28/10/2016
Avery Healthcare,Adults & Social - Client Charges,Long Term Team - OP,280.07,0,280.07,28/10/2016
Avery Healthcare,Residential Placements,Long Term Team - OP,"2,170.00",0,"2,170.00",28/10/2016
Avery Healthcare,Recovery of Costs (External - Non Vatable),Long Term Team - OP,-691.96,0,-691.96,28/10/2016
Avery Healthcare,Nursing Care,Long Term Team - OP,"2,933.75",0,"2,933.75",28/10/2016
Avery Healthcare,Recovery of Costs (External - Non Vatable),Long Term Team - OP,-691.96,0,-691.96,28/10/2016
Avery Healthcare,Nursing Care,Long Term Team - OP,"2,933.75",0,"2,933.75",28/10/2016
Avery Healthcare,Recovery of Costs (External - Non Vatable),Long Term Team - OP,-691.96,0,-691.96,28/10/2016
Avery Healthcare,Nursing Care,Long Term Team - OP,"2,990.88",0,"2,990.88",28/10/2016
Avery Healthcare,Nursing Care,Long Term Team - OP,"2,995.75",0,"2,995.75",28/10/2016
Avery Healthcare,Recovery of Costs (External - Non Vatable),Long Term Team - OP,-691.96,0,-691.96,28/10/2016
Avery Healthcare,Adults & Social - Client Charges,Long Term Team - OP,280.07,0,280.07,28/10/2016
Avery Healthcare,Respite Costs,Long Term Team - OP,"4,300.00",0,"4,300.00",28/10/2016
Avery Healthcare,Residential Placements,Long Term Team - OP,"-1,500.00",0,"-1,500.00",28/10/2016
Avery Healthcare,Adults & Social - Client Charges,Long Term Team - OP,-683.21,0,-683.21,28/10/2016
Avery Healthcare,Recovery of Costs (External - Non Vatable),Long Term Team - OP,-691.96,0,-691.96,28/10/2016
Avery Healthcare,Adults & Social - Client Charges,Long Term Team - OP,-537.85,0,-537.85,28/10/2016
Avery Healthcare,Nursing Care,Long Term Team - OP,"3,982.39",0,"3,982.39",28/10/2016
Avery Healthcare,Recovery of Costs (External - Non Vatable),Long Term Team - OP,-691.96,0,-691.96,28/10/2016
Avery Healthcare,Nursing Care,Long Term Team - OP,"4,181.68",0,"4,181.68",28/10/2016
Avery Healthcare,Adults & Social - Client Charges,Long Term Team - OP,"1,064.27",0,"1,064.27",28/10/2016
Avery Healthcare,Respite Costs,Long Term Team - OP,"12,321.43",0,"12,321.43",28/10/2016
Avery Healthcare,Residential Placements,Long Term Team - OP,"-6,107.14",0,"-6,107.14",28/10/2016
Avery Healthcare,Adults & Social - Client Charges,Long Term Team - OP,"-2,074.93",0,"-2,074.93",28/10/2016
Avery Healthcare,Nursing Care,Long Term Team - OP,"3,885.72",0,"3,885.72",28/10/2016
Avery Healthcare,Nursing Care,Long Term Team - OP,"8,832.00",0,"8,832.00",28/10/2016
Avery Healthcare,Nursing Care,Long Term Team - OP,-743.49,0,-743.49,28/10/2016
Avery Healthcare,Recovery of Costs (External - Non Vatable),Long Term Team - OP,-714.28,0,-714.28,28/10/2016
Avery Healthcare,Adults & Social - Client Charges,Long Term Team - OP,-674.92,0,-674.92,28/10/2016
Avery Healthcare,Nursing Care,Long Term Team - OP,"14,215.71",0,"14,215.71",28/10/2016
Avery Healthcare,Adults & Social - Client Charges,Long Term Team - OP,-790.16,0,-790.16,25/11/2016
Avery Healthcare,Nursing Care,Long Term Team - OP,"1,345.93",0,"1,345.93",25/11/2016
Avery Healthcare,Adults & Social - Client Charges,Long Term Team - OP,-544.29,0,-544.29,25/11/2016
Avery Healthcare,Nursing Care,Long Term Team - OP,"2,839.11",0,"2,839.11",25/11/2016
Avery Healthcare,Recovery of Costs (External - Non Vatable),Long Term Team - OP,-669.64,0,-669.64,25/11/2016
Avery Healthcare,Adults & Social - Client Charges,Long Term Team - OP,"-1,084.03",0,"-1,084.03",25/11/2016
Avery Healthcare,Adults & Social - Client Charges,Long Term Team - OP,-894.13,0,-894.13,25/11/2016
Avery Healthcare,Recovery of Costs (External - Non Vatable),Long Term Team - OP,-669.64,0,-669.64,25/11/2016
Avery Healthcare,Nursing Care,Long Term Team - OP,"2,839.11",0,"2,839.11",25/11/2016
Avery Healthcare,Nursing Care,Long Term Team - OP,"1,320.00",0,"1,320.00",25/11/2016
Avery Healthcare,Residential Placements,Long Term Team - OP,"1,932.00",0,"1,932.00",25/11/2016
Avery Healthcare,Adults & Social - Client Charges,Long Term Team - OP,-560.14,0,-560.14,25/11/2016
Avery Healthcare,Adults & Social - Client Charges,Long Term Team - OP,-560.14,0,-560.14,25/11/2016
Avery Healthcare,Residential Placements,Long Term Team - OP,"1,971.43",0,"1,971.43",25/11/2016
Avery Healthcare,Adults & Social - Client Charges,Long Term Team - OP,-560.14,0,-560.14,25/11/2016
Avery Healthcare,Residential Placements,Long Term Team - OP,"1,997.14",0,"1,997.14",25/11/2016
Avery Healthcare,Adults & Social - Client Charges,Long Term Team - OP,-560.14,0,-560.14,25/11/2016
Avery Healthcare,Residential Placements,Long Term Team - OP,"1,997.14",0,"1,997.14",25/11/2016
Avery Healthcare,Adults & Social - Client Charges,Long Term Team - OP,-560.14,0,-560.14,25/11/2016
Avery Healthcare,Residential Placements,Long Term Team - OP,"1,997.14",0,"1,997.14",25/11/2016
Avery Healthcare,Adults & Social - Client Charges,Long Term Team - OP,-693.77,0,-693.77,25/11/2016
Avery Healthcare,Recovery of Costs (External - Non Vatable),Long Term Team - OP,-669.64,0,-669.64,25/11/2016
Avery Healthcare,Nursing Care,Long Term Team - OP,"2,839.11",0,"2,839.11",25/11/2016
Avery Healthcare,Adults & Social - Client Charges,Long Term Team - OP,-735.47,0,-735.47,25/11/2016
Avery Healthcare,Nursing Care,Long Term Team - OP,"2,886.26",0,"2,886.26",25/11/2016
Avery Healthcare,Recovery of Costs (External - Non Vatable),Long Term Team - OP,-669.64,0,-669.64,25/11/2016
Avery Healthcare,Nursing Care,Long Term Team - OP,"2,845.11",0,"2,845.11",25/11/2016
Avery Healthcare,Recovery of Costs (External - Non Vatable),Long Term Team - OP,-669.64,0,-669.64,25/11/2016
Avery Healthcare,Adults & Social - Client Charges,Long Term Team - OP,-692.4,0,-692.4,25/11/2016
Avery Healthcare,Adults & Social - Client Charges,Long Term Team - OP,-657.99,0,-657.99,25/11/2016
Avery Healthcare,Recovery of Costs (External - Non Vatable),Long Term Team - OP,-669.64,0,-669.64,25/11/2016
Avery Healthcare,Nursing Care,Long Term Team - OP,"2,813.40",0,"2,813.40",25/11/2016
Avery Healthcare,Adults & Social - Client Charges,Long Term Team - OP,-637.46,0,-637.46,25/11/2016
Avery Healthcare,Nursing Care,Long Term Team - OP,"2,839.11",0,"2,839.11",25/11/2016
Avery Healthcare,Recovery of Costs (External - Non Vatable),Long Term Team - OP,-669.64,0,-669.64,25/11/2016
Avery Healthcare,Nursing Care,Long Term Team - OP,"3,189.64",0,"3,189.64",25/11/2016
Avery Healthcare,Recovery of Costs (External - Non Vatable),Long Term Team - OP,-669.64,0,-669.64,25/11/2016
Avery Healthcare,Nursing Care,Long Term Team - OP,-355.29,0,-355.29,25/11/2016
Avery Healthcare,Adults & Social - Client Charges,Long Term Team - OP,-560.14,0,-560.14,25/11/2016
Avery Healthcare,Adults & Social - Client Charges,Long Term Team - OP,-560.14,0,-560.14,25/11/2016
Avery Healthcare,Nursing Care,Long Term Team - OP,"2,839.11",0,"2,839.11",25/11/2016
Avery Healthcare,Recovery of Costs (External - Non Vatable),Long Term Team - OP,-669.64,0,-669.64,25/11/2016
Avery Healthcare,Nursing Care,Long Term Team - OP,"2,839.11",0,"2,839.11",25/11/2016
Avery Healthcare,Recovery of Costs (External - Non Vatable),Long Term Team - OP,-669.64,0,-669.64,25/11/2016
Avery Healthcare,Adults & Social - Client Charges,Long Term Team - OP,-560.14,0,-560.14,25/11/2016
Avery Healthcare,Recovery of Costs (External - Non Vatable),Long Term Team - OP,-669.64,0,-669.64,25/11/2016
Avery Healthcare,Nursing Care,Long Term Team - OP,"2,839.11",0,"2,839.11",25/11/2016
Avery Healthcare,Adults & Social - Client Charges,Long Term Team - OP,-560.14,0,-560.14,25/11/2016
Avery Healthcare,Adults & Social - Client Charges,Long Term Team - OP,-544.5,0,-544.5,25/11/2016
Avery Healthcare,Nursing Care,Long Term Team - OP,"2,839.11",0,"2,839.11",25/11/2016
Avery Healthcare,Recovery of Costs (External - Non Vatable),Long Term Team - OP,-669.64,0,-669.64,25/11/2016
Avery Healthcare,Nursing Care,Long Term Team - OP,"3,642.86",0,"3,642.86",25/11/2016
Avery Healthcare,Nursing Care,Long Term Team - OP,-697.03,0,-697.03,25/11/2016
Avery Healthcare,Recovery of Costs (External - Non Vatable),Long Term Team - OP,-669.64,0,-669.64,25/11/2016
Avery Healthcare,Adults & Social - Client Charges,Long Term Team - OP,-632.74,0,-632.74,25/11/2016
Avery Healthcare,Nursing Care,Long Term Team - OP,"2,886.26",0,"2,886.26",25/11/2016
Avery Healthcare,Recovery of Costs (External - Non Vatable),Long Term Team - OP,-669.64,0,-669.64,25/11/2016
Avery Healthcare,Adults & Social - Client Charges,Long Term Team - OP,-560.14,0,-560.14,25/11/2016
Avery Healthcare,Adults & Social - Client Charges,Long Term Team - OP,-597.39,0,-597.39,25/11/2016
Avery Healthcare,Nursing Care,Long Term Team - OP,"2,924.83",0,"2,924.83",25/11/2016
Avery Healthcare,Recovery of Costs (External - Non Vatable),Long Term Team - OP,-669.64,0,-669.64,25/11/2016
Avery Healthcare,Adults & Social - Client Charges,Long Term Team - OP,-609.81,0,-609.81,25/11/2016
Avery Healthcare,Residential Placements,Long Term Team - OP,"2,314.29",0,"2,314.29",25/11/2016
Avery Healthcare,Adults & Social - Client Charges,Long Term Team - OP,-560.14,0,-560.14,25/11/2016
Avery Healthcare,Residential Placements,Long Term Team - OP,"2,314.29",0,"2,314.29",25/11/2016
Avery Healthcare,Adults & Social - Client Charges,Long Term Team - OP,-560.14,0,-560.14,25/11/2016
Avery Healthcare,Residential Placements,Long Term Team - OP,"2,314.29",0,"2,314.29",25/11/2016
Avery Healthcare,Recovery of Costs (External - Non Vatable),Long Term Team - OP,-669.64,0,-669.64,25/11/2016
Avery Healthcare,Adults & Social - Client Charges,Long Term Team - OP,-545.19,0,-545.19,25/11/2016
Avery Healthcare,Nursing Care,Long Term Team - OP,"2,975.36",0,"2,975.36",25/11/2016
Avery Healthcare,Adults & Social - Client Charges,Long Term Team - OP,-551.57,0,-551.57,25/11/2016
Avery Healthcare,Residential Placements,Long Term Team - OP,"2,314.29",0,"2,314.29",25/11/2016
Avery Healthcare,Nursing Care,Long Term Team - OP,"3,000.00",0,"3,000.00",25/11/2016
Avery Healthcare,Recovery of Costs (External - Non Vatable),Long Term Team - OP,-669.64,0,-669.64,25/11/2016
Avery Healthcare,Adults & Social - Client Charges,Long Term Team - OP,-560.14,0,-560.14,25/11/2016
Avery Healthcare,Adults & Social - Client Charges,Long Term Team - OP,-560.14,0,-560.14,25/11/2016
Avery Healthcare,Recovery of Costs (External - Non Vatable),Long Term Team - OP,-669.64,0,-669.64,25/11/2016
Avery Healthcare,Nursing Care,Long Term Team - OP,"3,189.64",0,"3,189.64",25/11/2016
Avery Healthcare,Residential Placements,Long Term Team - OP,"2,100.00",0,"2,100.00",25/11/2016
Avery Healthcare,Nursing Care,Long Term Team - OP,"2,839.11",0,"2,839.11",25/11/2016
Avery Healthcare,Recovery of Costs (External - Non Vatable),Long Term Team - OP,-669.64,0,-669.64,25/11/2016
Avery Healthcare,Recovery of Costs (External - Non Vatable),Long Term Team - OP,-669.64,0,-669.64,25/11/2016
Avery Healthcare,Nursing Care,Long Term Team - OP,"2,839.11",0,"2,839.11",25/11/2016
Avery Healthcare,Nursing Care,Long Term Team - OP,"2,894.40",0,"2,894.40",25/11/2016
Avery Healthcare,Recovery of Costs (External - Non Vatable),Long Term Team - OP,-669.64,0,-669.64,25/11/2016
Avery Healthcare,Nursing Care,Long Term Team - OP,"2,899.11",0,"2,899.11",25/11/2016
Avery Healthcare,Recovery of Costs (External - Non Vatable),Long Term Team - OP,-669.64,0,-669.64,25/11/2016
Avery Healthcare,Adults & Social - Client Charges,Long Term Team - OP,-520.5,0,-520.5,25/11/2016
Avery Healthcare,Recovery of Costs (External - Non Vatable),Long Term Team - OP,-669.64,0,-669.64,25/11/2016
Avery Healthcare,Nursing Care,Long Term Team - OP,"3,853.93",0,"3,853.93",25/11/2016
Avery Healthcare,Recovery of Costs (External - Non Vatable),Long Term Team - OP,-669.64,0,-669.64,25/11/2016
Avery Healthcare,Nursing Care,Long Term Team - OP,"4,046.79",0,"4,046.79",25/11/2016
Avery Healthcare,Nursing Care,Long Term Team - OP,"13,757.14",0,"13,757.14",25/11/2016
Avery Healthcare,Adults & Social - Client Charges,Long Term Team - OP,-816.49,0,-816.49,21/12/2016
Avery Healthcare,Nursing Care,Long Term Team - OP,"2,933.75",0,"2,933.75",21/12/2016
Avery Healthcare,Recovery of Costs (External - Non Vatable),Long Term Team - OP,-691.97,0,-691.97,21/12/2016
Avery Healthcare,Adults & Social - Client Charges,Long Term Team - OP,"-1,717.77",0,"-1,717.77",21/12/2016
Avery Healthcare,Adults & Social - Client Charges,Long Term Team - OP,-562.43,0,-562.43,21/12/2016
Avery Healthcare,Nursing Care,Long Term Team - OP,"1,390.80",0,"1,390.80",21/12/2016
Avery Healthcare,Adults & Social - Client Charges,Long Term Team - OP,"-1,120.17",0,"-1,120.17",21/12/2016
Avery Healthcare,Recovery of Costs (External - Non Vatable),Long Term Team - OP,-691.97,0,-691.97,21/12/2016
Avery Healthcare,Nursing Care,Long Term Team - OP,"2,933.75",0,"2,933.75",21/12/2016
Avery Healthcare,Nursing Care,Long Term Team - OP,"2,933.75",0,"2,933.75",21/12/2016
Avery Healthcare,Recovery of Costs (External - Non Vatable),Long Term Team - OP,-691.97,0,-691.97,21/12/2016
Avery Healthcare,Adults & Social - Client Charges,Long Term Team - OP,-923.94,0,-923.94,21/12/2016
Avery Healthcare,Nursing Care,Long Term Team - OP,"1,364.00",0,"1,364.00",21/12/2016
Avery Healthcare,Residential Placements,Long Term Team - OP,"1,996.40",0,"1,996.40",21/12/2016
Avery Healthcare,Adults & Social - Client Charges,Long Term Team - OP,-578.82,0,-578.82,21/12/2016
Avery Healthcare,Adults & Social - Client Charges,Long Term Team - OP,-578.82,0,-578.82,21/12/2016
Avery Healthcare,Residential Placements,Long Term Team - OP,"2,037.15",0,"2,037.15",21/12/2016
Avery Healthcare,Adults & Social - Client Charges,Long Term Team - OP,-578.82,0,-578.82,21/12/2016
Avery Healthcare,Residential Placements,Long Term Team - OP,"2,063.72",0,"2,063.72",21/12/2016
Avery Healthcare,Adults & Social - Client Charges,Long Term Team - OP,-578.82,0,-578.82,21/12/2016
Avery Healthcare,Residential Placements,Long Term Team - OP,"2,063.72",0,"2,063.72",21/12/2016
Avery Healthcare,Adults & Social - Client Charges,Long Term Team - OP,-578.82,0,-578.82,21/12/2016
Avery Healthcare,Residential Placements,Long Term Team - OP,"2,063.72",0,"2,063.72",21/12/2016
Avery Healthcare,Nursing Care,Long Term Team - OP,"2,933.75",0,"2,933.75",21/12/2016
Avery Healthcare,Adults & Social - Client Charges,Long Term Team - OP,-716.89,0,-716.89,21/12/2016
Avery Healthcare,Recovery of Costs (External - Non Vatable),Long Term Team - OP,-691.97,0,-691.97,21/12/2016
Avery Healthcare,Recovery of Costs (External - Non Vatable),Long Term Team - OP,-691.97,0,-691.97,21/12/2016
Avery Healthcare,Nursing Care,Long Term Team - OP,"2,982.46",0,"2,982.46",21/12/2016
Avery Healthcare,Adults & Social - Client Charges,Long Term Team - OP,-759.98,0,-759.98,21/12/2016
Avery Healthcare,Adults & Social - Client Charges,Long Term Team - OP,-679.92,0,-679.92,21/12/2016
Avery Healthcare,Recovery of Costs (External - Non Vatable),Long Term Team - OP,-691.97,0,-691.97,21/12/2016
Avery Healthcare,Nursing Care,Long Term Team - OP,"2,907.18",0,"2,907.18",21/12/2016
Avery Healthcare,Adults & Social - Client Charges,Long Term Team - OP,-686.87,0,-686.87,21/12/2016
Avery Healthcare,Recovery of Costs (External - Non Vatable),Long Term Team - OP,-691.97,0,-691.97,21/12/2016
Avery Healthcare,Nursing Care,Long Term Team - OP,"2,939.95",0,"2,939.95",21/12/2016
Avery Healthcare,Adults & Social - Client Charges,Long Term Team - OP,-658.7,0,-658.7,21/12/2016
Avery Healthcare,Nursing Care,Long Term Team - OP,"2,933.75",0,"2,933.75",21/12/2016
Avery Healthcare,Recovery of Costs (External - Non Vatable),Long Term Team - OP,-691.97,0,-691.97,21/12/2016
Avery Healthcare,Nursing Care,Long Term Team - OP,"3,295.97",0,"3,295.97",21/12/2016
Avery Healthcare,Recovery of Costs (External - Non Vatable),Long Term Team - OP,-691.97,0,-691.97,21/12/2016
Avery Healthcare,Nursing Care,Long Term Team - OP,-367.13,0,-367.13,21/12/2016
Avery Healthcare,Adults & Social - Client Charges,Long Term Team - OP,-578.82,0,-578.82,21/12/2016
Avery Healthcare,Recovery of Costs (External - Non Vatable),Long Term Team - OP,-691.97,0,-691.97,21/12/2016
Avery Healthcare,Nursing Care,Long Term Team - OP,"2,933.75",0,"2,933.75",21/12/2016
Avery Healthcare,Adults & Social - Client Charges,Long Term Team - OP,-578.82,0,-578.82,21/12/2016
Avery Healthcare,Adults & Social - Client Charges,Long Term Team - OP,-578.82,0,-578.82,21/12/2016
Avery Healthcare,Nursing Care,Long Term Team - OP,"2,933.75",0,"2,933.75",21/12/2016
Avery Healthcare,Recovery of Costs (External - Non Vatable),Long Term Team - OP,-691.97,0,-691.97,21/12/2016
Avery Healthcare,Adults & Social - Client Charges,Long Term Team - OP,-578.82,0,-578.82,21/12/2016
Avery Healthcare,Recovery of Costs (External - Non Vatable),Long Term Team - OP,-691.97,0,-691.97,21/12/2016
Avery Healthcare,Nursing Care,Long Term Team - OP,"2,933.75",0,"2,933.75",21/12/2016
Avery Healthcare,Adults & Social - Client Charges,Long Term Team - OP,-562.65,0,-562.65,21/12/2016
Avery Healthcare,Nursing Care,Long Term Team - OP,"2,933.75",0,"2,933.75",21/12/2016
Avery Healthcare,Recovery of Costs (External - Non Vatable),Long Term Team - OP,-691.97,0,-691.97,21/12/2016
Avery Healthcare,Adults & Social - Client Charges,Long Term Team - OP,-653.84,0,-653.84,21/12/2016
Avery Healthcare,Recovery of Costs (External - Non Vatable),Long Term Team - OP,-691.97,0,-691.97,21/12/2016
Avery Healthcare,Nursing Care,Long Term Team - OP,-720.27,0,-720.27,21/12/2016
Avery Healthcare,Nursing Care,Long Term Team - OP,"3,764.28",0,"3,764.28",21/12/2016
Avery Healthcare,Nursing Care,Long Term Team - OP,"2,982.46",0,"2,982.46",21/12/2016
Avery Healthcare,Recovery of Costs (External - Non Vatable),Long Term Team - OP,-691.97,0,-691.97,21/12/2016
Avery Healthcare,Adults & Social - Client Charges,Long Term Team - OP,-578.82,0,-578.82,21/12/2016
Avery Healthcare,Adults & Social - Client Charges,Long Term Team - OP,-617.3,0,-617.3,21/12/2016
Avery Healthcare,Nursing Care,Long Term Team - OP,"3,022.33",0,"3,022.33",21/12/2016
Avery Healthcare,Recovery of Costs (External - Non Vatable),Long Term Team - OP,-691.97,0,-691.97,21/12/2016
Avery Healthcare,Adults & Social - Client Charges,Long Term Team - OP,-630.14,0,-630.14,21/12/2016
Avery Healthcare,Residential Placements,Long Term Team - OP,"2,391.43",0,"2,391.43",21/12/2016
Avery Healthcare,Residential Placements,Long Term Team - OP,"2,391.43",0,"2,391.43",21/12/2016
Avery Healthcare,Adults & Social - Client Charges,Long Term Team - OP,-578.82,0,-578.82,21/12/2016
Avery Healthcare,Adults & Social - Client Charges,Long Term Team - OP,-578.82,0,-578.82,21/12/2016
Avery Healthcare,Residential Placements,Long Term Team - OP,"2,391.43",0,"2,391.43",21/12/2016
Avery Healthcare,Nursing Care,Long Term Team - OP,"3,074.53",0,"3,074.53",21/12/2016
Avery Healthcare,Recovery of Costs (External - Non Vatable),Long Term Team - OP,-691.97,0,-691.97,21/12/2016
Avery Healthcare,Adults & Social - Client Charges,Long Term Team - OP,-563.36,0,-563.36,21/12/2016
Avery Healthcare,Residential Placements,Long Term Team - OP,"2,391.43",0,"2,391.43",21/12/2016
Avery Healthcare,Adults & Social - Client Charges,Long Term Team - OP,-569.95,0,-569.95,21/12/2016
Avery Healthcare,Nursing Care,Long Term Team - OP,"3,100.00",0,"3,100.00",21/12/2016
Avery Healthcare,Recovery of Costs (External - Non Vatable),Long Term Team - OP,-691.97,0,-691.97,21/12/2016
Avery Healthcare,Adults & Social - Client Charges,Long Term Team - OP,-578.82,0,-578.82,21/12/2016
Avery Healthcare,Nursing Care,Long Term Team - OP,"3,295.97",0,"3,295.97",21/12/2016
Avery Healthcare,Recovery of Costs (External - Non Vatable),Long Term Team - OP,-691.97,0,-691.97,21/12/2016
Avery Healthcare,Adults & Social - Client Charges,Long Term Team - OP,-578.82,0,-578.82,21/12/2016
Avery Healthcare,Residential Placements,Long Term Team - OP,"2,170.00",0,"2,170.00",21/12/2016
Avery Healthcare,Nursing Care,Long Term Team - OP,"2,933.75",0,"2,933.75",21/12/2016
Avery Healthcare,Recovery of Costs (External - Non Vatable),Long Term Team - OP,-691.97,0,-691.97,21/12/2016
Avery Healthcare,Nursing Care,Long Term Team - OP,"2,990.88",0,"2,990.88",21/12/2016
Avery Healthcare,Recovery of Costs (External - Non Vatable),Long Term Team - OP,-691.97,0,-691.97,21/12/2016
Avery Healthcare,Nursing Care,Long Term Team - OP,"2,995.75",0,"2,995.75",21/12/2016
Avery Healthcare,Recovery of Costs (External - Non Vatable),Long Term Team - OP,-691.97,0,-691.97,21/12/2016
Avery Healthcare,Adults & Social - Client Charges,Long Term Team - OP,-537.85,0,-537.85,21/12/2016
Avery Healthcare,Recovery of Costs (External - Non Vatable),Long Term Team - OP,-691.97,0,-691.97,21/12/2016
Avery Healthcare,Nursing Care,Long Term Team - OP,"3,982.40",0,"3,982.40",21/12/2016
Avery Healthcare,Recovery of Costs (External - Non Vatable),Long Term Team - OP,-691.97,0,-691.97,21/12/2016
Avery Healthcare,Nursing Care,Long Term Team - OP,"4,181.68",0,"4,181.68",21/12/2016
Avery Healthcare,Adults & Social - Client Charges,Long Term Team - OP,-379.26,0,-379.26,21/12/2016
Avery Healthcare,Nursing Care,Long Term Team - OP,"-7,731.43",0,"-7,731.43",21/12/2016
Avery Healthcare,Nursing Care,Long Term Team - OP,"19,328.57",0,"19,328.57",21/12/2016
Avery Healthcare,Adults & Social - Client Charges,Long Term Team - OP,"-1,034.36",0,"-1,034.36",21/12/2016
Avery Healthcare,Nursing Care,Long Term Team - OP,"14,215.72",0,"14,215.72",21/12/2016
Avery Healthcare,Residential Placements,Long Term Team - PD,"1,660.71",0,"1,660.71",28/10/2016
Avery Healthcare,Recovery of Costs (External - Non Vatable),Long Term Team - PD,-691.96,0,-691.96,28/10/2016
Avery Healthcare,Nursing Care,Long Term Team - PD,"2,933.75",0,"2,933.75",28/10/2016
Avery Healthcare,Residential Placements,Long Term Team - PD,"1,607.14",0,"1,607.14",25/11/2016
Avery Healthcare,Nursing Care,Long Term Team - PD,"2,839.11",0,"2,839.11",25/11/2016
Avery Healthcare,Recovery of Costs (External - Non Vatable),Long Term Team - PD,-669.64,0,-669.64,25/11/2016
Avery Healthcare,Residential Placements,Long Term Team - PD,"1,660.72",0,"1,660.72",21/12/2016
Avery Healthcare,Recovery of Costs (External - Non Vatable),Long Term Team - PD,-691.97,0,-691.97,21/12/2016
Avery Healthcare,Nursing Care,Long Term Team - PD,"2,933.75",0,"2,933.75",21/12/2016
AVI Contracts Ltd,Landlord Repairs Exit Costs,Corporate Accomodation,"42,500.37","8,500.07","51,000.44",15/12/2016
AVON ESTATES,Accommodation,Housing Needs,"3,600.00",0,"3,600.00",21/12/2016
Ayer Associates Limited,Consultants Fees,Contracts Management,"1,500.00",300,"1,800.00",03/10/2016
Ayer Associates Limited,Consultants Fees,TFM,"5,900.00","1,180.00","7,080.00",21/12/2016
Ayer Associates Limited,Consultants Fees,Corporate Accomodation,"5,982.00","1,196.40","7,178.40",04/10/2016
Ayer Associates Limited,Consultants Fees,Corporate Accomodation,"7,290.00","1,458.00","8,748.00",04/10/2016
Ayer Associates Limited,Consultants Fees,Hatch End,"1,320.00",264,"1,584.00",06/10/2016
Ayer Associates Limited,Building Maintenance Exit Costs,Eastcote Lane,"2,890.00",578,"3,468.00",19/10/2016
Ayer Associates Limited,Consultants Fees,Hatch End,"6,576.25","1,315.25","7,891.50",19/10/2016
Ayer Associates Limited,Consultants Fees,Corporate Accomodation,933.33,186.67,"1,120.00",21/10/2016
Ayer Associates Limited,Consultants Fees,Harrow Weald,933.33,186.67,"1,120.00",21/10/2016
Ayer Associates Limited,Consultants Fees,Corporate Accomodation,945,189,"1,134.00",21/10/2016
Ayer Associates Limited,Consultants Fees,West Harrow,933.33,186.67,"1,120.00",24/10/2016
Ayer Associates Limited,Consultants Fees,Eastcote Lane,"9,487.58","1,897.52","11,385.10",09/11/2016
Ayer Associates Limited,Consultants Fees,Headstone Manor,750,150,900,15/11/2016
Ayer Associates Limited,Consultants Fees,Headstone Manor,"1,500.00",300,"1,800.00",29/11/2016
Ayer Associates Limited,Consultants Fees,Hatch End,"1,072.00",214.4,"1,286.40",07/12/2016
Ayer Associates Limited,Consultants Fees,Corporate Accomodation,"1,800.00",360,"2,160.00",07/12/2016
Ayer Associates Limited,Consultants Fees,Parks Infrastructure,"6,206.25","1,241.25","7,447.50",19/12/2016
Ayer Associates Limited,Consultants Fees,Bedford Hse Reconfiguration,"3,000.00",600,"3,600.00",16/12/2016
Ayerst Environmental Ltd,Building Maintenance Exit Costs,Housing Repairs,"3,300.00",660,"3,960.00",10/10/2016
Ayerst Environmental Ltd,Building Maintenance Exit Costs,Housing Repairs,900,180,"1,080.00",18/10/2016
Ayerst Environmental Ltd,Building Maintenance Exit Costs,Housing Repairs,"1,200.00",240,"1,440.00",19/10/2016
Ayerst Environmental Ltd,Building Maintenance Exit Costs,Housing Repairs,"1,500.00",300,"1,800.00",26/10/2016
Ayerst Environmental Ltd,Building Maintenance Exit Costs,Housing Repairs,600,120,720,02/11/2016
Ayerst Environmental Ltd,Building Maintenance Exit Costs,Housing Repairs,"2,400.00",480,"2,880.00",08/11/2016
Ayerst Environmental Ltd,Building Maintenance Exit Costs,Housing Repairs,"1,200.00",240,"1,440.00",09/11/2016
Ayerst Environmental Ltd,Building Maintenance Exit Costs,Housing Repairs,"1,200.00",240,"1,440.00",28/11/2016
Ayerst Environmental Ltd,Building Maintenance Exit Costs,Housing Repairs,"1,200.00",240,"1,440.00",07/12/2016
Ayerst Environmental Ltd,Building Maintenance Exit Costs,Housing Repairs,900,180,"1,080.00",19/12/2016
Ayerst Environmental Ltd,Building Maintenance Exit Costs,Housing Repairs,"1,200.00",240,"1,440.00",20/12/2016
Ayerst Environmental Ltd,Building Maintenance Exit Costs,Housing Repairs,600,120,720,23/12/2016
Ayerst Environmental Ltd,Building Maintenance Exit Costs,Housing Repairs,600,120,720,23/12/2016
Aylward Primary School,Voluntary Organisations TPP,Dsg Nursery Educ Grant 3yrs & 4yrs,"20,910.60",0,"20,910.60",26/10/2016
Aylward Primary School,Grants and Subscriptions,DSG Prov For Therapy Serv,"10,952.68",0,"10,952.68",21/12/2016
Bacon Lane Surgery,Miscellaneous Supplies & Services Cost,Harrow: Sexual Health Services,591.2,0,591.2,18/11/2016
Baltimore Consulting Group,Miscellaneous Supplies & Services Cost,Mental Health - Non Pooled/ DoLS,"1,600.00",320,"1,920.00",05/10/2016
Baltimore Consulting Group,Miscellaneous Supplies & Services Cost,Mental Health - Non Pooled/ DoLS,"1,600.00",320,"1,920.00",10/10/2016
Baltimore Consulting Group,Miscellaneous Supplies & Services Cost,Mental Health - Non Pooled/ DoLS,"1,600.00",320,"1,920.00",19/10/2016
Baltimore Consulting Group,Miscellaneous Supplies & Services Cost,Mental Health - Non Pooled/ DoLS,"3,000.00",600,"3,600.00",02/11/2016
Baltimore Consulting Group,Miscellaneous Supplies & Services Cost,Mental Health - Non Pooled/ DoLS,"1,600.00",320,"1,920.00",07/11/2016
Baltimore Consulting Group,Miscellaneous Supplies & Services Cost,Mental Health - Non Pooled/ DoLS,"1,200.00",240,"1,440.00",16/11/2016
Baltimore Consulting Group,Miscellaneous Supplies & Services Cost,Mental Health - Non Pooled/ DoLS,"1,800.00",360,"2,160.00",22/11/2016
Baltimore Consulting Group,Miscellaneous Supplies & Services Cost,Mental Health - Non Pooled/ DoLS,"1,600.00",320,"1,920.00",30/11/2016
Baltimore Consulting Group,Miscellaneous Supplies & Services Cost,Mental Health - Non Pooled/ DoLS,"1,600.00",320,"1,920.00",06/12/2016
Baltimore Consulting Group,Miscellaneous Supplies & Services Cost,Mental Health - Non Pooled/ DoLS,"3,200.00",640,"3,840.00",19/12/2016
Baltimore Consulting Group,Miscellaneous Supplies & Services Cost,Mental Health - Non Pooled/ DoLS,"1,600.00",320,"1,920.00",23/12/2016
Baltimore Consulting Group,Miscellaneous Supplies & Services Cost,Mental Health - Non Pooled/ DoLS,"1,600.00",320,"1,920.00",23/12/2016
Banking Automation Ltd,Computer Purchases,Cashiers Services,945,189,"1,134.00",23/12/2016
Banya Family Placement,Foster Payments,Childrens Placements,"2,676.51",0,"2,676.51",06/10/2016
Banya Family Placement,Foster Payments,Childrens Placements,"3,491.10",0,"3,491.10",06/10/2016
Banya Family Placement,Foster Payments,Childrens Placements,"3,607.47",0,"3,607.47",06/10/2016
Banya Family Placement,Foster Payments,Childrens Placements,"3,491.10",0,"3,491.10",06/12/2016
Banya Family Placement,Foster Payments,Childrens Placements,"3,607.47",0,"3,607.47",06/12/2016
Barbour Logic Ltd,"Computer Software, Purchase and Maintenance",Parking TPO back office,"10,000.00","2,000.00","12,000.00",12/10/2016
Barchester Healthcare Homes Ltd,Nursing Care,Interim Funding,"22,757.14",0,"22,757.14",20/12/2016
Barchester Healthcare Homes Ltd,Adults & Social - Client Charges,Interim Funding,"-4,243.45",0,"-4,243.45",20/12/2016
Barchester Healthcare Homes Ltd,Recovery of Costs (External - Non Vatable),Interim Funding,"-2,633.93",0,"-2,633.93",20/12/2016
Barnardos,Foster Payments,Childrens Placements,590,0,590,06/12/2016
Bartec Auto ID Ltd,Computer Purchases,Garden Waste,550,110,660,01/11/2016
Barton Junior School,Grants and Subscriptions,CLA Pupil Premium Grant,500,0,500,23/12/2016
Barts Health NHS Trust,Miscellaneous Supplies & Services Cost,Barnet: Sexual Health Services,"6,933.57",0,"6,933.57",10/10/2016
Barts Health NHS Trust,Miscellaneous Supplies & Services Cost,Barnet: Sexual Health Services,"6,933.57",0,"6,933.57",10/10/2016
Barts Health NHS Trust,Miscellaneous Supplies & Services Cost,Barnet: Sexual Health Services,"6,933.57",0,"6,933.57",10/10/2016
Barts Health NHS Trust,Miscellaneous Supplies & Services Cost,Barnet: Sexual Health Services,"6,933.57",0,"6,933.57",27/10/2016
Barts Health NHS Trust,Miscellaneous Supplies & Services Cost,Barnet: Sexual Health Services,"6,933.57",0,"6,933.57",29/11/2016
Barts Health NHS Trust,Miscellaneous Supplies & Services Cost,Barnet: Sexual Health Services,"6,933.57",0,"6,933.57",23/12/2016
Barts Health NHS Trust,Miscellaneous Supplies & Services Cost,Harrow: Sexual Health Services,"2,647.13",0,"2,647.13",10/10/2016
Barts Health NHS Trust,Miscellaneous Supplies & Services Cost,Harrow: Sexual Health Services,"2,647.13",0,"2,647.13",10/10/2016
Barts Health NHS Trust,Miscellaneous Supplies & Services Cost,Harrow: Sexual Health Services,"2,647.13",0,"2,647.13",10/10/2016
Barts Health NHS Trust,Miscellaneous Supplies & Services Cost,Harrow: Sexual Health Services,"-2,647.13",0,"-2,647.13",27/10/2016
Barts Health NHS Trust,Miscellaneous Supplies & Services Cost,Harrow: Sexual Health Services,"2,647.13",0,"2,647.13",27/10/2016
Barts Health NHS Trust,Miscellaneous Supplies & Services Cost,Harrow: Sexual Health Services,"2,647.13",0,"2,647.13",27/10/2016
Barts Health NHS Trust,Miscellaneous Supplies & Services Cost,Harrow: Sexual Health Services,"-2,647.13",0,"-2,647.13",29/11/2016
Barts Health NHS Trust,Miscellaneous Supplies & Services Cost,Harrow: Sexual Health Services,"2,647.13",0,"2,647.13",29/11/2016
Barts Health NHS Trust,Miscellaneous Supplies & Services Cost,Harrow: Sexual Health Services,"2,647.13",0,"2,647.13",21/12/2016
Barts Health NHS Trust,Miscellaneous Supplies & Services Cost,Harrow: Sexual Health Services,"2,647.13",0,"2,647.13",23/12/2016
Bates Wells & Braithwaite,Legal Fees/Advocacy,Harrow Arts Centre,"4,002.00",800.4,"4,802.40",01/12/2016
Bates Wells & Braithwaite,Legal Fees/Advocacy,Harrow Arts Centre,"6,148.00","1,229.60","7,377.60",01/12/2016
Bates Wells & Braithwaite,Legal Fees/Advocacy,Harrow Arts Centre,"7,887.65","1,577.53","9,465.18",01/12/2016
BAYERISCHE LANDESBANK,Interest Payments,Interest Payable (borrowing),"333,912.33",0,"333,912.33",18/10/2016
BAYERISCHE LANDESBANK,Interest Payments,Interest Payable (borrowing),"116,679.45",0,"116,679.45",01/12/2016
Beech Haven,Residential Placements,Interim Funding,"3,188.57",0,"3,188.57",25/10/2016
Beech Haven,Residential Placements,Interim Funding,"3,085.71",0,"3,085.71",25/11/2016
Beech Haven,Residential Placements,Interim Funding,"3,188.57",0,"3,188.57",20/12/2016
Beech Tree House,Residential Placements,Long Term Team - LD,"6,299.20",0,"6,299.20",25/10/2016
Beech Tree House,Residential Placements,Long Term Team - LD,"6,096.00",0,"6,096.00",25/11/2016
Beech Tree House,Residential Placements,Long Term Team - LD,"6,299.20",0,"6,299.20",20/12/2016
Bell Brush Company,Cleaning and Domestic Materials,Street Cleansing,"2,633.90",526.78,"3,160.68",12/10/2016
Bell Brush Company,Cleaning and Domestic Materials,Street Cleansing,910.21,182.04,"1,092.25",22/11/2016
Belmont Montessori Nursery ( Butter,Voluntary Organisations TPP,2 year old offer,"3,135.00",0,"3,135.00",26/10/2016
Belmont Montessori Nursery ( Butter,Voluntary Organisations TPP,Dsg Nursery Educ Grant 3yrs & 4yrs,"15,441.60",0,"15,441.60",26/10/2016
Bemrose Booth Ltd,"Equipment Lease, Purchase, Maintenance and Repair",Car Parking,"1,250.10",250.02,"1,500.12",24/11/2016
Bemrose Booth Ltd,"Equipment Lease, Purchase, Maintenance and Repair",Car Parking,"1,250.10",250.02,"1,500.12",30/11/2016
Bentley Priory Battle of Britain Tr,Meeting/conference room hire,Harrow Schools Improvement Partnership,930.5,186.1,"1,116.60",12/10/2016
Bentley Priory Battle of Britain Tr,Meeting/conference room hire,It/Sims Team,751.5,150.3,901.8,18/11/2016
Bentley Priory Battle of Britain Tr,Meeting/conference room hire,P-DSG Hill View Nursery,452.5,90.5,543,03/10/2016
Bentley Wood High School,Grants and Subscriptions,CLA Pupil Premium Grant,"1,000.00",0,"1,000.00",23/12/2016
Benwick Primary School,Grants and Subscriptions,CLA Pupil Premium Grant,500,0,500,23/12/2016
Berrymans Lace Mawer,Legal Fees/Advocacy,Liability Insurance,500,100,600,19/10/2016
Berrymans Lace Mawer,Legal Fees/Advocacy,Liability Insurance,600,120,720,19/10/2016
Berrymans Lace Mawer,Legal Fees/Advocacy,Liability Insurance,"1,273.70",254.74,"1,528.44",20/10/2016
Berrymans Lace Mawer,Legal Fees/Advocacy,Liability Insurance,"-1,268.00",-253.6,"-1,521.60",21/11/2016
Berrymans Lace Mawer,Legal Fees/Advocacy,Liability Insurance,"1,005.00",201,"1,206.00",21/11/2016
Berrymans Lace Mawer,Legal Fees/Advocacy,Liability Insurance,"1,268.00",253.6,"1,521.60",21/11/2016
Berrymans Lace Mawer,Legal Fees/Advocacy,Liability Insurance,"1,236.00",247.2,"1,483.20",23/11/2016
Berrymans Lace Mawer,Legal Fees/Advocacy,Liability Insurance,"1,268.00",253.6,"1,521.60",25/11/2016
Berrymans Lace Mawer,Legal Fees/Advocacy,Liability Insurance,"-1,268.00",-253.6,"-1,521.60",20/12/2016
Berrymans Lace Mawer,Legal Fees/Advocacy,Liability Insurance,"-1,268.00",-253.6,"-1,521.60",20/12/2016
Berrymans Lace Mawer,Legal Fees/Advocacy,Liability Insurance,"1,268.00",253.6,"1,521.60",20/12/2016
Berrymans Lace Mawer,Legal Fees/Advocacy,Liability Insurance,"1,268.00",253.6,"1,521.60",20/12/2016
Bethesdapool Procurement Limited,Consultants Fees,Procurement,"4,781.25",956.25,"5,737.50",03/10/2016
Bettercare Keys Ltd,Residential Placements,Childrens Placements,"11,142.90",0,"11,142.90",06/10/2016
Bettercare Keys Ltd,Residential Placements,Childrens Placements,"11,514.33",0,"11,514.33",06/10/2016
Bettercare Keys Ltd,Residential Placements,Childrens Placements,"11,514.33",0,"11,514.33",06/10/2016
Bettercare Keys Ltd,Residential Placements,Childrens Placements,"11,514.33",0,"11,514.33",08/11/2016
Bettercare Keys Ltd,Residential Placements,Childrens Placements,"11,142.90",0,"11,142.90",06/12/2016
Beverley F Nunnery & Co,Legal Fees/Advocacy,Barnet Council Legal Services,417.59,83.52,501.11,27/10/2016
BFS Group Ltd,Catering  - Costs and Equipment,14/15 Kenton Road,156.45,0,156.45,07/10/2016
BFS Group Ltd,Catering  - Costs and Equipment,14/15 Kenton Road,724.7,144.94,869.64,07/10/2016
BFS Group Ltd,Catering  - Costs and Equipment,14/15 Kenton Road,181.18,0,181.18,16/11/2016
BFS Group Ltd,Catering  - Costs and Equipment,14/15 Kenton Road,499.64,99.93,599.57,16/11/2016
BFS Group Ltd,Catering  - Costs and Equipment,14/15 Kenton Road,190.49,0,190.49,23/12/2016
BFS Group Ltd,Catering  - Costs and Equipment,14/15 Kenton Road,340.09,68.02,408.11,23/12/2016
BFS Group Ltd,Catering  - Costs and Equipment,Bedford House,311.47,62.29,373.76,30/11/2016
BFS Group Ltd,Catering  - Costs and Equipment,Bedford House,991.31,0,991.31,30/11/2016
BFS Group Ltd,Catering  - Costs and Equipment,Bedford House,238.21,47.64,285.85,02/12/2016
BFS Group Ltd,Catering  - Costs and Equipment,Bedford House,"1,163.50",0,"1,163.50",02/12/2016
BFS Group Ltd,Catering  - Costs and Equipment,Civic Centre Rest,90.39,18.08,108.47,22/11/2016
BFS Group Ltd,Catering  - Costs and Equipment,Civic Centre Rest,430.36,0,430.36,22/11/2016
BFS Group Ltd,Catering  - Costs and Equipment,Civic Centre Rest,253.34,50.67,304.01,22/11/2016
BFS Group Ltd,Catering  - Costs and Equipment,Civic Centre Rest,391.62,0,391.62,22/11/2016
BFS Group Ltd,Catering  - Costs and Equipment,Civic Centre Rest,190.1,38.02,228.12,22/11/2016
BFS Group Ltd,Catering  - Costs and Equipment,Civic Centre Rest,596.34,0,596.34,22/11/2016
BFS Group Ltd,Catering  - Costs and Equipment,Civic Centre Rest,253.34,50.67,304.01,22/11/2016
BFS Group Ltd,Catering  - Costs and Equipment,Civic Centre Rest,528.12,0,528.12,22/11/2016
BFS Group Ltd,Catering  - Costs and Equipment,Civic Centre Rest,327.48,65.5,392.98,22/11/2016
BFS Group Ltd,Catering  - Costs and Equipment,Civic Centre Rest,486.21,0,486.21,22/11/2016
BFS Group Ltd,Catering  - Costs and Equipment,Civic Centre Rest,248.42,49.68,298.1,22/11/2016
BFS Group Ltd,Catering  - Costs and Equipment,Civic Centre Rest,622.35,0,622.35,22/11/2016
BFS Group Ltd,Catering  - Costs and Equipment,Civic Centre Rest,321.2,64.24,385.44,22/11/2016
BFS Group Ltd,Catering  - Costs and Equipment,Civic Centre Rest,535.18,0,535.18,22/11/2016
BFS Group Ltd,Catering  - Costs and Equipment,Civic Centre Rest,245.79,49.16,294.95,22/11/2016
BFS Group Ltd,Catering  - Costs and Equipment,Civic Centre Rest,657.11,0,657.11,22/11/2016
BFS Group Ltd,Catering  - Costs and Equipment,Civic Centre Rest,355.96,71.19,427.15,22/11/2016
BFS Group Ltd,Catering  - Costs and Equipment,Civic Centre Rest,577.36,0,577.36,22/11/2016
BFS Group Ltd,Catering  - Costs and Equipment,Civic Centre Rest,374.73,74.95,449.68,22/11/2016
BFS Group Ltd,Catering  - Costs and Equipment,Civic Centre Rest,556.7,0,556.7,22/11/2016
BFS Group Ltd,Catering  - Costs and Equipment,Civic Centre Rest,333.33,66.67,400,22/11/2016
BFS Group Ltd,Catering  - Costs and Equipment,Civic Centre Rest,609.67,0,609.67,22/11/2016
BFS Group Ltd,Catering  - Costs and Equipment,Civic Centre Rest,218.24,43.65,261.89,22/11/2016
BFS Group Ltd,Catering  - Costs and Equipment,Civic Centre Rest,783.58,0,783.58,22/11/2016
BFS Group Ltd,Catering  - Costs and Equipment,Civic Centre Rest,363.3,72.66,435.96,22/11/2016
BFS Group Ltd,Catering  - Costs and Equipment,Civic Centre Rest,617.13,0,617.13,22/11/2016
BFS Group Ltd,Catering  - Costs and Equipment,Civic Centre Rest,374.11,74.82,448.93,22/11/2016
BFS Group Ltd,Catering  - Costs and Equipment,Civic Centre Rest,645.1,0,645.1,22/11/2016
BFS Group Ltd,Catering  - Costs and Equipment,Civic Centre Rest,137.99,27.6,165.59,23/11/2016
BFS Group Ltd,Catering  - Costs and Equipment,Civic Centre Rest,452.5,0,452.5,23/11/2016
BFS Group Ltd,Catering  - Costs and Equipment,Civic Centre Rest,140.87,28.17,169.04,24/11/2016
BFS Group Ltd,Catering  - Costs and Equipment,Civic Centre Rest,384.3,0,384.3,24/11/2016
BFS Group Ltd,Catering  - Costs and Equipment,Civic Centre Rest,273.47,54.69,328.16,24/11/2016
BFS Group Ltd,Catering  - Costs and Equipment,Civic Centre Rest,399.25,0,399.25,24/11/2016
BFS Group Ltd,Catering  - Costs and Equipment,Civic Centre Rest,209.52,41.9,251.42,24/11/2016
BFS Group Ltd,Catering  - Costs and Equipment,Civic Centre Rest,514.4,0,514.4,24/11/2016
BFS Group Ltd,Catering  - Costs and Equipment,Depot Canteen,47.36,9.47,56.83,08/11/2016
BFS Group Ltd,Catering  - Costs and Equipment,Depot Canteen,486.35,0,486.35,08/11/2016
BFS Group Ltd,Catering  - Costs and Equipment,Depot Canteen,304.18,0,304.18,22/11/2016
BFS Group Ltd,Catering  - Costs and Equipment,Depot Canteen,336.51,67.3,403.81,22/11/2016
BFS Interiors,Furniture Purchase and Repair,Harrow Help,965,193,"1,158.00",07/10/2016
BFS Interiors,Furniture Purchase and Repair,Harrow Help,490,98,588,07/12/2016
BHH LIFT Accomodation Services,Rents,Vaughan NRC,"27,904.23","5,580.85","33,485.08",12/10/2016
BHH LIFT Accomodation Services,Rents,Vaughan NRC,"27,904.23","5,580.85","33,485.08",01/11/2016
BHH LIFT Accomodation Services,Rents,Vaughan NRC,"27,904.23","5,580.85","33,485.08",14/11/2016
BHH LIFT Accomodation Services,Rents,Vaughan NRC,"27,904.23","5,580.85","33,485.08",13/12/2016
BHH LIFT Accomodation Services.,Rents,PFI - Neighbourhood Resource Centres,"28,529.02","5,705.80","34,234.82",12/10/2016
BHH LIFT Accomodation Services.,Rents,PFI - Neighbourhood Resource Centres,"28,529.02","5,705.80","34,234.82",11/11/2016
BHH LIFT Accomodation Services.,Rents,PFI - Neighbourhood Resource Centres,"28,529.02","5,705.80","34,234.82",13/12/2016
BHH LIFT Accomodation Services..,Rents,PFI - Neighbourhood Resource Centres,"26,689.47","5,337.89","32,027.36",12/10/2016
BHH LIFT Accomodation Services..,Rents,PFI - Neighbourhood Resource Centres,"26,689.47","5,337.89","32,027.36",11/11/2016
BHH LIFT Accomodation Services..,Rents,PFI - Neighbourhood Resource Centres,"26,689.47","5,337.89","32,027.36",16/12/2016
Bibi Badejo,Legal Fees/Advocacy,Barnet Council Legal Services,550,110,660,26/10/2016
Bibi Badejo,Legal Fees/Advocacy,Hounslow Inter Authority Agreement,"3,225.00",645,"3,870.00",21/10/2016
Bio Hygiene,Cleaning and Domestic Materials,Estates & Community Halls,848.08,169.62,"1,017.70",10/10/2016
Birch Tree House,Semi Independent,Childrens Placements,"3,033.90",0,"3,033.90",06/10/2016
Birch Tree House,Semi Independent,Childrens Placements,923.28,0,923.28,08/11/2016
Birch Tree House,Semi Independent,Childrens Placements,"3,135.03",0,"3,135.03",08/11/2016
Birch Tree House,Semi Independent,Childrens Placements,"3,330.90",0,"3,330.90",06/12/2016
Birch Tree House,Semi Independent,Childrens Placements,"3,759.30",0,"3,759.30",06/12/2016
Birch Tree House,Semi Independent,Leaving Care Placements,"2,411.10",0,"2,411.10",06/10/2016
Birch Tree House,Semi Independent,Leaving Care Placements,"2,491.47",0,"2,491.47",08/11/2016
Birch Tree House,Semi Independent,Leaving Care Placements,"2,411.10",0,"2,411.10",06/12/2016
BKSB Ltd,Leases of Computer Equipment (ICT),Adult Skills Budget,"1,218.00",243.6,"1,461.60",21/11/2016
Black & White Fire Safety Ltd,Landlord Repairs Exit Costs,Cyclical Maintenance,"1,155.00",231,"1,386.00",26/10/2016
Black & White Fire Safety Ltd,Landlord Repairs Exit Costs,Cyclical Maintenance,"1,355.00",271,"1,626.00",26/10/2016
Black & White Fire Safety Ltd,Landlord Repairs Exit Costs,Cyclical Maintenance,"4,679.75",935.95,"5,615.70",26/10/2016
Black & White Fire Safety Ltd,Landlord Repairs Exit Costs,Cyclical Maintenance,"1,661.00",332.2,"1,993.20",28/11/2016
Black & White Fire Safety Ltd,Landlord Repairs Exit Costs,Cyclical Maintenance,600,120,720,19/12/2016
Black & White Fire Safety Ltd,Landlord Repairs Exit Costs,Cyclical Maintenance,480,96,576,20/12/2016
Black & White Fire Safety Ltd,Landlord Repairs Exit Costs,Cyclical Maintenance,480,96,576,20/12/2016
Black & White Fire Safety Ltd,Landlord Repairs Exit Costs,Cyclical Maintenance,510,102,612,20/12/2016
Black & White Fire Safety Ltd,Landlord Repairs Exit Costs,Cyclical Maintenance,600,120,720,20/12/2016
Black & White Fire Safety Ltd,Landlord Repairs Exit Costs,Cyclical Maintenance,840,168,"1,008.00",20/12/2016
Black & White Fire Safety Ltd,Landlord Repairs Exit Costs,Cyclical Maintenance,840,168,"1,008.00",20/12/2016
Black & White Fire Safety Ltd,Landlord Repairs Exit Costs,Cyclical Maintenance,840,168,"1,008.00",20/12/2016
Black & White Fire Safety Ltd,Landlord Repairs Exit Costs,Cyclical Maintenance,480,96,576,21/12/2016
Black & White Fire Safety Ltd,Landlord Repairs Exit Costs,Cyclical Maintenance,600,120,720,21/12/2016
Black & White Fire Safety Ltd,Landlord Repairs Exit Costs,Cyclical Maintenance,"1,255.00",251,"1,506.00",21/12/2016
Black & White Fire Safety Ltd,Landlord Repairs Exit Costs,Cyclical Maintenance,"1,983.00",396.6,"2,379.60",23/12/2016
Black & White Fire Safety Ltd,Landlord Repairs Exit Costs,Fire Alarm Panel ph 3 15-16,"2,975.00",595,"3,570.00",29/11/2016
Blackwell Hall Trustees,Miscellaneous Supplies & Services Cost,EU Referendum,720,0,720,12/12/2016
Blake Newport Associates Ltd,Legal Fees/Advocacy,Capital Team,"8,028.90","1,605.78","9,634.68",26/10/2016
Blake Newport Associates Ltd,Legal Fees/Advocacy,Capital Team,"1,490.00",298,"1,788.00",06/12/2016
Blake Newport Associates Ltd,Legal Fees/Advocacy,Capital Team,960,192,"1,152.00",23/12/2016
Blithe Computer Systems Limited,Miscellaneous Supplies & Services Cost,Barnet: Drug Misuse,"1,850.00",370,"2,220.00",03/10/2016
Blossom Park Healthcare Ltd,Residential Placements,Long Term Team - LD,"6,576.43",0,"6,576.43",25/10/2016
Blossom Park Healthcare Ltd,Adults & Social - Client Charges,Long Term Team - LD,-373.77,0,-373.77,25/10/2016
Blossom Park Healthcare Ltd,Adults & Social - Client Charges,Long Term Team - LD,-361.71,0,-361.71,25/11/2016
Blossom Park Healthcare Ltd,Residential Placements,Long Term Team - LD,"6,364.29",0,"6,364.29",25/11/2016
Blossom Park Healthcare Ltd,Residential Placements,Long Term Team - LD,"6,576.43",0,"6,576.43",20/12/2016
Blossom Park Healthcare Ltd,Adults & Social - Client Charges,Long Term Team - LD,-373.77,0,-373.77,20/12/2016
Blue Butterfly Montessori,Voluntary Organisations TPP,Dsg Nursery Educ Grant 3yrs & 4yrs,"7,853.40",0,"7,853.40",26/10/2016
Bluebird Care - ISF,Social Care Personal Budgets,Personalisation - LD,726,0,726,18/10/2016
Bluebird Care - ISF,Social Care Personal Budgets,Personalisation - LD,762.32,0,762.32,18/10/2016
Bluebird Care - ISF,Social Care Personal Budgets,Personalisation - LD,726,0,726,18/11/2016
Bluebird Care - ISF,Social Care Personal Budgets,Personalisation - LD,726,0,726,19/12/2016
Bluebird Care - ISF,Social Care Personal Budgets,Personalisation - OP,562.24,0,562.24,18/10/2016
Bluebird Care - ISF,Social Care Personal Budgets,Personalisation - OP,849.16,0,849.16,18/10/2016
Bluebird Care - ISF,Social Care Personal Budgets,Personalisation - OP,871.2,0,871.2,18/10/2016
Bluebird Care - ISF,Social Care Personal Budgets,Personalisation - OP,"1,352.00",0,"1,352.00",18/10/2016
Bluebird Care - ISF,Social Care Personal Budgets,Personalisation - OP,"1,524.60",0,"1,524.60",18/10/2016
Bluebird Care - ISF,Social Care Personal Budgets,Personalisation - OP,"-1,213.09",0,"-1,213.09",18/11/2016
Bluebird Care - ISF,Social Care Personal Budgets,Personalisation - OP,562.24,0,562.24,18/11/2016
Bluebird Care - ISF,Social Care Personal Budgets,Personalisation - OP,"1,167.65",0,"1,167.65",18/11/2016
Bluebird Care - ISF,Social Care Personal Budgets,Personalisation - OP,"1,352.00",0,"1,352.00",18/11/2016
Bluebird Care - ISF,Social Care Personal Budgets,Personalisation - OP,"1,524.60",0,"1,524.60",18/11/2016
Bluebird Care - ISF,Social Care Personal Budgets,Personalisation - OP,"2,468.40",0,"2,468.40",18/11/2016
Bluebird Care - ISF,Social Care Personal Budgets,Personalisation - OP,562.24,0,562.24,19/12/2016
Bluebird Care - ISF,Social Care Personal Budgets,Personalisation - OP,"1,016.40",0,"1,016.40",19/12/2016
Bluebird Care - ISF,Social Care Personal Budgets,Personalisation - OP,"1,040.60",0,"1,040.60",19/12/2016
Bluebird Care - ISF,Social Care Personal Budgets,Personalisation - OP,"1,352.00",0,"1,352.00",19/12/2016
Bluebird Care (Harrow),Domiciliary Care,Personalisation - OP,"1,738.32",0,"1,738.32",17/10/2016
Bluebird Care (Harrow),Domiciliary Care,Personalisation - OP,819.16,0,819.16,31/10/2016
Bluebird Care (Harrow),Domiciliary Care,Personalisation - OP,830.5,0,830.5,31/10/2016
Bluebird Care (Harrow),Domiciliary Care,Personalisation - OP,819.16,0,819.16,15/11/2016
Bluebird Care (Harrow),Domiciliary Care,Personalisation - OP,"1,638.32",0,"1,638.32",12/12/2016
Bluefrontier,Private Contractors for Back Office Services,Business & Commercial Team,"4,500.00",900,"5,400.00",26/10/2016
Bluefrontier,Private Contractors for Back Office Services,Business & Commercial Team,"1,500.00",300,"1,800.00",28/11/2016
Bluefrontier,Private Contractors for Back Office Services,WEB Team,"1,641.00",328.2,"1,969.20",05/12/2016
Bluefrontier,Private Contractors for Back Office Services,WEB Team,"1,641.00",328.2,"1,969.20",05/12/2016
Bluefrontier,Private Contractors for Back Office Services,WEB Team,"1,641.00",328.2,"1,969.20",05/12/2016
Bluefrontier,Private Contractors for Back Office Services,WEB Team,"1,040.00",208,"1,248.00",23/12/2016
BMR Construction Ltd,Building Maintenance Exit Costs,Parks & Open Spaces Imp. Programme,"8,829.26","1,765.85","10,595.11",28/10/2016
BMR Construction Ltd,Building Maintenance Exit Costs,Corporate Accomodation,"11,306.71","2,261.34","13,568.05",10/11/2016
BMR Construction Ltd,Building Maintenance Exit Costs,Corporate Accomodation,"15,823.35","3,164.67","18,988.02",10/11/2016
BMR Construction Ltd,Building Maintenance Exit Costs,Parks Infrastructure,"34,044.53","6,808.91","40,853.44",12/12/2016
BMR Construction Ltd,Building Maintenance Exit Costs,Parks Infrastructure,"35,883.83","7,176.77","43,060.60",21/12/2016
BMR Construction Ltd,Building Maintenance Exit Costs,Corporate Accomodation,"5,325.55","1,065.11","6,390.66",23/12/2016
BNP Paribas,Consultants Fees,Development Control,"1,565.00",313,"1,878.00",05/10/2016
BNP Paribas,Consultants Fees,Development Control,"1,000.00",200,"1,200.00",07/10/2016
BNP Paribas,Consultants Fees,Development Control,"4,250.00",850,"5,100.00",28/10/2016
BNP Paribas,Consultants Fees,Development Control,550,110,660,01/11/2016
BNP Paribas,Consultants Fees,Development Control,"5,750.00","1,150.00","6,900.00",14/12/2016
Boots UK Limited,Miscellaneous Supplies & Services Cost,Barnet: Drug Misuse,555,0,555,06/10/2016
Bottomline Technologies Ltd,"Computer Software, Purchase and Maintenance",ERP Team,"2,099.75",419.95,"2,519.70",19/10/2016
Boys & Girls Nursery,Voluntary Organisations TPP,2 year old offer,"3,080.00",0,"3,080.00",26/10/2016
Boys & Girls Nursery,Voluntary Organisations TPP,Dsg Nursery Educ Grant 3yrs & 4yrs,"26,233.20",0,"26,233.20",26/10/2016
Bradcode Ltd Re Sage Holdings Ltd,Other Professional Fees,North Harrow Library,674.73,0,674.73,13/10/2016
Bradcode Ltd Re Sage Holdings Ltd,Other Professional Fees,North Harrow Library,"1,604.31",0,"1,604.31",13/10/2016
Bradcode Ltd Re Sage Holdings Ltd,Other Professional Fees,North Harrow Library,"1,696.06",0,"1,696.06",13/10/2016
Bradcode Ltd Re Sage Holdings Ltd,Other Professional Fees,North Harrow Library,"2,878.27",0,"2,878.27",13/10/2016
Bradcode Ltd Re Sage Holdings Ltd,Other Professional Fees,North Harrow Library,"3,501.86",0,"3,501.86",13/10/2016
Brahmin Society North London,Grants and Subscriptions,Voluntary Org Grants,"2,000.00",0,"2,000.00",13/12/2016
Brake Bros Foodservice Ltd,Catering  - Costs and Equipment,Harrow Arts Centre,"3,158.00",631.6,"3,789.60",19/12/2016
Brake Bros Foodservice Ltd,Other Professional Fees,Harrow Museum,469.16,0,469.16,12/10/2016
Brake Bros Foodservice Ltd,Other Professional Fees,Harrow Museum,"1,275.27",255.05,"1,530.32",12/10/2016
Brake Bros Foodservice Ltd,Other Professional Fees,Harrow Museum,320.53,0,320.53,12/10/2016
Brake Bros Foodservice Ltd,Other Professional Fees,Harrow Museum,"1,592.17",318.43,"1,910.60",12/10/2016
Brake Bros Foodservice Ltd,Other Professional Fees,Harrow Museum,228.8,0,228.8,20/12/2016
Brake Bros Foodservice Ltd,Other Professional Fees,Harrow Museum,632.54,126.51,759.05,20/12/2016
Brake Bros Foodservice Ltd,Other Professional Fees,Harrow Museum,282.48,0,282.48,20/12/2016
Brake Bros Foodservice Ltd,Other Professional Fees,Harrow Museum,685.03,137.01,822.04,20/12/2016
Brake Bros Foodservice Ltd,Other Professional Fees,Harrow Museum,238.97,47.79,286.76,21/12/2016
Brake Bros Foodservice Ltd,Other Professional Fees,Harrow Museum,293.51,0,293.51,21/12/2016
Brambles,Adults & Social - Client Charges,Long Term Team - LD,-443.52,0,-443.52,25/10/2016
Brambles,Residential Placements,Long Term Team - LD,"3,630.06",0,"3,630.06",25/10/2016
Brambles,Adults & Social - Client Charges,Long Term Team - LD,-429.21,0,-429.21,25/11/2016
Brambles,Residential Placements,Long Term Team - LD,"3,512.96",0,"3,512.96",25/11/2016
Brambles,Adults & Social - Client Charges,Long Term Team - LD,-443.52,0,-443.52,20/12/2016
Brambles,Residential Placements,Long Term Team - LD,"3,630.05",0,"3,630.05",20/12/2016
Brancaster Care Homes Ltd,Residential Placements,Long Term Team - OP,"3,892.71",0,"3,892.71",26/10/2016
Brancaster Care Homes Ltd,Residential Placements,Long Term Team - OP,"3,767.14",0,"3,767.14",24/11/2016
Brancaster Care Homes Ltd,Residential Placements,Long Term Team - OP,"3,892.72",0,"3,892.72",21/12/2016
Brandon Centre for Counselling &,"Counselling, Therapy",Commissioning Contracts,"30,000.00",0,"30,000.00",16/11/2016
Bredon School 2002 Ltd,Residential Schools,Ind & Non Maint Res Sch,"10,585.00",0,"10,585.00",14/11/2016
Bredon School 2002 Ltd,Residential Schools,Ind & Non Maint Res Sch,"1,800.00",0,"1,800.00",02/12/2016
Brent Council,Adoption Allowances,Adoption Support,"9,900.00",0,"9,900.00",02/11/2016
Brent Council,Other Agencies/Local Authorities 3rd Party Payment,Personalisation 3 Care Management,"1,500.00",0,"1,500.00",21/12/2016
Brent Council,Other Agencies/Local Authorities 3rd Party Payment,Trading Standards,"312,500.00",0,"312,500.00",21/11/2016
Bridge Networks Ltd,Landlord Repairs Exit Costs,Corporate Accomodation,971,194.2,"1,165.20",28/11/2016
Bridging Gaps Fostering Agency,Foster Payments,Childrens Placements,540,0,540,08/11/2016
Bridging Gaps Fostering Agency,Foster Payments,Childrens Placements,540,0,540,08/11/2016
Bridging Gaps Fostering Agency,Foster Payments,Childrens Placements,540,0,540,08/11/2016
Bridging Gaps Fostering Agency,Foster Payments,Childrens Placements,540,0,540,08/11/2016
Bridging Gaps Fostering Agency,Foster Payments,Childrens Placements,540,0,540,08/11/2016
Bright Futures Care Ltd,Residential Placements,Childrens Placements,"23,228.56",0,"23,228.56",06/10/2016
Bright Futures Care Ltd,Residential Schools,Ind Residential Day School Placement,"14,562.45",0,"14,562.45",31/10/2016
Bright Kidz Pre-School Ltd,Voluntary Organisations TPP,Dsg Nursery Educ Grant 3yrs & 4yrs,"8,121.30",0,"8,121.30",26/10/2016
Bright Start Day Care,Voluntary Organisations TPP,2 year old offer,"7,425.00",0,"7,425.00",26/10/2016
Bright Start Day Care,Voluntary Organisations TPP,Dsg Nursery Educ Grant 3yrs & 4yrs,"10,306.80",0,"10,306.80",26/10/2016
Bright Start Daycare Stanmore,Voluntary Organisations TPP,2 year old offer,"2,887.50",0,"2,887.50",26/10/2016
Bright Start Daycare Stanmore,Voluntary Organisations TPP,Dsg Nursery Educ Grant 3yrs & 4yrs,"5,132.40",0,"5,132.40",26/10/2016
British Red Cross,Staff training (General),Community Engagement,599,119.8,718.8,24/11/2016
British Red Cross,Staff training (General),Shared Lives,560,112,672,27/10/2016
Broadview Priory,Residential Schools,Ind & Non Maint Res Sch,"60,000.00",0,"60,000.00",14/12/2016
Brook House (Barchester Healthcare),Nursing Care,Long Term Team - PD,"4,408.02",0,"4,408.02",25/10/2016
Brook House (Barchester Healthcare),Adults & Social - Client Charges,Long Term Team - PD,-373.77,0,-373.77,25/10/2016
Brook House (Barchester Healthcare),Recovery of Costs (External - Non Vatable),Long Term Team - PD,-691.96,0,-691.96,25/10/2016
Brook House (Barchester Healthcare),Adults & Social - Client Charges,Long Term Team - PD,-361.71,0,-361.71,25/11/2016
Brook House (Barchester Healthcare),Recovery of Costs (External - Non Vatable),Long Term Team - PD,-669.64,0,-669.64,25/11/2016
Brook House (Barchester Healthcare),Nursing Care,Long Term Team - PD,"4,265.83",0,"4,265.83",25/11/2016
Brook House (Barchester Healthcare),Recovery of Costs (External - Non Vatable),Long Term Team - PD,-691.97,0,-691.97,20/12/2016
Brook House (Barchester Healthcare),Adults & Social - Client Charges,Long Term Team - PD,-373.77,0,-373.77,20/12/2016
Brook House (Barchester Healthcare),Nursing Care,Long Term Team - PD,"4,408.03",0,"4,408.03",20/12/2016
BROOKSWAY LTD,Accommodation,Housing Needs,"3,000.00",0,"3,000.00",21/12/2016
Browne Jacobson Client Account,Other Agencies/Local Authorities 3rd Party Payment,Liability Insurance,637,0,637,23/12/2016
Browne Jacobson LLP,Legal Fees/Advocacy,Liability Insurance,"1,494.00",298.8,"1,792.80",23/11/2016
Browne Jacobson LLP,Legal Fees/Advocacy,Liability Insurance,"2,224.00",444.8,"2,668.80",23/11/2016
Browne Jacobson LLP,Legal Fees/Advocacy,Liability Insurance,255,0,255,08/12/2016
Browne Jacobson LLP,Legal Fees/Advocacy,Liability Insurance,"1,711.00",342.2,"2,053.20",08/12/2016
Browne Jacobson LLP,Legal Fees/Advocacy,Liability Insurance,"-1,966.00",-393.2,"-2,359.20",20/12/2016
Browne Jacobson LLP,Legal Fees/Advocacy,Liability Insurance,"1,966.00",393.2,"2,359.20",20/12/2016
Brunel University London,Miscellaneous Supplies & Services Cost,Academy of Public Health,"21,513.66",0,"21,513.66",21/12/2016
Brunswick Park Medical Practice,Miscellaneous Supplies & Services Cost,Barnet: Health Check Programme,525,0,525,24/11/2016
Brunswick Park Medical Practice,Miscellaneous Supplies & Services Cost,Barnet: Health Check Programme,600,0,600,24/11/2016
BT,"Equipment Lease, Purchase, Maintenance and Repair",Procurement Bt,"9,752.23","1,950.45","11,702.68",30/11/2016
BT,"Equipment Lease, Purchase, Maintenance and Repair",Procurement Bt,"9,954.90","1,990.98","11,945.88",30/11/2016
BT Business Direct,Computer Purchases,It/Sims Team,24.17,4.83,29,02/11/2016
BT Business Direct,"Computer Software, Purchase and Maintenance",It/Sims Team,78.15,15.63,93.78,02/11/2016
BT Business Direct,Computer Purchases,It/Sims Team,476,95.2,571.2,02/11/2016
BT OpenReach,"Equipment Lease, Purchase, Maintenance and Repair",Harrow Arts Centre,634.58,126.92,761.5,24/10/2016
Bt Plc,Other Professional Fees,Station Road Imp - GLA funding,"2,179.80",435.96,"2,615.76",26/10/2016
Bt Plc,Other Professional Fees,Station Road Imp - GLA funding,"27,097.52","5,419.50","32,517.02",21/12/2016
BT Redcare,"Equipment Lease, Purchase, Maintenance and Repair",Closed Circuit TV Management,"18,034.00","3,606.80","21,640.80",31/10/2016
Bubar Montessori Nursery,Voluntary Organisations TPP,Dsg Nursery Educ Grant 3yrs & 4yrs,"4,252.50",0,"4,252.50",26/10/2016
Bubsy Pre-School,Voluntary Organisations TPP,2 year old offer,"4,042.50",0,"4,042.50",26/10/2016
Bubsy Pre-School,Voluntary Organisations TPP,2 year old offer,"5,115.00",0,"5,115.00",26/10/2016
Bubsy Pre-School,Voluntary Organisations TPP,Dsg Nursery Educ Grant 3yrs & 4yrs,"1,419.30",0,"1,419.30",26/10/2016
Bubsy Pre-School,Voluntary Organisations TPP,Dsg Nursery Educ Grant 3yrs & 4yrs,"1,761.90",0,"1,761.90",26/10/2016
Bubsy Pre-School,Other Agencies/Local Authorities 3rd Party Payment,Inclusion Funding,"1,000.00",0,"1,000.00",29/11/2016
Buckingham Montessori School,Voluntary Organisations TPP,2 year old offer,"9,240.00",0,"9,240.00",26/10/2016
Buckingham Montessori School,Voluntary Organisations TPP,Dsg Nursery Educ Grant 3yrs & 4yrs,"17,748.00",0,"17,748.00",26/10/2016
Buckingham Preparatory Nursery,Other Agencies/Local Authorities 3rd Party Payment,Inclusion Funding,"1,000.00",0,"1,000.00",08/11/2016
Buckinghamshire County Council,Other Professional Fees,HR - Organisational Development,"19,916.00","3,983.20","23,899.20",05/10/2016
Buckinghamshire County Council,Other Professional Fees,HR - Organisational Development,"79,664.00","15,932.80","95,596.80",05/10/2016
Buckinghamshire County Council,Other Professional Fees,HR - Organisational Development,"19,916.00","3,983.20","23,899.20",31/10/2016
Buckinghamshire County Council,Other Professional Fees,HR - Organisational Development,"19,916.00","3,983.20","23,899.20",13/12/2016
Buckinghamshire County Council,Other Professional Fees,HR - Organisational Development,"19,916.00","3,983.20","23,899.20",23/12/2016
Bupa Care Homes,Nursing Care,Interim Funding,"4,871.43",0,"4,871.43",25/10/2016
Bupa Care Homes,Nursing Care,Interim Funding,"4,714.29",0,"4,714.29",25/11/2016
Bupa Care Homes,Nursing Care,Interim Funding,628.57,0,628.57,20/12/2016
Bupa Care Homes,Residential Placements,Long Term Team - OP,"2,056.27",0,"2,056.27",25/10/2016
Bupa Care Homes,Adults & Social - Client Charges,Long Term Team - OP,-609.24,0,-609.24,25/10/2016
Bupa Care Homes,Adults & Social - Client Charges,Long Term Team - OP,-589.59,0,-589.59,25/11/2016
Bupa Care Homes,Residential Placements,Long Term Team - OP,"1,989.94",0,"1,989.94",25/11/2016
Bupa Care Homes,Residential Placements,Long Term Team - OP,"2,056.28",0,"2,056.28",20/12/2016
Bupa Care Homes,Adults & Social - Client Charges,Long Term Team - OP,-609.24,0,-609.24,20/12/2016
Bupa Care Homes,Nursing Care,Long Term Team - OP,518.68,0,518.68,03/10/2016
Bupa Care Homes,Nursing Care,Long Term Team - OP,"3,017.19",0,"3,017.19",25/10/2016
Bupa Care Homes,Recovery of Costs (External - Non Vatable),Long Term Team - OP,-691.96,0,-691.96,25/10/2016
Bupa Care Homes,Adults & Social - Client Charges,Long Term Team - OP,-527.71,0,-527.71,25/10/2016
Bupa Care Homes,Nursing Care,Long Term Team - OP,"2,919.86",0,"2,919.86",25/11/2016
Bupa Care Homes,Recovery of Costs (External - Non Vatable),Long Term Team - OP,-669.64,0,-669.64,25/11/2016
Bupa Care Homes,Adults & Social - Client Charges,Long Term Team - OP,-510.69,0,-510.69,25/11/2016
Bupa Care Homes,Nursing Care,Long Term Team - OP,"3,017.18",0,"3,017.18",20/12/2016
Bupa Care Homes,Recovery of Costs (External - Non Vatable),Long Term Team - OP,-691.97,0,-691.97,20/12/2016
Bupa Care Homes,Adults & Social - Client Charges,Long Term Team - OP,-527.71,0,-527.71,20/12/2016
Bupa Care Homes,Nursing Care,Long Term Team - OP,543.77,0,543.77,03/10/2016
Bupa Care Homes,Adults & Social - Client Charges,Long Term Team - OP,-740.68,0,-740.68,25/10/2016
Bupa Care Homes,Recovery of Costs (External - Non Vatable),Long Term Team - OP,-691.96,0,-691.96,25/10/2016
Bupa Care Homes,Nursing Care,Long Term Team - OP,"3,163.06",0,"3,163.06",25/10/2016
Bupa Care Homes,Recovery of Costs (External - Non Vatable),Long Term Team - OP,-691.96,0,-691.96,25/10/2016
Bupa Care Homes,Nursing Care,Long Term Team - OP,"3,061.03",0,"3,061.03",25/11/2016
Bupa Care Homes,Recovery of Costs (External - Non Vatable),Long Term Team - OP,-669.64,0,-669.64,25/11/2016
Bupa Care Homes,Adults & Social - Client Charges,Long Term Team - OP,-880.92,0,-880.92,25/11/2016
Bupa Care Homes,Recovery of Costs (External - Non Vatable),Long Term Team - OP,-669.64,0,-669.64,25/11/2016
Bupa Care Homes,Recovery of Costs (External - Non Vatable),Long Term Team - OP,-89.29,0,-89.29,20/12/2016
Bupa Care Homes,Nursing Care,Long Term Team - OP,"3,163.07",0,"3,163.07",20/12/2016
Bupa Care Homes,Recovery of Costs (External - Non Vatable),Long Term Team - OP,-691.97,0,-691.97,20/12/2016
Bupa Care Homes,Adults & Social - Client Charges,Long Term Team - OP,-762.43,0,-762.43,20/12/2016
Bupa Care Homes,Nursing Care,Long Term Team - PD,840.23,0,840.23,03/10/2016
Bupa Care Homes,Recovery of Costs (External - Non Vatable),Long Term Team - PD,-691.96,0,-691.96,26/10/2016
Bupa Care Homes,Nursing Care,Long Term Team - PD,"4,887.37",0,"4,887.37",26/10/2016
Bupa Care Homes,Adults & Social - Client Charges,Long Term Team - PD,-373.99,0,-373.99,26/10/2016
Bupa Care Homes,Recovery of Costs (External - Non Vatable),Long Term Team - PD,-669.64,0,-669.64,24/11/2016
Bupa Care Homes,Nursing Care,Long Term Team - PD,"4,729.71",0,"4,729.71",24/11/2016
Bupa Care Homes,Adults & Social - Client Charges,Long Term Team - PD,-361.93,0,-361.93,24/11/2016
Bupa Care Homes,Adults & Social - Client Charges,Long Term Team - PD,-374,0,-374,21/12/2016
Bupa Care Homes,Nursing Care,Long Term Team - PD,"4,887.37",0,"4,887.37",21/12/2016
Bupa Care Homes,Recovery of Costs (External - Non Vatable),Long Term Team - PD,-691.97,0,-691.97,21/12/2016
Bushey Academy,Other Professional Fees,Dsg Outborough Placement-Fees,"1,250.00",0,"1,250.00",16/11/2016
Bushey House Beaumont,Residential Placements,Long Term Team - OP,"2,063.71",0,"2,063.71",25/10/2016
Bushey House Beaumont,Adults & Social - Client Charges,Long Term Team - OP,-576.07,0,-576.07,25/10/2016
Bushey House Beaumont,Adults & Social - Client Charges,Long Term Team - OP,-557.49,0,-557.49,25/11/2016
Bushey House Beaumont,Residential Placements,Long Term Team - OP,"1,997.14",0,"1,997.14",25/11/2016
Bushey House Beaumont,Adults & Social - Client Charges,Long Term Team - OP,-576.07,0,-576.07,20/12/2016
Bushey House Beaumont,Residential Placements,Long Term Team - OP,"2,063.72",0,"2,063.72",20/12/2016
Bushey Meads School,Residential Schools,Dsg Outborough Placement-Fees,"3,750.00",0,"3,750.00",12/10/2016
Busy Bees Pre-School,Voluntary Organisations TPP,2 year old offer,"4,207.50",0,"4,207.50",26/10/2016
Buttress,Consultants Fees,Headstone Manor Museum HLF,"12,890.96","2,578.19","15,469.15",21/10/2016
Buttress,Consultants Fees,Headstone Manor Museum HLF,"12,890.96","2,578.19","15,469.15",26/10/2016
Buzy Bees Montessori School,Voluntary Organisations TPP,2 year old offer,"10,664.50",0,"10,664.50",26/10/2016
Buzy Bees Montessori School,Voluntary Organisations TPP,Dsg Nursery Educ Grant 3yrs & 4yrs,"9,265.20",0,"9,265.20",26/10/2016
BuzyBees Montessori School,Section 17,Children Looked After Team 1,"1,855.00",0,"1,855.00",07/12/2016
By The Bridge,Foster Payments,Childrens Placements,"4,598.57",0,"4,598.57",06/10/2016
By The Bridge,Foster Payments,Childrens Placements,"4,751.86",0,"4,751.86",08/11/2016
By The Bridge,Foster Payments,Childrens Placements,"7,026.71",0,"7,026.71",06/12/2016
Byjama Ltd,Private Contractors for Back Office Services,Business & Commercial Team,"8,062.50","1,612.50","9,675.00",07/11/2016
BYRON COURT PRIMARY SCHOOL,Grants and Subscriptions,CLA Pupil Premium Grant,"1,500.00",0,"1,500.00",23/12/2016
C & K Healthcare Ltd,Residential Placements,Long Term Team - OP,"2,391.43",0,"2,391.43",25/10/2016
C & K Healthcare Ltd,Adults & Social - Client Charges,Long Term Team - OP,-636.16,0,-636.16,25/10/2016
C & K Healthcare Ltd,Adults & Social - Client Charges,Long Term Team - OP,-574.39,0,-574.39,25/10/2016
C & K Healthcare Ltd,Residential Placements,Long Term Team - OP,"2,347.14",0,"2,347.14",25/10/2016
C & K Healthcare Ltd,Adults & Social - Client Charges,Long Term Team - OP,-615.64,0,-615.64,25/11/2016
C & K Healthcare Ltd,Residential Placements,Long Term Team - OP,"2,314.29",0,"2,314.29",25/11/2016
C & K Healthcare Ltd,Residential Placements,Long Term Team - OP,"2,271.43",0,"2,271.43",25/11/2016
C & K Healthcare Ltd,Adults & Social - Client Charges,Long Term Team - OP,-555.86,0,-555.86,25/11/2016
C & K Healthcare Ltd,Adults & Social - Client Charges,Long Term Team - OP,-636.17,0,-636.17,20/12/2016
C & K Healthcare Ltd,Residential Placements,Long Term Team - OP,"2,391.43",0,"2,391.43",20/12/2016
C & K Healthcare Ltd,Adults & Social - Client Charges,Long Term Team - OP,-574.38,0,-574.38,20/12/2016
C & K Healthcare Ltd,Residential Placements,Long Term Team - OP,"2,347.15",0,"2,347.15",20/12/2016
Callcredit Limited,Grants and Subscriptions,Tenant Services,"4,500.00",900,"5,400.00",23/12/2016
CALM Training Services,Consultants Fees,In House Provided Services Management,865,173,"1,038.00",05/10/2016
CALM Training Services,Consultants Fees,In House Provided Services Management,865,173,"1,038.00",12/10/2016
CALM Training Services,Consultants Fees,In House Provided Services Management,865,173,"1,038.00",12/10/2016
CALM Training Services,Consultants Fees,In House Provided Services Management,865,173,"1,038.00",19/10/2016
Cambian Asperger Syndrome Services,Residential Schools,Ind & Non Maint Res Sch,"45,273.51",0,"45,273.51",10/10/2016
Cambian Autism Services Ltd,Residential Schools,Ind & Non Maint Res Sch,"48,965.16",0,"48,965.16",01/11/2016
Cambian Autism Services Ltd,Residential Schools,Ind & Non Maint Res Sch,"57,960.00",0,"57,960.00",01/11/2016
Cambian Childcare Ltd,Residential Placements,Long Term Team - LD,"2,037.14",0,"2,037.14",25/10/2016
Cambian Childcare Ltd,Adults & Social - Client Charges,Long Term Team - LD,-443.52,0,-443.52,25/10/2016
Cambian Childcare Ltd,Residential Placements,Long Term Team - LD,"3,372.80",0,"3,372.80",25/10/2016
Cambian Childcare Ltd,Residential Placements,Long Term Team - LD,"1,971.43",0,"1,971.43",25/11/2016
Cambian Childcare Ltd,Adults & Social - Client Charges,Long Term Team - LD,-429.21,0,-429.21,25/11/2016
Cambian Childcare Ltd,Residential Placements,Long Term Team - LD,"3,264.00",0,"3,264.00",25/11/2016
Cambian Childcare Ltd,Residential Placements,Long Term Team - LD,"2,037.15",0,"2,037.15",20/12/2016
Cambian Childcare Ltd,Adults & Social - Client Charges,Long Term Team - LD,-443.52,0,-443.52,20/12/2016
Cambian Childcare Ltd,Residential Placements,Long Term Team - LD,"3,372.80",0,"3,372.80",20/12/2016
Cameron Makenzie Bathrooms by Desig,Landlord Repairs Exit Costs,DFG,"5,150.00",0,"5,150.00",01/11/2016
Cameron Makenzie Bathrooms by Desig,Landlord Repairs Exit Costs,DFG,"5,800.00",0,"5,800.00",14/11/2016
Cameron Makenzie Bathrooms by Desig,Landlord Repairs Exit Costs,DFG,"7,300.00",0,"7,300.00",30/11/2016
Cameron Makenzie Bathrooms by Desig,Landlord Repairs Exit Costs,DFG,"6,700.00",0,"6,700.00",16/12/2016
Camphill Devon Community Ltd,Residential Placements,Long Term Team - LD,"2,110.04",0,"2,110.04",25/10/2016
Camphill Devon Community Ltd,Adults & Social - Client Charges,Long Term Team - LD,-356.28,0,-356.28,25/10/2016
Camphill Devon Community Ltd,Adults & Social - Client Charges,Long Term Team - LD,-344.79,0,-344.79,25/11/2016
Camphill Devon Community Ltd,Residential Placements,Long Term Team - LD,"2,041.97",0,"2,041.97",25/11/2016
Camphill Devon Community Ltd,Residential Placements,Long Term Team - LD,"2,110.03",0,"2,110.03",20/12/2016
Camphill Devon Community Ltd,Adults & Social - Client Charges,Long Term Team - LD,-356.28,0,-356.28,20/12/2016
CANDLE COURT NURSING HOME,Nursing Care,Long Term Team - OP,"-1,607.15",0,"-1,607.15",24/10/2016
CANDLE COURT NURSING HOME,Nursing Care,Long Term Team - OP,"3,214.28",0,"3,214.28",24/10/2016
CANDLE COURT NURSING HOME,Adults & Social - Client Charges,Long Term Team - OP,-620.87,0,-620.87,24/10/2016
CANDLE COURT NURSING HOME,Recovery of Costs (External - Non Vatable),Long Term Team - OP,-669.65,0,-669.65,24/10/2016
CANDLE COURT NURSING HOME,Nursing Care,Long Term Team - OP,"3,403.93",0,"3,403.93",24/10/2016
CANDLE COURT NURSING HOME,Nursing Care,Long Term Team - OP,"3,805.55",0,"3,805.55",24/10/2016
CANDLE COURT NURSING HOME,Recovery of Costs (External - Non Vatable),Long Term Team - OP,-669.65,0,-669.65,24/10/2016
CANDLE COURT NURSING HOME,Nursing Care,Long Term Team - OP,"4,551.43",0,"4,551.43",24/10/2016
CANDLE COURT NURSING HOME,Nursing Care,Long Term Team - OP,"-1,660.71",0,"-1,660.71",17/11/2016
CANDLE COURT NURSING HOME,Nursing Care,Long Term Team - OP,"3,321.43",0,"3,321.43",17/11/2016
CANDLE COURT NURSING HOME,Nursing Care,Long Term Team - OP,"3,517.39",0,"3,517.39",17/11/2016
CANDLE COURT NURSING HOME,Recovery of Costs (External - Non Vatable),Long Term Team - OP,-691.96,0,-691.96,17/11/2016
CANDLE COURT NURSING HOME,Adults & Social - Client Charges,Long Term Team - OP,-641.57,0,-641.57,17/11/2016
CANDLE COURT NURSING HOME,Nursing Care,Long Term Team - OP,"3,932.39",0,"3,932.39",17/11/2016
CANDLE COURT NURSING HOME,Recovery of Costs (External - Non Vatable),Long Term Team - OP,-691.96,0,-691.96,17/11/2016
CANDLE COURT NURSING HOME,Nursing Care,Long Term Team - OP,"4,703.14",0,"4,703.14",17/11/2016
CANDLE COURT NURSING HOME,Nursing Care,Long Term Team - OP,"3,214.29",0,"3,214.29",21/12/2016
CANDLE COURT NURSING HOME,Nursing Care,Long Term Team - OP,"-1,607.14",0,"-1,607.14",21/12/2016
CANDLE COURT NURSING HOME,Nursing Care,Long Term Team - OP,"3,403.93",0,"3,403.93",21/12/2016
CANDLE COURT NURSING HOME,Adults & Social - Client Charges,Long Term Team - OP,-620.87,0,-620.87,21/12/2016
CANDLE COURT NURSING HOME,Recovery of Costs (External - Non Vatable),Long Term Team - OP,-669.64,0,-669.64,21/12/2016
CANDLE COURT NURSING HOME,Nursing Care,Long Term Team - OP,"3,805.54",0,"3,805.54",21/12/2016
CANDLE COURT NURSING HOME,Recovery of Costs (External - Non Vatable),Long Term Team - OP,-669.64,0,-669.64,21/12/2016
CANDLE COURT NURSING HOME,Nursing Care,Long Term Team - OP,"4,551.43",0,"4,551.43",21/12/2016
Cannon Barn Montessori School,Voluntary Organisations TPP,Dsg Nursery Educ Grant 3yrs & 4yrs,"20,391.00",0,"20,391.00",26/10/2016
Cannon Lane Pre-School,Voluntary Organisations TPP,Dsg Nursery Educ Grant 3yrs & 4yrs,"12,030.90",0,"12,030.90",26/10/2016
Canons Day Nursery,Voluntary Organisations TPP,2 year old offer,"11,550.00",0,"11,550.00",26/10/2016
Canons Day Nursery,Voluntary Organisations TPP,Dsg Nursery Educ Grant 3yrs & 4yrs,"9,821.40",0,"9,821.40",26/10/2016
Cansford Laboratories,Social Services Clients - Other Payments,Children Looked After Team 1,520,104,624,08/12/2016
Cansford Laboratories,Social Services Clients - Other Payments,CIN Team 2,879,175.8,"1,054.80",06/10/2016
Capable Communities Ltd,Miscellaneous Supplies & Services Cost,Neighbourhood Investment Scheme,"5,000.00",0,"5,000.00",15/12/2016
Capel Manor College,"Equipment Lease, Purchase, Maintenance and Repair",Community Engagement,720,0,720,06/10/2016
Capita Business Services Ltd,"Computer Software, Purchase and Maintenance",Cashiers Services,625,125,750,14/10/2016
Capita Business Services Ltd,Other Professional Fees,DSG EMS Support,"49,200.00","9,840.00","59,040.00",01/12/2016
Capita Business Services Ltd,"Computer Software, Purchase and Maintenance",It/Sims Team,220,44,264,21/10/2016
Capita Business Services Ltd,"Computer Software, Purchase and Maintenance",It/Sims Team,470,94,564,21/10/2016
Capita Business Services Ltd,"Computer Software, Purchase and Maintenance",YOS Capital Scheme,"6,500.00","1,300.00","7,800.00",14/12/2016
Capita Business Travel Ltd,Travel Expenses (Staff),Council Business Travel,"1,427.29",0,"1,427.29",26/10/2016
Capita Business Travel Ltd,Travel Expenses (Staff),Council Business Travel,"1,867.13",0,"1,867.13",28/11/2016
Capita Business Travel-Hotels,Travel Expenses (Staff),Council Business Travel,546.42,109.28,655.7,14/10/2016
Capita Business Travel-Hotels,Travel Expenses (Staff),Council Business Travel,789.3,0,789.3,07/11/2016
Capita Business Travel-Hotels,Travel Expenses (Staff),Council Business Travel,820.5,164.1,984.6,07/11/2016
Capita Business Travel-Hotels,Travel Expenses (Staff),Council Business Travel,88.5,0,88.5,09/11/2016
Capita Business Travel-Hotels,Travel Expenses (Staff),Council Business Travel,640.53,128.11,768.64,09/11/2016
Capita Business Travel-Hotels,Travel Expenses (Staff),Council Business Travel,196.95,0,196.95,29/11/2016
Capita Business Travel-Hotels,Travel Expenses (Staff),Council Business Travel,501.64,100.33,601.97,29/11/2016
Capita Property & Infrastructure Lt,"Computer Software, Purchase and Maintenance",HRA Investment in Services,"6,000.00","1,200.00","7,200.00",02/11/2016
Capita Resourcing Ltd,Agency Staff,CRB,815,163,978,03/10/2016
Capita Resourcing Ltd,Agency Staff,CRB,"4,536.00",0,"4,536.00",03/10/2016
Capita Resourcing Ltd,Agency Staff,CRB,"1,392.00",278.4,"1,670.40",24/10/2016
Capita Resourcing Ltd,Agency Staff,CRB,"7,558.00",0,"7,558.00",24/10/2016
Capita Resourcing Ltd,Agency Staff,CRB,"2,645.00",529,"3,174.00",23/11/2016
Capita Resourcing Ltd,Agency Staff,CRB,"10,997.00",0,"10,997.00",23/11/2016
Capita Resourcing Ltd,Agency Staff,CRB,"2,564.00",512.8,"3,076.80",23/12/2016
Capita Resourcing Ltd,Agency Staff,CRB,"12,238.00",0,"12,238.00",23/12/2016
Capital Count,"Private Contractors, Third Party Payments",Bus Studies / Forward Programme,"4,300.00",860,"5,160.00",14/11/2016
Capital Home Care,Domiciliary Care,Long Term Team - OP,702.8,0,702.8,18/10/2016
Capital Home Care,Domiciliary Care,Long Term Team - OP,604.53,0,604.53,26/10/2016
Capital Home Care,Domiciliary Care,Long Term Team - OP,326.37,0,326.37,26/10/2016
Capital Home Care,Domiciliary Care,Personalisation - LD,552.2,0,552.2,30/11/2016
Capital Home Care,Domiciliary Care,Personalisation - OP,703,0,703,18/10/2016
Capital Home Care,Domiciliary Care,Personalisation - OP,819.89,0,819.89,18/10/2016
Capital Home Care,Domiciliary Care,Personalisation - OP,829,0,829,18/10/2016
Capital Home Care,Domiciliary Care,Personalisation - OP,"1,725.00",0,"1,725.00",18/10/2016
Capital Home Care,Domiciliary Care,Personalisation - OP,527.1,0,527.1,20/10/2016
Capital Home Care,Domiciliary Care,Personalisation - OP,648.46,0,648.46,20/10/2016
Capital Home Care,Domiciliary Care,Personalisation - OP,702.8,0,702.8,20/10/2016
Capital Home Care,Domiciliary Care,Personalisation - OP,702.8,0,702.8,20/10/2016
Capital Home Care,Domiciliary Care,Personalisation - OP,"1,510.00",0,"1,510.00",20/10/2016
Capital Home Care,Domiciliary Care,Personalisation - OP,527.1,0,527.1,26/10/2016
Capital Home Care,Domiciliary Care,Personalisation - OP,527.1,0,527.1,26/10/2016
Capital Home Care,Domiciliary Care,Personalisation - OP,527.1,0,527.1,26/10/2016
Capital Home Care,Domiciliary Care,Personalisation - OP,527.1,0,527.1,26/10/2016
Capital Home Care,Domiciliary Care,Personalisation - OP,527.1,0,527.1,26/10/2016
Capital Home Care,Domiciliary Care,Personalisation - OP,527.1,0,527.1,26/10/2016
Capital Home Care,Domiciliary Care,Personalisation - OP,577.3,0,577.3,26/10/2016
Capital Home Care,Domiciliary Care,Personalisation - OP,585.71,0,585.71,26/10/2016
Capital Home Care,Domiciliary Care,Personalisation - OP,585.71,0,585.71,26/10/2016
Capital Home Care,Domiciliary Care,Personalisation - OP,585.71,0,585.71,26/10/2016
Capital Home Care,Domiciliary Care,Personalisation - OP,607.42,0,607.42,26/10/2016
Capital Home Care,Domiciliary Care,Personalisation - OP,637.92,0,637.92,26/10/2016
Capital Home Care,Domiciliary Care,Personalisation - OP,702.8,0,702.8,26/10/2016
Capital Home Care,Domiciliary Care,Personalisation - OP,702.8,0,702.8,26/10/2016
Capital Home Care,Domiciliary Care,Personalisation - OP,702.8,0,702.8,26/10/2016
Capital Home Care,Domiciliary Care,Personalisation - OP,719.49,0,719.49,26/10/2016
Capital Home Care,Domiciliary Care,Personalisation - OP,761.41,0,761.41,26/10/2016
Capital Home Care,Domiciliary Care,Personalisation - OP,435.04,0,435.04,26/10/2016
Capital Home Care,Domiciliary Care,Personalisation - OP,903.6,0,903.6,26/10/2016
Capital Home Care,Domiciliary Care,Personalisation - OP,"1,171.29",0,"1,171.29",26/10/2016
Capital Home Care,Domiciliary Care,Personalisation - OP,"1,405.60",0,"1,405.60",26/10/2016
Capital Home Care,Domiciliary Care,Personalisation - OP,"1,522.69",0,"1,522.69",26/10/2016
Capital Home Care,Domiciliary Care,Personalisation - OP,"1,639.91",0,"1,639.91",26/10/2016
Capital Home Care,Domiciliary Care,Personalisation - OP,"1,639.91",0,"1,639.91",26/10/2016
Capital Home Care,Domiciliary Care,Personalisation - OP,"1,674.92",0,"1,674.92",26/10/2016
Capital Home Care,Domiciliary Care,Personalisation - OP,"1,757.00",0,"1,757.00",26/10/2016
Capital Home Care,Domiciliary Care,Personalisation - OP,"2,319.24",0,"2,319.24",26/10/2016
Capital Home Care,Domiciliary Care,Personalisation - OP,"2,334.30",0,"2,334.30",26/10/2016
Capital Home Care,Domiciliary Care,Personalisation - OP,"2,392.91",0,"2,392.91",26/10/2016
Capital Home Care,Domiciliary Care,Personalisation - OP,"2,668.88",0,"2,668.88",26/10/2016
Capital Home Care,Domiciliary Care,Personalisation - OP,"3,865.40",0,"3,865.40",26/10/2016
Capital Home Care,Domiciliary Care,Personalisation - OP,527.1,0,527.1,28/10/2016
Capital Home Care,Domiciliary Care,Personalisation - OP,527.1,0,527.1,28/10/2016
Capital Home Care,Domiciliary Care,Personalisation - OP,527.1,0,527.1,28/10/2016
Capital Home Care,Domiciliary Care,Personalisation - OP,500,0,500,04/11/2016
Capital Home Care,Domiciliary Care,Personalisation - OP,524,0,524,04/11/2016
Capital Home Care,Domiciliary Care,Personalisation - OP,571,0,571,04/11/2016
Capital Home Care,Domiciliary Care,Personalisation - OP,600,0,600,04/11/2016
Capital Home Care,Domiciliary Care,Personalisation - OP,603,0,603,04/11/2016
Capital Home Care,Domiciliary Care,Personalisation - OP,619,0,619,04/11/2016
Capital Home Care,Domiciliary Care,Personalisation - OP,620,0,620,04/11/2016
Capital Home Care,Domiciliary Care,Personalisation - OP,620,0,620,04/11/2016
Capital Home Care,Domiciliary Care,Personalisation - OP,620,0,620,04/11/2016
Capital Home Care,Domiciliary Care,Personalisation - OP,762,0,762,04/11/2016
Capital Home Care,Domiciliary Care,Personalisation - OP,795,0,795,04/11/2016
Capital Home Care,Domiciliary Care,Personalisation - OP,820,0,820,04/11/2016
Capital Home Care,Domiciliary Care,Personalisation - OP,"1,171.29",0,"1,171.29",04/11/2016
Capital Home Care,Domiciliary Care,Personalisation - OP,"1,171.29",0,"1,171.29",04/11/2016
Capital Home Care,Domiciliary Care,Personalisation - OP,"1,171.29",0,"1,171.29",04/11/2016
Capital Home Care,Domiciliary Care,Personalisation - OP,"2,108.00",0,"2,108.00",04/11/2016
Capital Home Care,Domiciliary Care,Personalisation - OP,585.71,0,585.71,22/11/2016
Capital Home Care,Domiciliary Care,Personalisation - OP,585.71,0,585.71,22/11/2016
Capital Home Care,Domiciliary Care,Personalisation - OP,"1,091.85",0,"1,091.85",22/11/2016
Capital Home Care,Domiciliary Care,Personalisation - OP,"1,698.39",0,"1,698.39",22/11/2016
Capital Home Care,Domiciliary Care,Personalisation - OP,508.28,0,508.28,30/11/2016
Capital Home Care,Domiciliary Care,Personalisation - OP,527.1,0,527.1,30/11/2016
Capital Home Care,Domiciliary Care,Personalisation - OP,527.1,0,527.1,30/11/2016
Capital Home Care,Domiciliary Care,Personalisation - OP,527.1,0,527.1,30/11/2016
Capital Home Care,Domiciliary Care,Personalisation - OP,552.2,0,552.2,30/11/2016
Capital Home Care,Domiciliary Care,Personalisation - OP,577.3,0,577.3,30/11/2016
Capital Home Care,Domiciliary Care,Personalisation - OP,579.81,0,579.81,30/11/2016
Capital Home Care,Domiciliary Care,Personalisation - OP,585.71,0,585.71,30/11/2016
Capital Home Care,Domiciliary Care,Personalisation - OP,585.71,0,585.71,30/11/2016
Capital Home Care,Domiciliary Care,Personalisation - OP,585.71,0,585.71,30/11/2016
Capital Home Care,Domiciliary Care,Personalisation - OP,585.71,0,585.71,30/11/2016
Capital Home Care,Domiciliary Care,Personalisation - OP,585.71,0,585.71,30/11/2016
Capital Home Care,Domiciliary Care,Personalisation - OP,585.71,0,585.71,30/11/2016
Capital Home Care,Domiciliary Care,Personalisation - OP,631.64,0,631.64,30/11/2016
Capital Home Care,Domiciliary Care,Personalisation - OP,671.43,0,671.43,30/11/2016
Capital Home Care,Domiciliary Care,Personalisation - OP,702.8,0,702.8,30/11/2016
Capital Home Care,Domiciliary Care,Personalisation - OP,702.8,0,702.8,30/11/2016
Capital Home Care,Domiciliary Care,Personalisation - OP,702.8,0,702.8,30/11/2016
Capital Home Care,Domiciliary Care,Personalisation - OP,761.41,0,761.41,30/11/2016
Capital Home Care,Domiciliary Care,Personalisation - OP,761.41,0,761.41,30/11/2016
Capital Home Care,Domiciliary Care,Personalisation - OP,"1,029.10",0,"1,029.10",30/11/2016
Capital Home Care,Domiciliary Care,Personalisation - OP,"1,171.29",0,"1,171.29",30/11/2016
Capital Home Care,Domiciliary Care,Personalisation - OP,"1,171.29",0,"1,171.29",30/11/2016
Capital Home Care,Domiciliary Care,Personalisation - OP,"1,171.29",0,"1,171.29",30/11/2016
Capital Home Care,Domiciliary Care,Personalisation - OP,"1,522.69",0,"1,522.69",30/11/2016
Capital Home Care,Domiciliary Care,Personalisation - OP,"1,543.65",0,"1,543.65",30/11/2016
Capital Home Care,Domiciliary Care,Personalisation - OP,"1,639.91",0,"1,639.91",30/11/2016
Capital Home Care,Domiciliary Care,Personalisation - OP,"1,639.91",0,"1,639.91",30/11/2016
Capital Home Care,Domiciliary Care,Personalisation - OP,"1,639.91",0,"1,639.91",30/11/2016
Capital Home Care,Domiciliary Care,Personalisation - OP,"1,674.92",0,"1,674.92",30/11/2016
Capital Home Care,Domiciliary Care,Personalisation - OP,"1,757.00",0,"1,757.00",30/11/2016
Capital Home Care,Domiciliary Care,Personalisation - OP,"2,319.24",0,"2,319.24",30/11/2016
Capital Home Care,Domiciliary Care,Personalisation - OP,"2,334.30",0,"2,334.30",30/11/2016
Capital Home Care,Domiciliary Care,Personalisation - OP,"2,668.88",0,"2,668.88",30/11/2016
Capital Home Care,Domiciliary Care,Personalisation - OP,"3,865.40",0,"3,865.40",30/11/2016
Capital Home Care,Domiciliary Care,Personalisation - OP,527.1,0,527.1,20/12/2016
Capital Home Care,Domiciliary Care,Personalisation - OP,527.1,0,527.1,20/12/2016
Capital Home Care,Domiciliary Care,Personalisation - OP,552.2,0,552.2,20/12/2016
Capital Home Care,Domiciliary Care,Personalisation - OP,577.3,0,577.3,20/12/2016
Capital Home Care,Domiciliary Care,Personalisation - OP,583.58,0,583.58,20/12/2016
Capital Home Care,Domiciliary Care,Personalisation - OP,585.71,0,585.71,20/12/2016
Capital Home Care,Domiciliary Care,Personalisation - OP,585.71,0,585.71,20/12/2016
Capital Home Care,Domiciliary Care,Personalisation - OP,614.95,0,614.95,20/12/2016
Capital Home Care,Domiciliary Care,Personalisation - OP,627.5,0,627.5,20/12/2016
Capital Home Care,Domiciliary Care,Personalisation - OP,644.19,0,644.19,20/12/2016
Capital Home Care,Domiciliary Care,Personalisation - OP,644.19,0,644.19,20/12/2016
Capital Home Care,Domiciliary Care,Personalisation - OP,702.8,0,702.8,20/12/2016
Capital Home Care,Domiciliary Care,Personalisation - OP,702.8,0,702.8,20/12/2016
Capital Home Care,Domiciliary Care,Personalisation - OP,727.9,0,727.9,20/12/2016
Capital Home Care,Domiciliary Care,Personalisation - OP,736.31,0,736.31,20/12/2016
Capital Home Care,Domiciliary Care,Personalisation - OP,761.41,0,761.41,20/12/2016
Capital Home Care,Domiciliary Care,Personalisation - OP,761.41,0,761.41,20/12/2016
Capital Home Care,Domiciliary Care,Personalisation - OP,"1,171.29",0,"1,171.29",20/12/2016
Capital Home Care,Domiciliary Care,Personalisation - OP,"1,229.90",0,"1,229.90",20/12/2016
Capital Home Care,Domiciliary Care,Personalisation - OP,"1,305.20",0,"1,305.20",20/12/2016
Capital Home Care,Domiciliary Care,Personalisation - OP,"1,405.60",0,"1,405.60",20/12/2016
Capital Home Care,Domiciliary Care,Personalisation - OP,"1,522.69",0,"1,522.69",20/12/2016
Capital Home Care,Domiciliary Care,Personalisation - OP,"1,639.91",0,"1,639.91",20/12/2016
Capital Home Care,Domiciliary Care,Personalisation - OP,"1,639.91",0,"1,639.91",20/12/2016
Capital Home Care,Domiciliary Care,Personalisation - OP,"1,674.92",0,"1,674.92",20/12/2016
Capital Home Care,Domiciliary Care,Personalisation - OP,"1,757.00",0,"1,757.00",20/12/2016
Capital Home Care,Domiciliary Care,Personalisation - OP,"2,108.40",0,"2,108.40",20/12/2016
Capital Home Care,Domiciliary Care,Personalisation - OP,"2,334.30",0,"2,334.30",20/12/2016
Capital Home Care,Domiciliary Care,Personalisation - OP,"2,426.29",0,"2,426.29",20/12/2016
Capital Home Care,Domiciliary Care,Personalisation - OP,"3,865.40",0,"3,865.40",20/12/2016
Capital Home Care,Domiciliary Care,Personalisation - PD,602.4,0,602.4,20/10/2016
Capital Home Care,Domiciliary Care,Personalisation - PD,878.5,0,878.5,26/10/2016
Capital Home Care,Domiciliary Care,Personalisation - PD,"1,464.21",0,"1,464.21",26/10/2016
Capital Home Care,Domiciliary Care,Personalisation - PD,"2,153.58",0,"2,153.58",26/10/2016
Capital Home Care,Domiciliary Care,Personalisation - PD,770,0,770,04/11/2016
Capital Home Care,Domiciliary Care,Personalisation - PD,878.5,0,878.5,30/11/2016
Capital Home Care,Domiciliary Care,Personalisation - PD,"1,464.21",0,"1,464.21",30/11/2016
Capital Home Care,Domiciliary Care,Personalisation - PD,"2,153.58",0,"2,153.58",30/11/2016
Capital Home Care,Domiciliary Care,Personalisation - PD,878.5,0,878.5,20/12/2016
Capital Home Care,Domiciliary Care,Personalisation - PD,"1,464.21",0,"1,464.21",20/12/2016
Capital Home Care,Domiciliary Care,Personalisation - PD,"2,153.58",0,"2,153.58",20/12/2016
Capital Home Care (UK) Ltd - ISF,Social Care Personal Budgets,Personalisation - OP,553.16,0,553.16,18/10/2016
Capital Home Care (UK) Ltd - ISF,Social Care Personal Budgets,Personalisation - OP,564.84,0,564.84,18/10/2016
Capital Home Care (UK) Ltd - ISF,Social Care Personal Budgets,Personalisation - OP,790.36,0,790.36,18/10/2016
Capital Home Care (UK) Ltd - ISF,Adults & Social - Net P.B.'s,Personalisation - OP,-130.72,0,-130.72,18/10/2016
Capital Home Care (UK) Ltd - ISF,Social Care Personal Budgets,Personalisation - OP,664.68,0,664.68,18/10/2016
Capital Home Care (UK) Ltd - ISF,Social Care Personal Budgets,Personalisation - OP,750.2,0,750.2,18/10/2016
Capital Home Care (UK) Ltd - ISF,Social Care Personal Budgets,Personalisation - OP,903.44,0,903.44,18/10/2016
Capital Home Care (UK) Ltd - ISF,Social Care Personal Budgets,Personalisation - OP,903.6,0,903.6,18/10/2016
Capital Home Care (UK) Ltd - ISF,Social Care Personal Budgets,Personalisation - OP,927.8,0,927.8,18/10/2016
Capital Home Care (UK) Ltd - ISF,Social Care Personal Budgets,Personalisation - OP,"1,016.40",0,"1,016.40",18/10/2016
Capital Home Care (UK) Ltd - ISF,Adults & Social - Net P.B.'s,Personalisation - OP,-69.44,0,-69.44,18/10/2016
Capital Home Care (UK) Ltd - ISF,Social Care Personal Budgets,Personalisation - OP,"1,129.16",0,"1,129.16",18/10/2016
Capital Home Care (UK) Ltd - ISF,Adults & Social - Net P.B.'s,Personalisation - OP,-210.2,0,-210.2,18/10/2016
Capital Home Care (UK) Ltd - ISF,Social Care Personal Budgets,Personalisation - OP,"1,468.00",0,"1,468.00",18/10/2016
Capital Home Care (UK) Ltd - ISF,Social Care Personal Budgets,Personalisation - OP,"1,355.20",0,"1,355.20",18/10/2016
Capital Home Care (UK) Ltd - ISF,Adults & Social - Net P.B.'s,Personalisation - OP,-53.96,0,-53.96,18/10/2016
Capital Home Care (UK) Ltd - ISF,Adults & Social - Net P.B.'s,Personalisation - OP,-68.4,0,-68.4,18/10/2016
Capital Home Care (UK) Ltd - ISF,Social Care Personal Budgets,Personalisation - OP,"1,694.00",0,"1,694.00",18/10/2016
Capital Home Care (UK) Ltd - ISF,Social Care Personal Budgets,Personalisation - OP,-791.2,0,-791.2,18/11/2016
Capital Home Care (UK) Ltd - ISF,Adults & Social - Net P.B.'s,Personalisation - OP,-268.08,0,-268.08,18/11/2016
Capital Home Care (UK) Ltd - ISF,Social Care Personal Budgets,Personalisation - OP,553.16,0,553.16,18/11/2016
Capital Home Care (UK) Ltd - ISF,Social Care Personal Budgets,Personalisation - OP,564.84,0,564.84,18/11/2016
Capital Home Care (UK) Ltd - ISF,Social Care Personal Budgets,Personalisation - OP,790.36,0,790.36,18/11/2016
Capital Home Care (UK) Ltd - ISF,Adults & Social - Net P.B.'s,Personalisation - OP,-130.72,0,-130.72,18/11/2016
Capital Home Care (UK) Ltd - ISF,Social Care Personal Budgets,Personalisation - OP,664.68,0,664.68,18/11/2016
Capital Home Care (UK) Ltd - ISF,Social Care Personal Budgets,Personalisation - OP,750.2,0,750.2,18/11/2016
Capital Home Care (UK) Ltd - ISF,Social Care Personal Budgets,Personalisation - OP,903.44,0,903.44,18/11/2016
Capital Home Care (UK) Ltd - ISF,Social Care Personal Budgets,Personalisation - OP,903.6,0,903.6,18/11/2016
Capital Home Care (UK) Ltd - ISF,Social Care Personal Budgets,Personalisation - OP,927.8,0,927.8,18/11/2016
Capital Home Care (UK) Ltd - ISF,Social Care Personal Budgets,Personalisation - OP,"1,016.40",0,"1,016.40",18/11/2016
Capital Home Care (UK) Ltd - ISF,Adults & Social - Net P.B.'s,Personalisation - OP,-69.44,0,-69.44,18/11/2016
Capital Home Care (UK) Ltd - ISF,Social Care Personal Budgets,Personalisation - OP,"1,129.16",0,"1,129.16",18/11/2016
Capital Home Care (UK) Ltd - ISF,Adults & Social - Net P.B.'s,Personalisation - OP,-210.2,0,-210.2,18/11/2016
Capital Home Care (UK) Ltd - ISF,Social Care Personal Budgets,Personalisation - OP,"1,468.00",0,"1,468.00",18/11/2016
Capital Home Care (UK) Ltd - ISF,Social Care Personal Budgets,Personalisation - OP,"1,355.20",0,"1,355.20",18/11/2016
Capital Home Care (UK) Ltd - ISF,Adults & Social - Net P.B.'s,Personalisation - OP,-53.96,0,-53.96,18/11/2016
Capital Home Care (UK) Ltd - ISF,Adults & Social - Net P.B.'s,Personalisation - OP,-68.4,0,-68.4,18/11/2016
Capital Home Care (UK) Ltd - ISF,Social Care Personal Budgets,Personalisation - OP,"1,694.00",0,"1,694.00",18/11/2016
Capital Home Care (UK) Ltd - ISF,Social Care Personal Budgets,Personalisation - OP,"2,469.50",0,"2,469.50",18/11/2016
Capital Home Care (UK) Ltd - ISF,Social Care Personal Budgets,Personalisation - OP,553.16,0,553.16,19/12/2016
Capital Home Care (UK) Ltd - ISF,Social Care Personal Budgets,Personalisation - OP,564.8,0,564.8,19/12/2016
Capital Home Care (UK) Ltd - ISF,Social Care Personal Budgets,Personalisation - OP,564.84,0,564.84,19/12/2016
Capital Home Care (UK) Ltd - ISF,Social Care Personal Budgets,Personalisation - OP,790.36,0,790.36,19/12/2016
Capital Home Care (UK) Ltd - ISF,Adults & Social - Net P.B.'s,Personalisation - OP,-130.72,0,-130.72,19/12/2016
Capital Home Care (UK) Ltd - ISF,Social Care Personal Budgets,Personalisation - OP,664.68,0,664.68,19/12/2016
Capital Home Care (UK) Ltd - ISF,Social Care Personal Budgets,Personalisation - OP,750.2,0,750.2,19/12/2016
Capital Home Care (UK) Ltd - ISF,Social Care Personal Budgets,Personalisation - OP,903.44,0,903.44,19/12/2016
Capital Home Care (UK) Ltd - ISF,Social Care Personal Budgets,Personalisation - OP,903.6,0,903.6,19/12/2016
Capital Home Care (UK) Ltd - ISF,Social Care Personal Budgets,Personalisation - OP,927.8,0,927.8,19/12/2016
Capital Home Care (UK) Ltd - ISF,Adults & Social - Net P.B.'s,Personalisation - OP,-82.46,0,-82.46,19/12/2016
Capital Home Care (UK) Ltd - ISF,Social Care Personal Budgets,Personalisation - OP,"1,016.40",0,"1,016.40",19/12/2016
Capital Home Care (UK) Ltd - ISF,Social Care Personal Budgets,Personalisation - OP,"1,129.16",0,"1,129.16",19/12/2016
Capital Home Care (UK) Ltd - ISF,Adults & Social - Net P.B.'s,Personalisation - OP,-210.2,0,-210.2,19/12/2016
Capital Home Care (UK) Ltd - ISF,Social Care Personal Budgets,Personalisation - OP,"1,468.00",0,"1,468.00",19/12/2016
Capital Home Care (UK) Ltd - ISF,Adults & Social - Net P.B.'s,Personalisation - OP,-53.96,0,-53.96,19/12/2016
Capital Home Care (UK) Ltd - ISF,Social Care Personal Budgets,Personalisation - OP,"1,355.20",0,"1,355.20",19/12/2016
Capital Home Care (UK) Ltd - ISF,Social Care Personal Budgets,Personalisation - OP,"1,342.64",0,"1,342.64",19/12/2016
Capital Home Care (UK) Ltd - ISF,Adults & Social - Net P.B.'s,Personalisation - OP,-68.4,0,-68.4,19/12/2016
Capital Home Care (UK) Ltd - ISF,Social Care Personal Budgets,Personalisation - OP,"1,694.00",0,"1,694.00",19/12/2016
Capital Home Care (UK) Ltd - ISF,Social Care Personal Budgets,Personalisation - PD,508.2,0,508.2,18/10/2016
Capital Home Care (UK) Ltd - ISF,Social Care Personal Budgets,Personalisation - PD,548.4,0,548.4,18/10/2016
Capital Home Care (UK) Ltd - ISF,Social Care Personal Budgets,Personalisation - PD,572.56,0,572.56,18/10/2016
Capital Home Care (UK) Ltd - ISF,Social Care Personal Budgets,Personalisation - PD,620.96,0,620.96,18/10/2016
Capital Home Care (UK) Ltd - ISF,Social Care Personal Budgets,Personalisation - PD,645.16,0,645.16,18/10/2016
Capital Home Care (UK) Ltd - ISF,Social Care Personal Budgets,Personalisation - PD,"1,137.40",0,"1,137.40",18/10/2016
Capital Home Care (UK) Ltd - ISF,Social Care Personal Budgets,Personalisation - PD,"1,355.20",0,"1,355.20",18/10/2016
Capital Home Care (UK) Ltd - ISF,Social Care Personal Budgets,Personalisation - PD,"1,694.00",0,"1,694.00",18/10/2016
Capital Home Care (UK) Ltd - ISF,Social Care Personal Budgets,Personalisation - PD,508.2,0,508.2,18/11/2016
Capital Home Care (UK) Ltd - ISF,Social Care Personal Budgets,Personalisation - PD,548.4,0,548.4,18/11/2016
Capital Home Care (UK) Ltd - ISF,Social Care Personal Budgets,Personalisation - PD,572.56,0,572.56,18/11/2016
Capital Home Care (UK) Ltd - ISF,Social Care Personal Budgets,Personalisation - PD,620.96,0,620.96,18/11/2016
Capital Home Care (UK) Ltd - ISF,Social Care Personal Budgets,Personalisation - PD,645.16,0,645.16,18/11/2016
Capital Home Care (UK) Ltd - ISF,Social Care Personal Budgets,Personalisation - PD,"1,355.20",0,"1,355.20",18/11/2016
Capital Home Care (UK) Ltd - ISF,Social Care Personal Budgets,Personalisation - PD,"1,694.00",0,"1,694.00",18/11/2016
Capital Home Care (UK) Ltd - ISF,Social Care Personal Budgets,Personalisation - PD,508.2,0,508.2,19/12/2016
Capital Home Care (UK) Ltd - ISF,Social Care Personal Budgets,Personalisation - PD,548.4,0,548.4,19/12/2016
Capital Home Care (UK) Ltd - ISF,Social Care Personal Budgets,Personalisation - PD,572.56,0,572.56,19/12/2016
Capital Home Care (UK) Ltd - ISF,Social Care Personal Budgets,Personalisation - PD,620.96,0,620.96,19/12/2016
Capital Home Care (UK) Ltd - ISF,Social Care Personal Budgets,Personalisation - PD,645.16,0,645.16,19/12/2016
Capital Home Care (UK) Ltd - ISF,Social Care Personal Budgets,Personalisation - PD,"1,355.20",0,"1,355.20",19/12/2016
Capital Home Care (UK) Ltd - ISF,Social Care Personal Budgets,Personalisation - PD,"1,694.00",0,"1,694.00",19/12/2016
Capstan Security Ltd,Security Costs,Chandos Children's Centre,722,144.4,866.4,02/12/2016
Capstan Security Ltd,Security Costs,Elmgrove Children's Centre,615,123,738,16/11/2016
Capsticks Solicitors LLP,Legal Fees/Advocacy,Anti-Social Behaviour,"1,000.00",200,"1,200.00",05/10/2016
Capstone Surveyors Limited,Consultants Fees,Affordable Housing Programme,846,169.2,"1,015.20",28/11/2016
Capstone Surveyors Limited,Other Professional Fees,Enveloping Leasehold (2),800,160,960,31/10/2016
Capwell Grange Nursing Home,Nursing Care,Long Term Team - PD,709.25,0,709.25,03/10/2016
Capwell Grange Nursing Home,Recovery of Costs (External - Non Vatable),Long Term Team - PD,-691.96,0,-691.96,25/10/2016
Capwell Grange Nursing Home,Adults & Social - Client Charges,Long Term Team - PD,-379.16,0,-379.16,25/10/2016
Capwell Grange Nursing Home,Nursing Care,Long Term Team - PD,"4,125.57",0,"4,125.57",25/10/2016
Capwell Grange Nursing Home,Recovery of Costs (External - Non Vatable),Long Term Team - PD,-669.64,0,-669.64,25/11/2016
Capwell Grange Nursing Home,Adults & Social - Client Charges,Long Term Team - PD,-409.5,0,-409.5,25/11/2016
Capwell Grange Nursing Home,Nursing Care,Long Term Team - PD,"3,992.49",0,"3,992.49",25/11/2016
Capwell Grange Nursing Home,Recovery of Costs (External - Non Vatable),Long Term Team - PD,-691.97,0,-691.97,20/12/2016
Capwell Grange Nursing Home,Adults & Social - Client Charges,Long Term Team - PD,-423.15,0,-423.15,20/12/2016
Capwell Grange Nursing Home,Nursing Care,Long Term Team - PD,"4,125.57",0,"4,125.57",20/12/2016
CarComm Coachworks,Other Agencies/Local Authorities 3rd Party Payment,Motor Insurance,"6,711.05",0,"6,711.05",20/10/2016
Care Accommodation (London) Ltd,Foster Payments,Asylum Client Expenditure,"2,614.30",0,"2,614.30",12/10/2016
Care Accommodation (London) Ltd,Foster Payments,Asylum Client Expenditure,"4,587.90",0,"4,587.90",12/10/2016
Care Accommodation (London) Ltd,Foster Payments,Asylum Client Expenditure,"5,781.00",0,"5,781.00",12/10/2016
Care Accommodation (London) Ltd,Foster Payments,Asylum Client Expenditure,"5,781.00",0,"5,781.00",12/10/2016
Care Assist Limited,Supptd Accommodation for Social Care Clients,Long Term Team - LD,"1,328.57",0,"1,328.57",26/10/2016
Care Assist Limited,Supptd Accommodation for Social Care Clients,Long Term Team - LD,"1,285.71",0,"1,285.71",24/11/2016
Care Assist Limited,Supptd Accommodation for Social Care Clients,Long Term Team - LD,"1,328.57",0,"1,328.57",23/12/2016
Care Quality Commission,Other Agencies/Local Authorities 3rd Party Payment,14/15 Kenton Road,"1,612.00",0,"1,612.00",21/12/2016
Care Quality Commission,Other Agencies/Local Authorities 3rd Party Payment,7 Kenton Road,805,0,805,21/12/2016
Care Quality Commission,Other Agencies/Local Authorities 3rd Party Payment,Bedford House,"2,356.00",0,"2,356.00",21/12/2016
Care Quality Commission,Other Agencies/Local Authorities 3rd Party Payment,Roxborough Park,805,0,805,21/12/2016
Care Quality Commission,Other Agencies/Local Authorities 3rd Party Payment,Watkins House-Expenditure,"3,806.00",0,"3,806.00",21/12/2016
Care South (Leybourne House),Residential Placements,Long Term Team - OP,"3,100.00",0,"3,100.00",25/10/2016
Care South (Leybourne House),Residential Placements,Long Term Team - OP,"3,000.00",0,"3,000.00",25/11/2016
Care South (Leybourne House),Residential Placements,Long Term Team - OP,"3,100.00",0,"3,100.00",20/12/2016
Care UK,Adults & Social - Client Charges,Long Term Team - OP,-558.44,0,-558.44,26/10/2016
Care UK,Nursing Care,Long Term Team - OP,"2,212.74",0,"2,212.74",26/10/2016
Care UK,Adults & Social - Client Charges,Long Term Team - OP,-532.14,0,-532.14,26/10/2016
Care UK,Recovery of Costs (External - Non Vatable),Long Term Team - OP,-691.96,0,-691.96,26/10/2016
Care UK,Nursing Care,Long Term Team - OP,"2,990.88",0,"2,990.88",26/10/2016
Care UK,Adults & Social - Client Charges,Long Term Team - OP,-872.12,0,-872.12,26/10/2016
Care UK,Nursing Care,Long Term Team - OP,"4,691.89",0,"4,691.89",26/10/2016
Care UK,Recovery of Costs (External - Non Vatable),Long Term Team - OP,-691.96,0,-691.96,26/10/2016
Care UK,Nursing Care,Long Term Team - OP,"3,360.00",0,"3,360.00",26/10/2016
Care UK,Nursing Care,Long Term Team - OP,"2,141.36",0,"2,141.36",24/11/2016
Care UK,Adults & Social - Client Charges,Long Term Team - OP,-540.43,0,-540.43,24/11/2016
Care UK,Nursing Care,Long Term Team - OP,"2,894.40",0,"2,894.40",24/11/2016
Care UK,Recovery of Costs (External - Non Vatable),Long Term Team - OP,-669.64,0,-669.64,24/11/2016
Care UK,Adults & Social - Client Charges,Long Term Team - OP,-514.97,0,-514.97,24/11/2016
Care UK,Adults & Social - Client Charges,Long Term Team - OP,-843.99,0,-843.99,24/11/2016
Care UK,Nursing Care,Long Term Team - OP,"4,540.54",0,"4,540.54",24/11/2016
Care UK,Recovery of Costs (External - Non Vatable),Long Term Team - OP,-669.64,0,-669.64,24/11/2016
Care UK,Nursing Care,Long Term Team - OP,"2,212.73",0,"2,212.73",21/12/2016
Care UK,Adults & Social - Client Charges,Long Term Team - OP,-558.45,0,-558.45,21/12/2016
Care UK,Nursing Care,Long Term Team - OP,"2,990.88",0,"2,990.88",21/12/2016
Care UK,Recovery of Costs (External - Non Vatable),Long Term Team - OP,-691.97,0,-691.97,21/12/2016
Care UK,Adults & Social - Client Charges,Long Term Team - OP,-532.13,0,-532.13,21/12/2016
Care UK,Adults & Social - Client Charges,Long Term Team - OP,-872.12,0,-872.12,21/12/2016
Care UK,Nursing Care,Long Term Team - OP,"4,691.90",0,"4,691.90",21/12/2016
Care UK,Recovery of Costs (External - Non Vatable),Long Term Team - OP,-691.97,0,-691.97,21/12/2016
Care UK,Residential Placements,Long Term Team - OP,"2,037.14",0,"2,037.14",25/10/2016
Care UK,Adults & Social - Client Charges,Long Term Team - OP,-719.91,0,-719.91,25/10/2016
Care UK,Residential Placements,Long Term Team - OP,"2,325.00",0,"2,325.00",25/10/2016
Care UK,Residential Placements,Long Term Team - OP,"2,369.29",0,"2,369.29",26/10/2016
Care UK,Adults & Social - Client Charges,Long Term Team - OP,-688.24,0,-688.24,26/10/2016
Care UK,Residential Placements,Long Term Team - OP,"2,391.43",0,"2,391.43",26/10/2016
Care UK,Adults & Social - Client Charges,Long Term Team - OP,-578.81,0,-578.81,26/10/2016
Care UK,Recovery of Costs (External - Non Vatable),Long Term Team - OP,-691.96,0,-691.96,26/10/2016
Care UK,Nursing Care,Long Term Team - OP,"4,070.96",0,"4,070.96",26/10/2016
Care UK,Adults & Social - Client Charges,Long Term Team - OP,-317.41,0,-317.41,10/11/2016
Care UK,Nursing Care,Long Term Team - OP,"4,310.71",0,"4,310.71",10/11/2016
Care UK,Nursing Care,Long Term Team - OP,"-1,292.00",0,"-1,292.00",10/11/2016
Care UK,Residential Placements,Long Term Team - OP,"2,292.86",0,"2,292.86",24/11/2016
Care UK,Adults & Social - Client Charges,Long Term Team - OP,-666.04,0,-666.04,24/11/2016
Care UK,Residential Placements,Long Term Team - OP,"2,314.29",0,"2,314.29",24/11/2016
Care UK,Nursing Care,Long Term Team - OP,"3,939.64",0,"3,939.64",24/11/2016
Care UK,Recovery of Costs (External - Non Vatable),Long Term Team - OP,-669.64,0,-669.64,24/11/2016
Care UK,Adults & Social - Client Charges,Long Term Team - OP,-560.14,0,-560.14,24/11/2016
Care UK,Nursing Care,Long Term Team - OP,"7,607.14",0,"7,607.14",24/11/2016
Care UK,Nursing Care,Long Term Team - OP,"-2,280.00",0,"-2,280.00",24/11/2016
Care UK,Adults & Social - Client Charges,Long Term Team - OP,-560.14,0,-560.14,24/11/2016
Care UK,Adults & Social - Client Charges,Long Term Team - OP,"4,737.46",0,"4,737.46",25/11/2016
Care UK,Adults & Social - Client Charges,Long Term Team - OP,"-7,309.59",0,"-7,309.59",25/11/2016
Care UK,Residential Placements,Long Term Team - OP,"1,971.43",0,"1,971.43",25/11/2016
Care UK,Residential Placements,Long Term Team - OP,"2,475.00",0,"2,475.00",25/11/2016
Care UK,Adults & Social - Client Charges,Long Term Team - OP,-459.93,0,-459.93,01/12/2016
Care UK,Residential Placements,Long Term Team - OP,"1,002.86",0,"1,002.86",01/12/2016
Care UK,Residential Placements,Long Term Team - OP,"1,542.86",0,"1,542.86",01/12/2016
Care UK,Adults & Social - Client Charges,Long Term Team - OP,-373.42,0,-373.42,01/12/2016
Care UK,Residential Placements,Long Term Team - OP,"2,391.43",0,"2,391.43",01/12/2016
Care UK,Residential Placements,Long Term Team - OP,"2,037.15",0,"2,037.15",20/12/2016
Care UK,Adults & Social - Client Charges,Long Term Team - OP,-823.1,0,-823.1,20/12/2016
Care UK,Respite Costs,Long Term Team - OP,"1,080.00",0,"1,080.00",21/12/2016
Care UK,Respite Costs,Long Term Team - OP,"1,080.00",0,"1,080.00",21/12/2016
Care UK,Residential Placements,Long Term Team - OP,"2,391.43",0,"2,391.43",21/12/2016
Care UK,Adults & Social - Client Charges,Long Term Team - OP,-829.41,0,-829.41,21/12/2016
Care UK,Adults & Social - Client Charges,Long Term Team - OP,-688.25,0,-688.25,21/12/2016
Care UK,Residential Placements,Long Term Team - OP,"2,369.28",0,"2,369.28",21/12/2016
Care UK,Adults & Social - Client Charges,Long Term Team - OP,-578.82,0,-578.82,21/12/2016
Care UK,Residential Placements,Long Term Team - OP,"2,391.43",0,"2,391.43",21/12/2016
Care UK,Residential Placements,Long Term Team - OP,"2,391.43",0,"2,391.43",21/12/2016
Care UK,Adults & Social - Client Charges,Long Term Team - OP,-578.82,0,-578.82,21/12/2016
Care UK,Nursing Care,Long Term Team - OP,"4,070.97",0,"4,070.97",21/12/2016
Care UK,Recovery of Costs (External - Non Vatable),Long Term Team - OP,-691.97,0,-691.97,21/12/2016
Care UK,Nursing Care,Long Term Team - OP,"7,860.72",0,"7,860.72",21/12/2016
Care UK,Nursing Care,Long Term Team - OP,"-2,356.00",0,"-2,356.00",21/12/2016
Care UK,Adults & Social - Client Charges,Long Term Team - OP,-578.82,0,-578.82,21/12/2016
CAREBASE BURNT OAK LTD,Recovery of Costs (External - Non Vatable),Long Term Team - OP,-691.96,0,-691.96,25/10/2016
CAREBASE BURNT OAK LTD,Nursing Care,Long Term Team - OP,"2,995.75",0,"2,995.75",25/10/2016
CAREBASE BURNT OAK LTD,Adults & Social - Client Charges,Long Term Team - OP,-578.81,0,-578.81,25/10/2016
CAREBASE BURNT OAK LTD,Nursing Care,Long Term Team - OP,"3,044.02",0,"3,044.02",25/10/2016
CAREBASE BURNT OAK LTD,Recovery of Costs (External - Non Vatable),Long Term Team - OP,-691.96,0,-691.96,25/10/2016
CAREBASE BURNT OAK LTD,Adults & Social - Client Charges,Long Term Team - OP,-578.81,0,-578.81,25/10/2016
CAREBASE BURNT OAK LTD,Nursing Care,Long Term Team - OP,"3,012.05",0,"3,012.05",25/10/2016
CAREBASE BURNT OAK LTD,Recovery of Costs (External - Non Vatable),Long Term Team - OP,-691.96,0,-691.96,25/10/2016
CAREBASE BURNT OAK LTD,Adults & Social - Client Charges,Long Term Team - OP,-560.14,0,-560.14,25/11/2016
CAREBASE BURNT OAK LTD,Nursing Care,Long Term Team - OP,"2,899.11",0,"2,899.11",25/11/2016
CAREBASE BURNT OAK LTD,Recovery of Costs (External - Non Vatable),Long Term Team - OP,-669.64,0,-669.64,25/11/2016
CAREBASE BURNT OAK LTD,Nursing Care,Long Term Team - OP,"2,945.83",0,"2,945.83",25/11/2016
CAREBASE BURNT OAK LTD,Recovery of Costs (External - Non Vatable),Long Term Team - OP,-669.64,0,-669.64,25/11/2016
CAREBASE BURNT OAK LTD,Adults & Social - Client Charges,Long Term Team - OP,-560.14,0,-560.14,25/11/2016
CAREBASE BURNT OAK LTD,Nursing Care,Long Term Team - OP,"2,914.89",0,"2,914.89",25/11/2016
CAREBASE BURNT OAK LTD,Recovery of Costs (External - Non Vatable),Long Term Team - OP,-669.64,0,-669.64,25/11/2016
CAREBASE BURNT OAK LTD,Recovery of Costs (External - Non Vatable),Long Term Team - OP,-691.97,0,-691.97,20/12/2016
CAREBASE BURNT OAK LTD,Nursing Care,Long Term Team - OP,"2,995.75",0,"2,995.75",20/12/2016
CAREBASE BURNT OAK LTD,Adults & Social - Client Charges,Long Term Team - OP,-578.82,0,-578.82,20/12/2016
CAREBASE BURNT OAK LTD,Adults & Social - Client Charges,Long Term Team - OP,-578.82,0,-578.82,20/12/2016
CAREBASE BURNT OAK LTD,Recovery of Costs (External - Non Vatable),Long Term Team - OP,-691.97,0,-691.97,20/12/2016
CAREBASE BURNT OAK LTD,Nursing Care,Long Term Team - OP,"3,044.03",0,"3,044.03",20/12/2016
CAREBASE BURNT OAK LTD,Recovery of Costs (External - Non Vatable),Long Term Team - OP,-691.97,0,-691.97,20/12/2016
CAREBASE BURNT OAK LTD,Nursing Care,Long Term Team - OP,"3,012.05",0,"3,012.05",20/12/2016
Caremark - ISF,Social Care Personal Budgets,Personalisation - OP,949.64,0,949.64,18/10/2016
Caremark - ISF,Social Care Personal Budgets,Personalisation - OP,949.64,0,949.64,18/11/2016
Caremark - ISF,Social Care Personal Budgets,Personalisation - OP,949.64,0,949.64,19/12/2016
Caremark - ISF,Social Care Personal Budgets,Personalisation - PD,"2,900.00",0,"2,900.00",18/10/2016
Caremark - ISF,Social Care Personal Budgets,Personalisation - PD,"5,695.16",0,"5,695.16",18/11/2016
Caremark - ISF,Social Care Personal Budgets,Personalisation - PD,"3,831.72",0,"3,831.72",19/12/2016
Caretech Community Services Limited,Residential Placements,Long Term Team - LD,"-12,025.71",0,"-12,025.71",03/10/2016
Caretech Community Services Limited,Adults & Social - Client Charges,Long Term Team - LD,-356.28,0,-356.28,25/10/2016
Caretech Community Services Limited,Residential Placements,Long Term Team - LD,"2,651.83",0,"2,651.83",25/10/2016
Caretech Community Services Limited,Residential Placements,Long Term Team - LD,"5,620.30",0,"5,620.30",25/10/2016
Caretech Community Services Limited,Residential Placements,Long Term Team - LD,"7,152.14",0,"7,152.14",25/10/2016
Caretech Community Services Limited,Adults & Social - Client Charges,Long Term Team - LD,-427.58,0,-427.58,25/10/2016
Caretech Community Services Limited,Adults & Social - Client Charges,Long Term Team - LD,-344.79,0,-344.79,25/11/2016
Caretech Community Services Limited,Residential Placements,Long Term Team - LD,"2,566.29",0,"2,566.29",25/11/2016
Caretech Community Services Limited,Residential Placements,Long Term Team - LD,"5,439.00",0,"5,439.00",25/11/2016
Caretech Community Services Limited,Residential Placements,Long Term Team - LD,"6,921.43",0,"6,921.43",25/11/2016
Caretech Community Services Limited,Adults & Social - Client Charges,Long Term Team - LD,-413.79,0,-413.79,25/11/2016
Caretech Community Services Limited,Adults & Social - Client Charges,Long Term Team - LD,-356.28,0,-356.28,20/12/2016
Caretech Community Services Limited,Residential Placements,Long Term Team - LD,"2,651.83",0,"2,651.83",20/12/2016
Caretech Community Services Limited,Residential Placements,Long Term Team - LD,"5,620.30",0,"5,620.30",20/12/2016
Caretech Community Services Limited,Residential Placements,Long Term Team - LD,"7,152.15",0,"7,152.15",20/12/2016
Caretech Community Services Limited,Adults & Social - Client Charges,Long Term Team - LD,-427.58,0,-427.58,20/12/2016
Caretech Community Services Limited,Residential Placements,Long Term Team - OP,"12,627.00",0,"12,627.00",03/10/2016
Caretech Community Services Limited,Residential Placements,Long Term Team - OP,"2,139.00",0,"2,139.00",25/10/2016
Caretech Community Services Limited,Residential Placements,Long Term Team - OP,"2,070.00",0,"2,070.00",25/11/2016
Caretech Community Services Limited,Residential Placements,Long Term Team - OP,"2,139.00",0,"2,139.00",20/12/2016
Carewatch - ISF,Social Care Personal Budgets,Personalisation - OP,508.2,0,508.2,18/10/2016
Carewatch - ISF,Social Care Personal Budgets,Personalisation - OP,734.24,0,734.24,18/10/2016
Carewatch - ISF,Social Care Personal Budgets,Personalisation - OP,508.2,0,508.2,18/11/2016
Carewatch - ISF,Social Care Personal Budgets,Personalisation - OP,734.24,0,734.24,18/11/2016
Carewatch - ISF,Social Care Personal Budgets,Personalisation - OP,508.2,0,508.2,19/12/2016
Carewatch - ISF,Social Care Personal Budgets,Personalisation - OP,"5,897.24",0,"5,897.24",19/12/2016
Carewatch - ISF,Social Care Personal Budgets,Personalisation - PD,983.96,0,983.96,18/10/2016
Carewatch - ISF,Adults & Social - Net P.B.'s,Personalisation - PD,-236.76,0,-236.76,18/10/2016
Carewatch - ISF,Social Care Personal Budgets,Personalisation - PD,"2,605.64",0,"2,605.64",18/10/2016
Carewatch - ISF,Social Care Personal Budgets,Personalisation - PD,983.96,0,983.96,18/11/2016
Carewatch - ISF,Adults & Social - Net P.B.'s,Personalisation - PD,-236.76,0,-236.76,18/11/2016
Carewatch - ISF,Social Care Personal Budgets,Personalisation - PD,"2,605.64",0,"2,605.64",18/11/2016
Carewatch - ISF,Social Care Personal Budgets,Personalisation - PD,"-3,629.28",0,"-3,629.28",19/12/2016
Carewatch - ISF,Adults & Social - Net P.B.'s,Personalisation - PD,-236.76,0,-236.76,19/12/2016
Carewatch - ISF,Social Care Personal Budgets,Personalisation - PD,983.96,0,983.96,19/12/2016
Carewatch (Harrow),Domiciliary Care,Children With Disabilities Client Costs,513.5,0,513.5,16/11/2016
Carewatch (Harrow),Domiciliary Care,Children With Disabilities Client Costs,606.35,0,606.35,14/12/2016
Carewatch (Harrow),Domiciliary Care,Personalisation - OP,560.34,0,560.34,10/10/2016
Carewatch (Harrow),Domiciliary Care,Personalisation - OP,940.17,0,940.17,10/10/2016
Carewatch (Harrow),Domiciliary Care,Personalisation - OP,974.73,0,974.73,10/10/2016
Carewatch (Harrow),Domiciliary Care,Personalisation - OP,989.21,0,989.21,10/10/2016
Carewatch (Harrow),Domiciliary Care,Personalisation - OP,"1,078.68",0,"1,078.68",10/10/2016
Carewatch (Harrow),Domiciliary Care,Personalisation - OP,"1,193.53",0,"1,193.53",10/10/2016
Carewatch (Harrow),Domiciliary Care,Personalisation - OP,"1,271.91",0,"1,271.91",10/10/2016
Carewatch (Harrow),Domiciliary Care,Personalisation - OP,"1,501.46",0,"1,501.46",10/10/2016
Carewatch (Harrow),Domiciliary Care,Personalisation - OP,"1,609.92",0,"1,609.92",10/10/2016
Carewatch (Harrow),Domiciliary Care,Personalisation - OP,"1,650.81",0,"1,650.81",10/10/2016
Carewatch (Harrow),Domiciliary Care,Personalisation - OP,555.44,0,555.44,08/11/2016
Carewatch (Harrow),Domiciliary Care,Personalisation - OP,901.22,0,901.22,08/11/2016
Carewatch (Harrow),Domiciliary Care,Personalisation - OP,"1,002.36",0,"1,002.36",08/11/2016
Carewatch (Harrow),Domiciliary Care,Personalisation - OP,"1,200.00",0,"1,200.00",08/11/2016
Carewatch (Harrow),Domiciliary Care,Personalisation - OP,"1,297.04",0,"1,297.04",08/11/2016
Carewatch (Harrow),Domiciliary Care,Personalisation - OP,"1,354.81",0,"1,354.81",08/11/2016
Carewatch (Harrow),Domiciliary Care,Personalisation - OP,"1,554.47",0,"1,554.47",08/11/2016
Carewatch (Harrow),Domiciliary Care,Personalisation - OP,"1,670.92",0,"1,670.92",08/11/2016
Carewatch (Harrow),Domiciliary Care,Personalisation - OP,"1,651.75",0,"1,651.75",14/11/2016
Carewatch (Harrow),Domiciliary Care,Personalisation - OP,504.94,0,504.94,07/12/2016
Carewatch (Harrow),Domiciliary Care,Personalisation - OP,"1,035.61",0,"1,035.61",07/12/2016
Carewatch (Harrow),Domiciliary Care,Personalisation - OP,"1,060.16",0,"1,060.16",07/12/2016
Carewatch (Harrow),Domiciliary Care,Personalisation - OP,"1,230.24",0,"1,230.24",07/12/2016
Carewatch (Harrow),Domiciliary Care,Personalisation - OP,"1,307.47",0,"1,307.47",07/12/2016
Carewatch (Harrow),Domiciliary Care,Personalisation - OP,"1,831.24",0,"1,831.24",07/12/2016
Carewatch (Harrow),Domiciliary Care,Personalisation - PD,536.75,0,536.75,07/12/2016
Carillion Integrated Services Ltd,Other Professional Fees,Library Projects,"157,436.07","31,487.21","188,923.28",06/10/2016
Carillion Integrated Services Ltd,Other Professional Fees,Library Projects,"157,436.07","31,487.21","188,923.28",01/11/2016
Carillion Integrated Services Ltd,Other Professional Fees,Library Projects,"50,000.00","10,000.00","60,000.00",24/11/2016
Carillion Integrated Services Ltd,Other Professional Fees,Library Projects,"50,000.00","10,000.00","60,000.00",13/12/2016
Carillion Integrated Services Ltd,Other Professional Fees,Library Projects,"157,436.07","31,487.21","188,923.28",13/12/2016
Caring with a Difference - ISF,Domiciliary Care,Personalisation - OP,"3,068.00",0,"3,068.00",16/11/2016
Caring with a Difference - ISF,Domiciliary Care,Personalisation - OP,"3,067.85",0,"3,067.85",25/11/2016
Caring with a Difference - ISF,Social Care Personal Budgets,Personalisation - PD,"1,694.12",0,"1,694.12",18/10/2016
Caring with a Difference - ISF,Adults & Social - Net P.B.'s,Personalisation - PD,-8.08,0,-8.08,18/10/2016
Caring with a Difference - ISF,Domiciliary Care,Personalisation - PD,818.62,0,818.62,16/11/2016
Caring with a Difference - ISF,Adults & Social - Net P.B.'s,Personalisation - PD,-8.08,0,-8.08,18/11/2016
Caring with a Difference - ISF,Social Care Personal Budgets,Personalisation - PD,"1,694.12",0,"1,694.12",18/11/2016
Caring with a Difference - ISF,Domiciliary Care,Personalisation - PD,"3,753.88",0,"3,753.88",01/12/2016
Caring with a Difference - ISF,Adults & Social - Net P.B.'s,Personalisation - PD,-8.08,0,-8.08,19/12/2016
Caring with a Difference - ISF,Social Care Personal Budgets,Personalisation - PD,"1,694.12",0,"1,694.12",19/12/2016
Carlton House Residential Care Home,Adults & Social - Client Charges,Long Term Team - OP,-578.81,0,-578.81,25/10/2016
Carlton House Residential Care Home,Adults & Social - Client Charges,Long Term Team - OP,-434.18,0,-434.18,25/10/2016
Carlton House Residential Care Home,Residential Placements,Long Term Team - OP,"2,063.71",0,"2,063.71",25/10/2016
Carlton House Residential Care Home,Adults & Social - Client Charges,Long Term Team - OP,-680.41,0,-680.41,25/10/2016
Carlton House Residential Care Home,Residential Placements,Long Term Team - OP,"2,325.00",0,"2,325.00",25/10/2016
Carlton House Residential Care Home,Residential Placements,Long Term Team - OP,"2,391.43",0,"2,391.43",25/10/2016
Carlton House Residential Care Home,Adults & Social - Client Charges,Long Term Team - OP,-610.7,0,-610.7,25/10/2016
Carlton House Residential Care Home,Adults & Social - Client Charges,Long Term Team - OP,-559.33,0,-559.33,25/10/2016
Carlton House Residential Care Home,Residential Placements,Long Term Team - OP,"2,391.43",0,"2,391.43",25/10/2016
Carlton House Residential Care Home,Residential Placements,Long Term Team - OP,"2,391.43",0,"2,391.43",25/10/2016
Carlton House Residential Care Home,Adults & Social - Client Charges,Long Term Team - OP,-559.33,0,-559.33,25/10/2016
Carlton House Residential Care Home,Residential Placements,Long Term Team - OP,"2,391.43",0,"2,391.43",25/10/2016
Carlton House Residential Care Home,Adults & Social - Client Charges,Long Term Team - OP,-472.93,0,-472.93,25/10/2016
Carlton House Residential Care Home,Residential Placements,Long Term Team - OP,"2,325.00",0,"2,325.00",25/10/2016
Carlton House Residential Care Home,Residential Placements,Long Term Team - OP,"2,391.43",0,"2,391.43",25/10/2016
Carlton House Residential Care Home,Residential Placements,Long Term Team - OP,"2,391.43",0,"2,391.43",25/10/2016
Carlton House Residential Care Home,Residential Placements,Long Term Team - OP,"2,391.43",0,"2,391.43",25/10/2016
Carlton House Residential Care Home,Adults & Social - Client Charges,Long Term Team - OP,-560.14,0,-560.14,25/11/2016
Carlton House Residential Care Home,Adults & Social - Client Charges,Long Term Team - OP,-420.17,0,-420.17,25/11/2016
Carlton House Residential Care Home,Residential Placements,Long Term Team - OP,"1,997.14",0,"1,997.14",25/11/2016
Carlton House Residential Care Home,Adults & Social - Client Charges,Long Term Team - OP,-658.46,0,-658.46,25/11/2016
Carlton House Residential Care Home,Residential Placements,Long Term Team - OP,"2,250.00",0,"2,250.00",25/11/2016
Carlton House Residential Care Home,Residential Placements,Long Term Team - OP,"2,314.29",0,"2,314.29",25/11/2016
Carlton House Residential Care Home,Adults & Social - Client Charges,Long Term Team - OP,-591,0,-591,25/11/2016
Carlton House Residential Care Home,Residential Placements,Long Term Team - OP,"2,314.29",0,"2,314.29",25/11/2016
Carlton House Residential Care Home,Adults & Social - Client Charges,Long Term Team - OP,-541.29,0,-541.29,25/11/2016
Carlton House Residential Care Home,Residential Placements,Long Term Team - OP,"2,314.29",0,"2,314.29",25/11/2016
Carlton House Residential Care Home,Adults & Social - Client Charges,Long Term Team - OP,-541.29,0,-541.29,25/11/2016
Carlton House Residential Care Home,Adults & Social - Client Charges,Long Term Team - OP,-457.67,0,-457.67,25/11/2016
Carlton House Residential Care Home,Residential Placements,Long Term Team - OP,"2,314.29",0,"2,314.29",25/11/2016
Carlton House Residential Care Home,Residential Placements,Long Term Team - OP,"2,250.00",0,"2,250.00",25/11/2016
Carlton House Residential Care Home,Residential Placements,Long Term Team - OP,"2,314.29",0,"2,314.29",25/11/2016
Carlton House Residential Care Home,Residential Placements,Long Term Team - OP,"2,314.29",0,"2,314.29",25/11/2016
Carlton House Residential Care Home,Residential Placements,Long Term Team - OP,"2,314.29",0,"2,314.29",25/11/2016
Carlton House Residential Care Home,Adults & Social - Client Charges,Long Term Team - OP,-578.82,0,-578.82,20/12/2016
Carlton House Residential Care Home,Residential Placements,Long Term Team - OP,"2,063.72",0,"2,063.72",20/12/2016
Carlton House Residential Care Home,Adults & Social - Client Charges,Long Term Team - OP,-434.17,0,-434.17,20/12/2016
Carlton House Residential Care Home,Adults & Social - Client Charges,Long Term Team - OP,-680.4,0,-680.4,20/12/2016
Carlton House Residential Care Home,Residential Placements,Long Term Team - OP,"2,325.00",0,"2,325.00",20/12/2016
Carlton House Residential Care Home,Adults & Social - Client Charges,Long Term Team - OP,-610.7,0,-610.7,20/12/2016
Carlton House Residential Care Home,Residential Placements,Long Term Team - OP,"2,391.43",0,"2,391.43",20/12/2016
Carlton House Residential Care Home,Residential Placements,Long Term Team - OP,"2,391.43",0,"2,391.43",20/12/2016
Carlton House Residential Care Home,Adults & Social - Client Charges,Long Term Team - OP,-559.33,0,-559.33,20/12/2016
Carlton House Residential Care Home,Residential Placements,Long Term Team - OP,"2,391.43",0,"2,391.43",20/12/2016
Carlton House Residential Care Home,Adults & Social - Client Charges,Long Term Team - OP,-559.33,0,-559.33,20/12/2016
Carlton House Residential Care Home,Adults & Social - Client Charges,Long Term Team - OP,-472.92,0,-472.92,20/12/2016
Carlton House Residential Care Home,Residential Placements,Long Term Team - OP,"2,391.43",0,"2,391.43",20/12/2016
Carlton House Residential Care Home,Residential Placements,Long Term Team - OP,"2,325.00",0,"2,325.00",20/12/2016
Carlton House Residential Care Home,Residential Placements,Long Term Team - OP,"2,391.43",0,"2,391.43",20/12/2016
Carlton House Residential Care Home,Residential Placements,Long Term Team - OP,"2,391.43",0,"2,391.43",20/12/2016
Carlton House Residential Care Home,Residential Placements,Long Term Team - OP,"2,391.43",0,"2,391.43",20/12/2016
Caroline Clissold,Other Professional Fees,Harrow Schools Improvement Partnership,550,0,550,05/12/2016
Caroline Daly,Legal Fees/Advocacy,Director of Planning & Regeneration,475,95,570,16/12/2016
Carolyn Pearson,Legal Fees/Advocacy,Barnet Council Legal Services,900,180,"1,080.00",16/12/2016
CarpetRight,Social Services Clients - Other Payments,Cin Team 1,698.41,139.68,838.09,23/11/2016
CASE Education,Activity Leaders (Public Events),TFL funded revenue schemes,"2,200.00",0,"2,200.00",05/10/2016
Cass Associates London Ltd,Semi Independent,Leaving Care Placements,"1,980.00",396,"2,376.00",06/10/2016
Cass Associates London Ltd,Semi Independent,Leaving Care Placements,"2,389.50",477.9,"2,867.40",06/10/2016
Cass Associates London Ltd,Semi Independent,Leaving Care Placements,"1,414.26",282.85,"1,697.11",08/11/2016
Cass Associates London Ltd,Semi Independent,Leaving Care Placements,"2,280.51",456.1,"2,736.61",08/11/2016
Cass Associates London Ltd,Semi Independent,Leaving Care Placements,"2,557.50",511.5,"3,069.00",08/11/2016
Cass Associates London Ltd,Semi Independent,Leaving Care Placements,"2,165.49",433.1,"2,598.59",06/12/2016
Cass Associates London Ltd,Semi Independent,Leaving Care Placements,"2,357.10",471.42,"2,828.52",06/12/2016
Cass Associates London Ltd,Semi Independent,Leaving Care Placements,"2,475.00",495,"2,970.00",06/12/2016
Castlecare - Chessington,Residential Placements,Childrens Placements,"15,121.07",0,"15,121.07",06/10/2016
Castlecare - Chessington,Residential Placements,Childrens Placements,"12,096.86",0,"12,096.86",08/11/2016
Castlecare - Sycamore House,Residential Placements,Childrens Placements,"15,386.23",0,"15,386.23",06/10/2016
Castlecare - Sycamore House,Residential Placements,Childrens Placements,"15,899.10",0,"15,899.10",08/11/2016
Castlecare - Sycamore House,Residential Placements,Childrens Placements,"15,386.23",0,"15,386.23",06/12/2016
Catalyst Communities,Adults & Social - Client Charges,Long Term Team - OP,"-5,516.08",0,"-5,516.08",10/10/2016
Catalyst Communities,Adults & Social - Client Charges,Long Term Team - OP,"-2,127.60",0,"-2,127.60",10/10/2016
Catalyst Communities,Adults & Social - Client Charges,Long Term Team - OP,"-2,100.00",0,"-2,100.00",10/10/2016
Catalyst Communities,Adults & Social - Client Charges,Long Term Team - OP,-939.35,0,-939.35,10/10/2016
Catalyst Communities,Adults & Social - Client Charges,Long Term Team - OP,-801.9,0,-801.9,10/10/2016
Catalyst Communities,Adults & Social - Client Charges,Long Term Team - OP,-763.03,0,-763.03,10/10/2016
Catalyst Communities,Adults & Social - Client Charges,Long Term Team - OP,-711.35,0,-711.35,10/10/2016
Catalyst Communities,Adults & Social - Client Charges,Long Term Team - OP,-710.87,0,-710.87,10/10/2016
Catalyst Communities,Adults & Social - Client Charges,Long Term Team - OP,-706.43,0,-706.43,10/10/2016
Catalyst Communities,Adults & Social - Client Charges,Long Term Team - OP,-650.03,0,-650.03,10/10/2016
Catalyst Communities,Adults & Social - Client Charges,Long Term Team - OP,"-3,230.16",0,"-3,230.16",10/10/2016
Catalyst Communities,Adults & Social - Client Charges,Long Term Team - OP,"2,580.13",0,"2,580.13",10/10/2016
Catalyst Communities,Adults & Social - Client Charges,Long Term Team - OP,-635.57,0,-635.57,10/10/2016
Catalyst Communities,Adults & Social - Client Charges,Long Term Team - OP,"2,504.54",0,"2,504.54",10/10/2016
Catalyst Communities,Adults & Social - Client Charges,Long Term Team - OP,"-3,139.21",0,"-3,139.21",10/10/2016
Catalyst Communities,Adults & Social - Client Charges,Long Term Team - OP,-582.43,0,-582.43,10/10/2016
Catalyst Communities,Adults & Social - Client Charges,Long Term Team - OP,-580.03,0,-580.03,10/10/2016
Catalyst Communities,Adults & Social - Client Charges,Long Term Team - OP,-578.57,0,-578.57,10/10/2016
Catalyst Communities,Adults & Social - Client Charges,Long Term Team - OP,-571.37,0,-571.37,10/10/2016
Catalyst Communities,Adults & Social - Client Charges,Long Term Team - OP,-568.72,0,-568.72,10/10/2016
Catalyst Communities,Adults & Social - Client Charges,Long Term Team - OP,-560.15,0,-560.15,10/10/2016
Catalyst Communities,Adults & Social - Client Charges,Long Term Team - OP,-560.15,0,-560.15,10/10/2016
Catalyst Communities,Adults & Social - Client Charges,Long Term Team - OP,-560.15,0,-560.15,10/10/2016
Catalyst Communities,Adults & Social - Client Charges,Long Term Team - OP,-560.15,0,-560.15,10/10/2016
Catalyst Communities,Adults & Social - Client Charges,Long Term Team - OP,"-1,064.27",0,"-1,064.27",10/10/2016
Catalyst Communities,Adults & Social - Client Charges,Long Term Team - OP,504.12,0,504.12,10/10/2016
Catalyst Communities,Adults & Social - Client Charges,Long Term Team - OP,-560.15,0,-560.15,10/10/2016
Catalyst Communities,Adults & Social - Client Charges,Long Term Team - OP,-560.15,0,-560.15,10/10/2016
Catalyst Communities,Adults & Social - Client Charges,Long Term Team - OP,-560.15,0,-560.15,10/10/2016
Catalyst Communities,Adults & Social - Client Charges,Long Term Team - OP,-560.15,0,-560.15,10/10/2016
Catalyst Communities,Adults & Social - Client Charges,Long Term Team - OP,-560.15,0,-560.15,10/10/2016
Catalyst Communities,Adults & Social - Client Charges,Long Term Team - OP,-544.5,0,-544.5,10/10/2016
Catalyst Communities,Adults & Social - Client Charges,Long Term Team - OP,-541.67,0,-541.67,10/10/2016
Catalyst Communities,Adults & Social - Client Charges,Long Term Team - OP,-534.43,0,-534.43,10/10/2016
Catalyst Communities,Adults & Social - Client Charges,Long Term Team - OP,-522.8,0,-522.8,10/10/2016
Catalyst Communities,Adults & Social - Client Charges,Long Term Team - OP,-517.28,0,-517.28,10/10/2016
Catalyst Communities,Adults & Social - Client Charges,Long Term Team - OP,505.2,0,505.2,10/10/2016
Catalyst Communities,Residential Placements,Long Term Team - OP,"2,884.28",0,"2,884.28",10/10/2016
Catalyst Communities,Adults & Social - Client Charges,Long Term Team - OP,"4,688.80",0,"4,688.80",10/10/2016
Catalyst Communities,Residential Placements,Long Term Team - OP,"99,413.70",0,"99,413.70",10/10/2016
Catalyst Communities,Day Care Payments,Long Term Team - OP,"44,254.98",0,"44,254.98",10/10/2016
Catalyst Communities,Adults & Social - Client Charges,Long Term Team - OP,"-2,198.52",0,"-2,198.52",28/10/2016
Catalyst Communities,Adults & Social - Client Charges,Long Term Team - OP,"-2,170.00",0,"-2,170.00",28/10/2016
Catalyst Communities,Adults & Social - Client Charges,Long Term Team - OP,"-1,285.70",0,"-1,285.70",28/10/2016
Catalyst Communities,Adults & Social - Client Charges,Long Term Team - OP,-970.65,0,-970.65,28/10/2016
Catalyst Communities,Adults & Social - Client Charges,Long Term Team - OP,-828.63,0,-828.63,28/10/2016
Catalyst Communities,Adults & Social - Client Charges,Long Term Team - OP,-788.46,0,-788.46,28/10/2016
Catalyst Communities,Adults & Social - Client Charges,Long Term Team - OP,-735.05,0,-735.05,28/10/2016
Catalyst Communities,Adults & Social - Client Charges,Long Term Team - OP,-734.57,0,-734.57,28/10/2016
Catalyst Communities,Adults & Social - Client Charges,Long Term Team - OP,-684.77,0,-684.77,28/10/2016
Catalyst Communities,Adults & Social - Client Charges,Long Term Team - OP,-656.76,0,-656.76,28/10/2016
Catalyst Communities,Adults & Social - Client Charges,Long Term Team - OP,-601.84,0,-601.84,28/10/2016
Catalyst Communities,Adults & Social - Client Charges,Long Term Team - OP,-599.36,0,-599.36,28/10/2016
Catalyst Communities,Adults & Social - Client Charges,Long Term Team - OP,-597.86,0,-597.86,28/10/2016
Catalyst Communities,Adults & Social - Client Charges,Long Term Team - OP,-590.42,0,-590.42,28/10/2016
Catalyst Communities,Adults & Social - Client Charges,Long Term Team - OP,-587.67,0,-587.67,28/10/2016
Catalyst Communities,Adults & Social - Client Charges,Long Term Team - OP,-578.81,0,-578.81,28/10/2016
Catalyst Communities,Adults & Social - Client Charges,Long Term Team - OP,-578.81,0,-578.81,28/10/2016
Catalyst Communities,Adults & Social - Client Charges,Long Term Team - OP,-578.81,0,-578.81,28/10/2016
Catalyst Communities,Adults & Social - Client Charges,Long Term Team - OP,-578.81,0,-578.81,28/10/2016
Catalyst Communities,Adults & Social - Client Charges,Long Term Team - OP,-578.81,0,-578.81,28/10/2016
Catalyst Communities,Adults & Social - Client Charges,Long Term Team - OP,-578.81,0,-578.81,28/10/2016
Catalyst Communities,Adults & Social - Client Charges,Long Term Team - OP,-578.81,0,-578.81,28/10/2016
Catalyst Communities,Adults & Social - Client Charges,Long Term Team - OP,-578.81,0,-578.81,28/10/2016
Catalyst Communities,Adults & Social - Client Charges,Long Term Team - OP,-578.81,0,-578.81,28/10/2016
Catalyst Communities,Adults & Social - Client Charges,Long Term Team - OP,-578.81,0,-578.81,28/10/2016
Catalyst Communities,Adults & Social - Client Charges,Long Term Team - OP,-578.81,0,-578.81,28/10/2016
Catalyst Communities,Adults & Social - Client Charges,Long Term Team - OP,-562.65,0,-562.65,28/10/2016
Catalyst Communities,Adults & Social - Client Charges,Long Term Team - OP,-562.52,0,-562.52,28/10/2016
Catalyst Communities,Adults & Social - Client Charges,Long Term Team - OP,-559.73,0,-559.73,28/10/2016
Catalyst Communities,Adults & Social - Client Charges,Long Term Team - OP,-552.24,0,-552.24,28/10/2016
Catalyst Communities,Adults & Social - Client Charges,Long Term Team - OP,-534.53,0,-534.53,28/10/2016
Catalyst Communities,Residential Placements,Long Term Team - OP,"2,980.43",0,"2,980.43",28/10/2016
Catalyst Communities,Residential Placements,Long Term Team - OP,"102,727.49",0,"102,727.49",28/10/2016
Catalyst Communities,Day Care Payments,Long Term Team - OP,"42,243.39",0,"42,243.39",28/10/2016
Catalyst Communities,Adults & Social - Client Charges,Long Term Team - OP,"-2,100.00",0,"-2,100.00",24/11/2016
Catalyst Communities,Adults & Social - Client Charges,Long Term Team - OP,"-1,244.23",0,"-1,244.23",24/11/2016
Catalyst Communities,Adults & Social - Client Charges,Long Term Team - OP,-939.34,0,-939.34,24/11/2016
Catalyst Communities,Adults & Social - Client Charges,Long Term Team - OP,-853.71,0,-853.71,24/11/2016
Catalyst Communities,Adults & Social - Client Charges,Long Term Team - OP,-763.03,0,-763.03,24/11/2016
Catalyst Communities,Adults & Social - Client Charges,Long Term Team - OP,-732.54,0,-732.54,24/11/2016
Catalyst Communities,Adults & Social - Client Charges,Long Term Team - OP,-711.34,0,-711.34,24/11/2016
Catalyst Communities,Adults & Social - Client Charges,Long Term Team - OP,-710.87,0,-710.87,24/11/2016
Catalyst Communities,Adults & Social - Client Charges,Long Term Team - OP,-642.86,0,-642.86,24/11/2016
Catalyst Communities,Adults & Social - Client Charges,Long Term Team - OP,-635.57,0,-635.57,24/11/2016
Catalyst Communities,Adults & Social - Client Charges,Long Term Team - OP,-582.43,0,-582.43,24/11/2016
Catalyst Communities,Adults & Social - Client Charges,Long Term Team - OP,-580.03,0,-580.03,24/11/2016
Catalyst Communities,Adults & Social - Client Charges,Long Term Team - OP,-578.81,0,-578.81,24/11/2016
Catalyst Communities,Adults & Social - Client Charges,Long Term Team - OP,-578.57,0,-578.57,24/11/2016
Catalyst Communities,Adults & Social - Client Charges,Long Term Team - OP,-571.37,0,-571.37,24/11/2016
Catalyst Communities,Adults & Social - Client Charges,Long Term Team - OP,-568.71,0,-568.71,24/11/2016
Catalyst Communities,Adults & Social - Client Charges,Long Term Team - OP,-560.14,0,-560.14,24/11/2016
Catalyst Communities,Adults & Social - Client Charges,Long Term Team - OP,-560.14,0,-560.14,24/11/2016
Catalyst Communities,Adults & Social - Client Charges,Long Term Team - OP,-560.14,0,-560.14,24/11/2016
Catalyst Communities,Adults & Social - Client Charges,Long Term Team - OP,-560.14,0,-560.14,24/11/2016
Catalyst Communities,Adults & Social - Client Charges,Long Term Team - OP,-560.14,0,-560.14,24/11/2016
Catalyst Communities,Adults & Social - Client Charges,Long Term Team - OP,-560.14,0,-560.14,24/11/2016
Catalyst Communities,Adults & Social - Client Charges,Long Term Team - OP,-560.14,0,-560.14,24/11/2016
Catalyst Communities,Adults & Social - Client Charges,Long Term Team - OP,-560.14,0,-560.14,24/11/2016
Catalyst Communities,Adults & Social - Client Charges,Long Term Team - OP,-560.14,0,-560.14,24/11/2016
Catalyst Communities,Adults & Social - Client Charges,Long Term Team - OP,-560.14,0,-560.14,24/11/2016
Catalyst Communities,Adults & Social - Client Charges,Long Term Team - OP,-544.5,0,-544.5,24/11/2016
Catalyst Communities,Adults & Social - Client Charges,Long Term Team - OP,-544.37,0,-544.37,24/11/2016
Catalyst Communities,Adults & Social - Client Charges,Long Term Team - OP,-534.43,0,-534.43,24/11/2016
Catalyst Communities,Adults & Social - Client Charges,Long Term Team - OP,-517.29,0,-517.29,24/11/2016
Catalyst Communities,Adults & Social - Client Charges,Long Term Team - OP,"1,134.72",0,"1,134.72",24/11/2016
Catalyst Communities,Residential Placements,Long Term Team - OP,"2,884.29",0,"2,884.29",24/11/2016
Catalyst Communities,Day Care Payments,Long Term Team - OP,"44,254.98",0,"44,254.98",24/11/2016
Catalyst Communities,Residential Placements,Long Term Team - OP,"99,413.70",0,"99,413.70",24/11/2016
Catalyst Communities,Adults & Social - Client Charges,Long Term Team - OP,"-2,170.00",0,"-2,170.00",23/12/2016
Catalyst Communities,Adults & Social - Client Charges,Long Term Team - OP,"-1,299.09",0,"-1,299.09",23/12/2016
Catalyst Communities,Adults & Social - Client Charges,Long Term Team - OP,"-1,285.71",0,"-1,285.71",23/12/2016
Catalyst Communities,Adults & Social - Client Charges,Long Term Team - OP,-970.66,0,-970.66,23/12/2016
Catalyst Communities,Adults & Social - Client Charges,Long Term Team - OP,-853.68,0,-853.68,23/12/2016
Catalyst Communities,Adults & Social - Client Charges,Long Term Team - OP,-835.5,0,-835.5,23/12/2016
Catalyst Communities,Adults & Social - Client Charges,Long Term Team - OP,-788.47,0,-788.47,23/12/2016
Catalyst Communities,Adults & Social - Client Charges,Long Term Team - OP,-735.06,0,-735.06,23/12/2016
Catalyst Communities,Adults & Social - Client Charges,Long Term Team - OP,-734.56,0,-734.56,23/12/2016
Catalyst Communities,Adults & Social - Client Charges,Long Term Team - OP,-664.28,0,-664.28,23/12/2016
Catalyst Communities,Adults & Social - Client Charges,Long Term Team - OP,-656.75,0,-656.75,23/12/2016
Catalyst Communities,Adults & Social - Client Charges,Long Term Team - OP,-601.85,0,-601.85,23/12/2016
Catalyst Communities,Adults & Social - Client Charges,Long Term Team - OP,-599.37,0,-599.37,23/12/2016
Catalyst Communities,Adults & Social - Client Charges,Long Term Team - OP,-597.85,0,-597.85,23/12/2016
Catalyst Communities,Adults & Social - Client Charges,Long Term Team - OP,-590.41,0,-590.41,23/12/2016
Catalyst Communities,Adults & Social - Client Charges,Long Term Team - OP,-587.67,0,-587.67,23/12/2016
Catalyst Communities,Adults & Social - Client Charges,Long Term Team - OP,-585.02,0,-585.02,23/12/2016
Catalyst Communities,Adults & Social - Client Charges,Long Term Team - OP,-578.82,0,-578.82,23/12/2016
Catalyst Communities,Adults & Social - Client Charges,Long Term Team - OP,-578.82,0,-578.82,23/12/2016
Catalyst Communities,Adults & Social - Client Charges,Long Term Team - OP,-578.82,0,-578.82,23/12/2016
Catalyst Communities,Adults & Social - Client Charges,Long Term Team - OP,-578.82,0,-578.82,23/12/2016
Catalyst Communities,Adults & Social - Client Charges,Long Term Team - OP,-578.82,0,-578.82,23/12/2016
Catalyst Communities,Adults & Social - Client Charges,Long Term Team - OP,-578.82,0,-578.82,23/12/2016
Catalyst Communities,Adults & Social - Client Charges,Long Term Team - OP,-578.82,0,-578.82,23/12/2016
Catalyst Communities,Adults & Social - Client Charges,Long Term Team - OP,-578.82,0,-578.82,23/12/2016
Catalyst Communities,Adults & Social - Client Charges,Long Term Team - OP,-578.82,0,-578.82,23/12/2016
Catalyst Communities,Adults & Social - Client Charges,Long Term Team - OP,-578.82,0,-578.82,23/12/2016
Catalyst Communities,Adults & Social - Client Charges,Long Term Team - OP,-578.82,0,-578.82,23/12/2016
Catalyst Communities,Adults & Social - Client Charges,Long Term Team - OP,-562.65,0,-562.65,23/12/2016
Catalyst Communities,Adults & Social - Client Charges,Long Term Team - OP,-562.51,0,-562.51,23/12/2016
Catalyst Communities,Adults & Social - Client Charges,Long Term Team - OP,-552.25,0,-552.25,23/12/2016
Catalyst Communities,Adults & Social - Client Charges,Long Term Team - OP,-534.53,0,-534.53,23/12/2016
Catalyst Communities,Residential Placements,Long Term Team - OP,"2,980.43",0,"2,980.43",23/12/2016
Catalyst Communities,Residential Placements,Long Term Team - OP,"102,727.49",0,"102,727.49",23/12/2016
Catalyst Communities,Day Care Payments,Long Term Team - OP,"44,254.98",0,"44,254.98",23/12/2016
Caterham High School,Grants and Subscriptions,CLA Pupil Premium Grant,500,0,500,23/12/2016
CCC Events,Staff training (General),HRA Administration,"2,425.00",485,"2,910.00",23/11/2016
CE Office Interiors,Landlord Repairs Exit Costs,Corporate Accomodation,"1,908.00",381.6,"2,289.60",04/10/2016
Cedars Pre-School,Voluntary Organisations TPP,2 year old offer,"19,074.00",0,"19,074.00",26/10/2016
